Workbook

Sheet Working
Z1: Latest Rd: | AA1: 6
Z2: Players: | AA2: =COUNTA(Players!B:B)-1 -> 128
Z3: Display | AA3: 14 | AB3: Columns
Z4: Enter | AA4: 7 | AB4: Columns
Z5: Max random | AA5: 3
Z6: Number of Groups | AA6: =COUNTA(Players!M:M)-1 -> 16 | AE6: Group
AE7: Individual
Z8: Group display | AA8: 17 | AB8: columns
AC10: Cumulative
AA11: Amazons
AA12: Chaos | AE12: Initial Display Columns
AA13: Chaos Dwarves | AE13: Player
AA14: Chaos Pact | AE14: Points
AA15: Dark Elves | AE15: TD For
AA16: Dwarves | AE16: Cas For
AA17: Elves | AE17: =[1]Setup!F8 -> Bonus 1
AA18: Goblins | AE18: =[1]Setup!F9 -> Bonus 2
AA19: Halflings | AE19: TD Against
AA20: High Elves | AE20: Cas Against
AA21: Humans | AE21: TD Net
AA22: Khemri | AE22: Cas Net
AA23: Lizardmen | AE23: Wins
AA24: Necromantic | AE24: Draws
AA25: Norse | AE25: Losses
AA26: Nurgle's Rotters | AE26: Opp Score
AA27: Ogres | AE27: Group
AA28: Orc
AA29: Skaven
AA30: Slann
AA31: Undead
AA32: Underworld
AA33: Vampires
AA34: Wood Elves

Sheet ChangeLog
B1: This spreadsheet is based on one by Kaper on an Excel forum: http://www.excelforum.com/excel-programming-vba-macros/1105569-swiss-pairing-algorithm-in-excel-to-organize-a-chess-tournament.html
B2: Massive thanks due to him!
B3: The original was used for Chess, and it has been adapted to work for Blood Bowl by sann0638 (Mike Davies)
A5: Version | B5: Summary | C5: Date | D5: Notes
A6: 1.0 | B6: Multi-sheet version of the chess | C6: 2016-06-19
A7: 1.1 | B7: Remove Black and White stuff | C7: 2016-06-19
A8: 1.2 | B8: Change to TDs to generate points | C8: 2016-06-19
B9: Got the Swiss working properly | C9: 2016-06-19 | D9: Published.
A10: 1.3 | B10: More help information. | C10: 2016-06-20
B11: Added Table | C11: 2016-06-20
B12: Added Opponent Score | C12: 2016-06-20
A13: 2.1 | B13: Big overhaul to where info stored | C13: 2016-06-21
A14: 2.2 | B14: Putting in the Score formula | C14: 2016-06-21 | D14: Published.
A15: 3.1 | B15: Added all tiebreaker columns | C15: 2016-06-22
B16: Realised opponent score was wrong, fixed it. | C16: 2016-06-22
A17: 3.2 | B17: Fixed problem with sorting the table. | C17: 2016-06-23 | D17: Published.
A18: 3.3 | B18: Tiebreakers implemented | C18: 2016-06-24
B19: NAF Upload file | C19: 2016-06-24 | D19: Published.
A20: 4.1 | B20: Group results and matrix added | C20: 2016-06-25
B21: Group results fully implemented | C21: 2016-06-26
A22: 4.2 | B22: Fixed net casualties | C22: 2016-06-28
A23: 4.3 | B23: Tiebreakers corrected, yet again! | C23: 2016-09-17 | D23: Published.
A24: 4.4 | B24: Group results corrected, groups added to table | C24: 2016-09-17
B25: Removed need for Groups to be in there, corrected number of players. | C25: 2016-09-18 | D25: Published.
A26: 5.0 | B26: Mostly working Group Swiss | C26: 2016-09-21
A27: 5.1 | B27: Working Group Swiss. | C27: 2016-09-21 | D27: Published.

Sheet Setup
A1: SCORING SETUP | F1: Group/Ind Swiss? | G1: Group
T2: Testing Functionality
A3: Points for… | F3: Entry Data
A4: Win by at least 2 TD | B4: 1 | F4: Player
A5: Win by 1 TD | B5: 1 | F5: Points
A6: Draw | B6: 0.5 | F6: TD | I6: Buttons for running a tournament:
A7: Lose by 1 TD | B7: 0 | F7: Cas
A8: Lose by at least 2 TD | B8: 0 | F8: Bonus 1 | G8: Bonus1 Name
F9: Bonus 2 | G9: Bonus2 Name
A10: Bonus points for TD/Cas etc | F10: Group
A11: Points per TD | B11: 0
A12: Max TD Bonus Pts | B12: 0
A13: Points per Cas | B13: 0
A14: Max Cas Bonus Pts | B14: 0
A15: =F8&" Max Bonus Pts" -> Bonus 1 Max Bonus Pts | B15: 0
A16: =F9&" Max Bonus Pts" -> Bonus 2 Max Bonus Pts | B16: 0
A18: Test Scoring System Here
A19: Your Score (required) | B19: 4
A20: Opponent Score (required) | B20: 3
A21: Your Cas (optional) | B21: 3
A22: ="Your "&F8&" (optional)" -> Your Bonus 1 (optional) | B22: 1
A23: ="Your "&F9&" (optional)" -> Your Bonus 2 (optional) | B23: 2
A25: Your Points | B25: =fctScore(B19,B20,B21,B22,B23) -> 1
A27: Individual Tie Breaks
A28: Player
A29: Points | B29: Order
A30: TD For
A31: TD Against
A32: TD Net
A33: Cas For
A34: Cas Against
A35: Cas Net
A36: =F8 -> Bonus 1
A37: =F9 -> Bonus 2
A38: Wins
A39: Draws
A40: Losses
A41: Opp Score
A43: Group Options
A44: Points for a win | B44: 1
A45: Points for a draw | B45: 0.5
A46: Points for a loss | B46: 0
A47: Points for a group win | B47: 1
A48: Points for a group draw | B48: 0.5
A49: Points for a group loss | B49: 0
A51: Group Tie Breaks
A52: Group
A53: Points | B53: Order
A54: TD For
A55: TD Against
A56: Net TDs
A57: Cas For
A58: Cas Against
A59: Net Cas
A60: ="Group Total "&F8 -> Group Total Bonus 1
A61: ="Group Total "&F9 -> Group Total Bonus 2
A62: Group Wins
A63: Groups Draws
A64: Group Losses
A65: Individual Wins
A66: Individual Draws
A67: Individual Losses
A68: Total Individual Points | B68: 1

Sheet Matrix
B1: Driesfield | C1: Malodoror | D1: JJ | E1: Araznaroth | F1: Woete | G1: gninocker | H1: Phoenix11 | I1: Dekra1979 | J1: Tripleskull | K1: MissSweden | L1: kfoged | M1: Tank | N1: Topper | O1: SpecialOne | P1: Jaqra | Q1: Niebling | R1: Lycos | S1: PurpleGoo | T1: Geggster | U1: Podfrey | V1: JimJimany | W1: Joemanji | X1: Mubo | Y1: Wilzif | Z1: MacWitt | AA1: Harza | AB1: jopotzuki | AC1: edheim | AD1: BeerBeer | AE1: J-Ho | AF1: ratogre | AG1: valkohukka | AH1: BiBi | AI1: Bouzzy | AJ1: BudWiser | AK1: Gros Nain | AL1: Harti | AM1: Justicium | AN1: Matt le fou | AO1: Simon_ACP | AP1: Arioso | AQ1: RoterSternHochdah | AR1: Muadib | AS1: Candlejack | AT1: Gaunab | AU1: Prince | AV1: DocMaxx | AW1: Jonny_Kanone | AX1: BlackOrc | AY1: Itzla | AZ1: Wolio | BA1: noraal | BB1: Favi | BC1: cz | BD1: swifty | BE1: Alex05 | BF1: Beppe | BG1: Dirold | BH1: Farina | BI1: Kaltenland | BJ1: Liam | BK1: Matte8 | BL1: Spartako | BM1: Verrinho | BN1: zulu | BO1: Endalos | BP1: The_Ref | BQ1: straume | BR1: bothun | BS1: FrankPedersen | BT1: mynock | BU1: GreatWhiteHope | BV1: Mewash | BW1: Reszka | BX1: Leonek | BY1: Domingo | BZ1: Slimaq | CA1: Warrior1980 | CB1: Juniooor7 | CC1: Shawass | CD1: DonShula | CE1: Garrick | CF1: Purdindas | CG1: JamesEs | CH1: sann0638 | CI1: Valen | CJ1: Loki | CK1: HumptyTrump | CL1: Dark Duke | CM1: Obeliz | CN1: Joanet | CO1: Duke_Luthor_Von_Hawkfire | CP1: Barry | CQ1: Idroj | CR1: Malasnoticias | CS1: Tactel | CT1: Melisqus | CU1: Inforthepain | CV1: Pidpad | CW1: Skuld | CX1: JohnnyD | CY1: Skoberget | CZ1: Dragons | DA1: Pellevin | DB1: Strider84 | DC1: Jokaero | DD1: Phifoe | DE1: Goss | DF1: Madmatt13 | DG1: Elrik | DH1: sigu70 | DI1: Macabeo | DJ1: Balder | DK1: Corwin | DL1: Faccko | DM1: Mufflo | DN1: brocCooli | DO1: Duckwing | DP1: Bernuz | DQ1: Purrelito | DR1: nonumber | DS1: 20Phoenix | DT1: SFisher91 | DU1: Dionysian | DV1: Northernknight | DW1: MadeofWelsh | DX1: Ploppy_McPloppy | DY1: andydavo
A2: Driesfield | R2: R3, 0.5 - 0.5 | BE2: R5, 1 - 0 | BY2: R4, 1 - 0 | CR2: R6, 0.5 - 0.5 | CW2: R1, 0 - 1 | CX2: R1, 1 - 0 | CY2: R1, 1 - 0 | CZ2: R3, 0 - 1 | DC2: R6, 1 - 0 | DE2: R3, 1 - 0 | DF2: R4, 4 - 18 | DG2: R2, 0 - 1 | DI2: R4, 1 - 0 | DK2: R5, 0 - 1 | DM2: R2, 18 - 4 | DN2: R2, 0 - 1 | DP2: R2, 0 - 1 | DQ2: R3, 23 - 5 | DY2: R5, 1 - 0
A3: Malodoror | V3: R3, 0.5 - 0.5 | BC3: R5, 1 - 0 | BZ3: R4, 0.5 - 0.5 | CM3: R6, 0 - 1 | CU3: R1, 0 - 1 | CX3: R1, 0.5 - 0.5 | DA3: R2, 0.5 - 0.5 | DB3: R2, 0 - 1 | DF3: R4, 0 - 1 | DH3: R3, 1 - 0 | DL3: R2, 0 - 1 | DQ3: R2, 0.5 - 0.5 | DS3: R5, 1 - 0 | DV3: R4, 5 - 22 | DW3: R6, 0 - 1
A4: JJ | W4: R3, 1 - 0 | AX4: R5, 1 - 0 | CB4: R4, 0 - 1 | CO4: R6, 0.5 - 0.5 | CW4: R1, 0.5 - 0.5 | CZ4: R1, 0.5 - 0.5 | DB4: R3, 0 - 1 | DE4: R4, 0 - 1 | DF4: R5, 3 - 20 | DG4: R4, 1 - 0 | DJ4: R5, 0 - 1 | DK4: R5, 0.5 - 0.5 | DL4: R6, 1 - 0 | DM4: R2, 0.5 - 0.5 | DO4: R2, 0 - 1 | DQ4: R2, 0 - 1 | DU4: R2, 22 - 6 | DV4: R5, 0.5 - 0.5 | DX4: R4, 0 - 1
A5: Araznaroth | X5: R3, 0.5 - 0.5 | AZ5: R5, 0.5 - 0.5 | CA5: R4, 0.5 - 0.5 | CL5: R6, 0.5 - 0.5 | CX5: R5, 0.5 - 0.5 | CY5: R1, 0 - 1 | CZ5: R1, 1 - 0 | DA5: R1, 0.5 - 0.5 | DB5: R4, 0.5 - 0.5 | DD5: R3, 0.5 - 0.5 | DK5: R2, 0.5 - 0.5 | DL5: R2, 1 - 0 | DN5: R4, 0.5 - 0.5 | DP5: R2, 1 - 0 | DR5: R3, 0.5 - 0.5 | DT5: R3, 21 - 4 | DV5: R6, 0.5 - 0.5 | DX5: R5, 1 - 0 | DY5: R6, 19 - 3
A6: Woete | S6: R3, 0 - 1 | AY6: R5, 1 - 0 | CC6: R4, 1 - 0 | CS6: R6, 1 - 0 | CZ6: R2, 1 - 0 | DA6: R1, 1 - 0 | DB6: R2, 0.5 - 0.5 | DE6: R4, 1 - 0 | DF6: R5, 1 - 0 | DG6: R3, 0 - 1 | DJ6: R2, 0 - 1 | DK6: R2, 1 - 0 | DO6: R5, 0 - 1 | DP6: R2, 0 - 1 | DT6: R5, 1 - 0 | DY6: R2, 0 - 1
A7: gninocker | U7: R3, 1 - 0 | BA7: R5, 0.5 - 0.5 | BV7: R4, 0.5 - 0.5 | CQ7: R6, 0.5 - 0.5 | CT7: R1, 1 - 0 | CY7: R5, 0.5 - 0.5 | DC7: R4, 0.5 - 0.5 | DH7: R3, 1 - 0 | DI7: R3, 1 - 0 | DJ7: R6, 0.5 - 0.5 | DK7: R2, 0 - 1 | DL7: R2, 1 - 0 | DM7: R2, 1 - 0 | DN7: R5, 0 - 1 | DO7: R3, 18 - 3 | DP7: R3, 1 - 0 | DR7: R5, 0.5 - 0.5 | DV7: R2, 18 - 3
A8: Phoenix11 | T8: R3, 0 - 1 | BB8: R5, 0 - 1 | BX8: R4, 0 - 1 | CN8: R6, 1 - 0 | CV8: R1, 0 - 1 | CW8: R1, 1 - 0 | CY8: R2, 1 - 0 | CZ8: R1, 0 - 1 | DD8: R4, 0.5 - 0.5 | DF8: R3, 0 - 1 | DH8: R4, 9 - 11 | DJ8: R2, 1 - 0 | DL8: R5, 1 - 0 | DM8: R5, 1 - 0 | DN8: R2, 0 - 1 | DO8: R2, 0 - 1 | DW8: R5, 0.5 - 0.5
A9: Dekra1979 | Y9: R3, 0.5 - 0.5 | BD9: R5, 1 - 0 | BW9: R4, 0 - 1 | CP9: R6, 0.5 - 0.5 | CW9: R1, 0 - 1 | CX9: R1, 1 - 0 | CY9: R1, 0.5 - 0.5 | CZ9: R3, 0.5 - 0.5 | DC9: R3, 0 - 1 | DD9: R3, 2 - 18 | DF9: R3, 0 - 1 | DH9: R4, 0 - 1 | DJ9: R2, 0.5 - 0.5 | DM9: R2, 0 - 1 | DO9: R2, 0.5 - 0.5 | DT9: R4, 19 - 4 | DU9: R5, 0.5 - 0.5 | DV9: R2, 0.5 - 0.5
A10: Tripleskull | AD10: R2, 1 - 0 | AO10: R1, 0 - 1 | BU10: R3, 1 - 0 | CH10: R6, 1 - 0 | CW10: R4, 1 - 0 | CY10: R4, 1 - 0 | DB10: R2, 1 - 0 | DC10: R2, 0.5 - 0.5 | DD10: R2, 1 - 0 | DG10: R1, 0.5 - 0.5 | DI10: R5, 0 - 1 | DK10: R1, 1 - 0 | DM10: R6, 0.5 - 0.5 | DP10: R2, 12 - 13 | DQ10: R2, 0 - 1 | DV10: R3, 1 - 0 | DX10: R5, 0.5 - 0.5 | DY10: R5, 0.5 - 0.5
A11: MissSweden | AG11: R2, 0.5 - 0.5 | AK11: R1, 0.5 - 0.5 | BT11: R3, 0 - 1 | CJ11: R6, 1 - 0 | CT11: R4, 0 - 1 | DC11: R1, 0.5 - 0.5 | DE11: R3, 0 - 1 | DF11: R2, 1 - 0 | DH11: R2, 0.5 - 0.5 | DI11: R2, 0.5 - 0.5 | DJ11: R1, 0.5 - 0.5 | DK11: R2, 1 - 0 | DL11: R6, 1 - 0 | DT11: R5, 0 - 1 | DW11: R4, 1 - 0 | DX11: R5, 0.5 - 0.5 | DY11: R3, 0 - 1
A12: kfoged | AB12: R2, 1 - 0 | AM12: R1, 0 - 1 | BQ12: R3, 0.5 - 0.5 | CF12: R6, 1 - 0 | CW12: R4, 1 - 0 | CZ12: R4, 0 - 1 | DA12: R3, 0 - 1 | DB12: R3, 0 - 1 | DF12: R2, 1 - 0 | DG12: R2, 1 - 0 | DH12: R1, 1 - 0 | DJ12: R4, 20 - 3 | DK12: R6, 0 - 1 | DM12: R2, 1 - 0 | DO12: R2, 11 - 12 | DT12: R3, 1 - 0 | DU12: R5, 1 - 0
A13: Tank | Z13: R2, 0 - 1 | AI13: R1, 0 - 1 | BS13: R3, 1 - 0 | CK13: R6, 0.5 - 0.5 | CU13: R4, 0.5 - 0.5 | DA13: R6, 0 - 1 | DC13: R2, 0.5 - 0.5 | DD13: R4, 0 - 1 | DE13: R1, 0.5 - 0.5 | DF13: R2, 0 - 1 | DH13: R2, 0 - 1 | DJ13: R2, 1 - 0 | DM13: R2, 20 - 4 | DP13: R4, 0 - 1 | DQ13: R6, 1 - 0 | DR13: R3, 0.5 - 0.5 | DU13: R4, 0 - 1 | DV13: R5, 0 - 1 | DX13: R4, 20 - 4 | DY13: R5, 0.5 - 0.5
A14: Topper | AE14: R2, 0.5 - 0.5 | AH14: R1, 0 - 1 | BO14: R3, 0.5 - 0.5 | CG14: R6, 0 - 1 | CX14: R2, 0 - 1 | CZ14: R4, 0 - 1 | DC14: R2, 0 - 1 | DE14: R2, 1 - 0 | DI14: R1, 0.5 - 0.5 | DJ14: R2, 6 - 22 | DK14: R6, 0.5 - 0.5 | DN14: R6, 1 - 0 | DO14: R1, 1 - 0 | DP14: R2, 0 - 1 | DR14: R5, 0.5 - 0.5 | DT14: R2, 23 - 2 | DU14: R3, 1 - 0 | DV14: R6, 20 - 3 | DW14: R5, 0 - 1
A15: SpecialOne | AC15: R2, 1 - 0 | AJ15: R1, 0.5 - 0.5 | BN15: R3, 0 - 1 | CD15: R6, 0 - 1 | CX15: R4, 1 - 0 | DB15: R2, 0 - 1 | DC15: R6, 0.5 - 0.5 | DF15: R1, 0 - 1 | DG15: R2, 0 - 1 | DI15: R2, 0 - 1 | DL15: R1, 1 - 0 | DN15: R2, 0.5 - 0.5 | DP15: R6, 0 - 1 | DT15: R5, 0.5 - 0.5 | DV15: R5, 1 - 0 | DW15: R3, 1 - 0
A16: Jaqra | AF16: R2, 1 - 0 | AL16: R1, 0 - 1 | BP16: R3, 0 - 1 | CE16: R6, 0 - 1 | DA16: R4, 0 - 1 | DB16: R1, 0 - 1 | DC16: R2, 19 - 3 | DD16: R2, 0 - 1 | DE16: R2, 1 - 0 | DF16: R2, 1 - 0 | DH16: R2, 0 - 1 | DN16: R1, 1 - 0 | DO16: R2, 1 - 0 | DR16: R5, 0 - 1 | DS16: R5, 0 - 1 | DU16: R6, 0.5 - 0.5 | DX16: R3, 0.5 - 0.5
A17: Niebling | AA17: R2, 0.5 - 0.5 | AN17: R1, 0.5 - 0.5 | BR17: R3, 1 - 0 | CI17: R6, 0 - 1 | CV17: R4, 0.5 - 0.5 | CY17: R4, 3 - 19 | DB17: R2, 0.5 - 0.5 | DD17: R1, 1 - 0 | DI17: R2, 1 - 0 | DJ17: R6, 0 - 1 | DL17: R2, 0.5 - 0.5 | DP17: R1, 0 - 1 | DS17: R5, 1 - 0 | DV17: R4, 1 - 0 | DW17: R5, 0.5 - 0.5
A18: Lycos | B18: R3, 0.5 - 0.5 | AG18: R6, 0.5 - 0.5 | BR18: R2, 0.5 - 0.5 | CB18: R5, 1 - 0 | CW18: R2, 0 - 1 | CY18: R1, 0.5 - 0.5 | DB18: R3, 0 - 1 | DC18: R4, 1 - 0 | DE18: R1, 0 - 1 | DF18: R4, 1 - 0 | DH18: R1, 1 - 0 | DI18: R3, 1 - 0 | DM18: R2, 1 - 0 | DN18: R3, 0.5 - 0.5 | DO18: R1, 0.5 - 0.5 | DU18: R2, 1 - 0 | DX18: R1, 0.5 - 0.5 | DY18: R2, 12 - 10
A19: PurpleGoo | F19: R3, 1 - 0 | Z19: R6, 0 - 1 | BO19: R2, 0.5 - 0.5 | CC19: R5, 1 - 0 | CW19: R2, 0 - 1 | CX19: R3, 0.5 - 0.5 | DC19: R3, 0.5 - 0.5 | DE19: R5, 0 - 1 | DF19: R4, 0.5 - 0.5 | DG19: R1, 1 - 0 | DI19: R3, 1 - 0 | DK19: R4, 1 - 0 | DM19: R1, 1 - 0 | DQ19: R2, 0 - 1 | DT19: R1, 0 - 1 | DU19: R5, 0 - 1 | DV19: R1, 1 - 0
A20: Geggster | H20: R3, 1 - 0 | AF20: R6, 0 - 1 | BS20: R2, 0.5 - 0.5 | CA20: R5, 0 - 1 | CW20: R3, 1 - 0 | CX20: R4, 0.5 - 0.5 | CZ20: R1, 1 - 0 | DD20: R2, 0.5 - 0.5 | DE20: R1, 0 - 1 | DF20: R1, 0 - 1 | DG20: R4, 0.5 - 0.5 | DH20: R5, 1 - 0 | DI20: R3, 1 - 0 | DL20: R2, 0.5 - 0.5 | DN20: R1, 0 - 1 | DV20: R1, 0 - 1 | DW20: R2, 1 - 0 | DX20: R3, 1 - 0
A21: Podfrey | G21: R3, 0 - 1 | AC21: R6, 0.5 - 0.5 | BU21: R2, 1 - 0 | BW21: R5, 0.5 - 0.5 | CX21: R1, 0 - 1 | CY21: R3, 1 - 0 | CZ21: R2, 1 - 0 | DC21: R1, 0.5 - 0.5 | DD21: R4, 0.5 - 0.5 | DF21: R5, 1 - 0 | DG21: R3, 0.5 - 0.5 | DI21: R1, 1 - 0 | DK21: R2, 1 - 0 | DL21: R1, 1 - 0 | DO21: R2, 0 - 1 | DS21: R2, 0 - 1 | DU21: R6, 1 - 0 | DW21: R1, 1 - 0 | DY21: R1, 0.5 - 0.5
A22: JimJimany | C22: R3, 0.5 - 0.5 | AB22: R6, 0.5 - 0.5 | BP22: R2, 0.5 - 0.5 | BX22: R5, 0 - 1 | CW22: R3, 22 - 4 | CX22: R2, 1 - 0 | CY22: R2, 1 - 0 | DA22: R1, 0.5 - 0.5 | DB22: R3, 7 - 21 | DC22: R1, 0 - 1 | DF22: R3, 0 - 1 | DH22: R1, 0 - 1 | DI22: R4, 0.5 - 0.5 | DJ22: R2, 0 - 1 | DL22: R5, 0.5 - 0.5 | DP22: R1, 0 - 1 | DQ22: R5, 1 - 0 | DR22: R1, 0.5 - 0.5 | DU22: R1, 0 - 1 | DY22: R2, 0 - 1
A23: Joemanji | D23: R3, 0 - 1 | AD23: R6, 0 - 1 | BN23: R2, 0 - 1 | BZ23: R5, 0 - 1 | DA23: R4, 1 - 0 | DB23: R1, 0.5 - 0.5 | DD23: R5, 0 - 1 | DE23: R4, 1 - 0 | DF23: R6, 0 - 1 | DH23: R3, 0 - 1 | DK23: R1, 1 - 0 | DO23: R6, 0 - 1 | DR23: R1, 1 - 0 | DU23: R5, 0.5 - 0.5 | DV23: R2, 0.5 - 0.5 | DX23: R1, 0 - 1
A24: Mubo | E24: R3, 0.5 - 0.5 | AE24: R6, 0 - 1 | BQ24: R2, 1 - 0 | BV24: R5, 0 - 1 | CZ24: R3, 3 - 19 | DA24: R3, 0.5 - 0.5 | DB24: R5, 0.5 - 0.5 | DE24: R3, 0 - 1 | DH24: R4, 0.5 - 0.5 | DI24: R1, 1 - 0 | DJ24: R1, 0.5 - 0.5 | DP24: R2, 0 - 1 | DR24: R2, 0.5 - 0.5 | DS24: R1, 0 - 1 | DU24: R2, 0 - 1 | DW24: R2, 12 - 13 | DX24: R5, 0 - 1 | DY24: R1, 0.5 - 0.5
A25: Wilzif | I25: R3, 0.5 - 0.5 | AA25: R6, 0 - 1 | BT25: R2, 0.5 - 0.5 | BY25: R5, 1 - 0 | CW25: R1, 0.5 - 0.5 | CX25: R5, 0 - 1 | CZ25: R3, 0.5 - 0.5 | DA25: R2, 0 - 1 | DB25: R4, 0 - 1 | DC25: R4, 1 - 0 | DD25: R3, 0 - 1 | DG25: R5, 1 - 0 | DH25: R4, 0 - 1 | DL25: R4, 0 - 1 | DM25: R2, 1 - 0 | DN25: R2, 0 - 1 | DQ25: R1, 0.5 - 0.5 | DS25: R1, 1 - 0 | DT25: R1, 0 - 1 | DX25: R2, 0.5 - 0.5
A26: MacWitt | M26: R2, 1 - 0 | S26: R6, 1 - 0 | BN26: R5, 0 - 1 | BZ26: R1, 0 - 1 | CI26: R4, 0.5 - 0.5 | CP26: R3, 1 - 0 | CX26: R2, 0.5 - 0.5 | DD26: R3, 0 - 1 | DE26: R2, 0 - 1 | DM26: R5, 0.5 - 0.5 | DQ26: R3, 0 - 1 | DR26: R2, 0 - 1 | DU26: R2, 0 - 1 | DX26: R3, 0.5 - 0.5
A27: Harza | Q27: R2, 0.5 - 0.5 | Y27: R6, 1 - 0 | BQ27: R5, 0.5 - 0.5 | BV27: R1, 0.5 - 0.5 | CH27: R4, 0 - 1 | CR27: R3, 0 - 1 | CW27: R4, 0.5 - 0.5 | DA27: R3, 0 - 1 | DD27: R5, 1 - 0 | DF27: R2, 1 - 0 | DI27: R3, 0.5 - 0.5 | DJ27: R1, 21 - 4 | DO27: R5, 0 - 1 | DR27: R1, 0.5 - 0.5 | DS27: R3, 0.5 - 0.5 | DT27: R5, 23 - 7 | DX27: R2, 0 - 1 | DY27: R2, 0.5 - 0.5
A28: jopotzuki | L28: R2, 0 - 1 | V28: R6, 0.5 - 0.5 | BO28: R5, 0 - 1 | BW28: R1, 0 - 1 | CD28: R4, 0 - 1 | CM28: R3, 1 - 0 | CZ28: R5, 13 - 11 | DA28: R2, 1 - 0 | DC28: R3, 0 - 1 | DE28: R3, 0 - 1 | DF28: R2, 0 - 1 | DI28: R2, 1 - 0 | DN28: R1, 23 - 5 | DP28: R5, 0 - 1 | DS28: R2, 0 - 1 | DT28: R3, 0.5 - 0.5 | DV28: R1, 0.5 - 0.5 | DY28: R2, 0 - 1
A29: edheim | O29: R2, 0 - 1 | U29: R6, 0.5 - 0.5 | BP29: R5, 1 - 0 | BX29: R1, 0.5 - 0.5 | CJ29: R4, 1 - 0 | CL29: R3, 0 - 1 | CZ29: R2, 0.5 - 0.5 | DC29: R2, 0.5 - 0.5 | DH29: R6, 0 - 1 | DJ29: R5, 0.5 - 0.5 | DO29: R1, 21 - 5 | DP29: R5, 0 - 1 | DR29: R1, 0.5 - 0.5 | DS29: R2, 0 - 1 | DU29: R3, 0.5 - 0.5 | DW29: R2, 1 - 0 | DY29: R1, 1 - 0
A30: BeerBeer | J30: R2, 0 - 1 | W30: R6, 1 - 0 | BR30: R5, 0.5 - 0.5 | CC30: R1, 0 - 1 | CG30: R4, 1 - 0 | CN30: R3, 0 - 1 | CW30: R2, 0.5 - 0.5 | DB30: R3, 0.5 - 0.5 | DD30: R2, 0.5 - 0.5 | DG30: R4, 4 - 22 | DH30: R2, 0.5 - 0.5 | DJ30: R5, 1 - 0 | DK30: R5, 0 - 1 | DL30: R2, 1 - 0 | DR30: R3, 0.5 - 0.5 | DS30: R1, 1 - 0 | DT30: R2, 1 - 0 | DU30: R1, 0.5 - 0.5 | DV30: R2, 0 - 1
A31: J-Ho | N31: R2, 0.5 - 0.5 | X31: R6, 1 - 0 | BU31: R5, 0 - 1 | CA31: R1, 0 - 1 | CK31: R4, 0.5 - 0.5 | CO31: R3, 0.5 - 0.5 | CY31: R3, 0.5 - 0.5 | CZ31: R3, 1 - 20 | DA31: R4, 0 - 1 | DD31: R2, 1 - 0 | DG31: R3, 0 - 1 | DJ31: R3, 1 - 0 | DL31: R5, 0.5 - 0.5 | DP31: R1, 6 - 20 | DQ31: R4, 1 - 0 | DR31: R4, 20 - 4 | DS31: R2, 0.5 - 0.5 | DT31: R1, 0.5 - 0.5 | DV31: R1, 1 - 0 | DW31: R2, 0.5 - 0.5 | DX31: R2, 0.5 - 0.5 | DY31: R3, 1 - 0
A32: ratogre | P32: R2, 0 - 1 | T32: R6, 1 - 0 | BS32: R5, 1 - 0 | CB32: R1, 0 - 1 | CF32: R4, 0 - 1 | CQ32: R3, 0 - 1 | CY32: R4, 0 - 1 | DE32: R2, 3 - 18 | DG32: R2, 0.5 - 0.5 | DH32: R3, 0 - 1 | DM32: R3, 0.5 - 0.5 | DQ32: R5, 0.5 - 0.5 | DR32: R2, 0 - 1 | DT32: R2, 0.5 - 0.5 | DW32: R1, 0 - 1
A33: valkohukka | K33: R2, 0.5 - 0.5 | R33: R6, 0.5 - 0.5 | BT33: R5, 1 - 0 | BY33: R1, 0.5 - 0.5 | CE33: R4, 1 - 0 | CS33: R3, 1 - 0 | CY33: R2, 1 - 0 | DB33: R2, 1 - 0 | DE33: R5, 1 - 0 | DF33: R3, 1 - 0 | DH33: R6, 20 - 5 | DL33: R1, 22 - 4 | DN33: R5, 0 - 1 | DU33: R2, 0.5 - 0.5 | DV33: R2, 0 - 1 | DW33: R1, 0.5 - 0.5 | DX33: R6, 0.5 - 0.5 | DY33: R1, 0.5 - 0.5
A34: BiBi | N34: R1, 1 - 0 | AQ34: R3, 1 - 0 | BJ34: R4, 1 - 0 | BW34: R2, 0.5 - 0.5 | CX34: R1, 0 - 1 | DA34: R5, 0 - 1 | DB34: R6, 1 - 0 | DD34: R1, 9 - 9 | DE34: R6, 0.5 - 0.5 | DF34: R1, 0 - 1 | DG34: R1, 0 - 1 | DJ34: R2, 0.5 - 0.5 | DM34: R4, 0 - 1 | DN34: R5, 0.5 - 0.5 | DQ34: R3, 1 - 0 | DR34: R6, 0 - 1 | DT34: R4, 0.5 - 0.5 | DU34: R3, 5 - 22 | DX34: R1, 0.5 - 0.5 | DY34: R4, 0.5 - 0.5
A35: Bouzzy | M35: R1, 1 - 0 | AT35: R3, 1 - 0 | BF35: R4, 0 - 1 | CA35: R2, 0.5 - 0.5 | CX35: R5, 1 - 0 | DC35: R6, 0.5 - 0.5 | DD35: R1, 0 - 1 | DI35: R1, 0.5 - 0.5 | DJ35: R5, 0 - 1 | DK35: R3, 1 - 0 | DO35: R4, 0.5 - 0.5 | DP35: R2, 0.5 - 0.5 | DQ35: R6, 6 - 6 | DS35: R4, 3 - 18 | DT35: R1, 0 - 1 | DU35: R6, 1 - 0 | DW35: R4, 0 - 1 | DY35: R1, 1 - 0
A36: BudWiser | O36: R1, 0.5 - 0.5 | AS36: R3, 0.5 - 0.5 | BH36: R4, 0 - 1 | BV36: R2, 0 - 1 | CY36: R1, 0.5 - 0.5 | DB36: R1, 0 - 1 | DD36: R6, 0.5 - 0.5 | DG36: R6, 0.5 - 0.5 | DH36: R1, 1 - 0 | DI36: R3, 1 - 0 | DJ36: R3, 0 - 1 | DK36: R4, 0 - 1 | DL36: R6, 0 - 1 | DM36: R1, 0.5 - 0.5 | DN36: R2, 0 - 1 | DP36: R3, 0.5 - 0.5 | DQ36: R5, 0 - 1 | DR36: R2, 9 - 11 | DT36: R1, 0 - 1 | DU36: R1, 0.5 - 0.5 | DW36: R6, 0.5 - 0.5 | DX36: R4, 0 - 1
A37: Gros Nain | K37: R1, 0.5 - 0.5 | AW37: R3, 0 - 1 | BG37: R4, 0.5 - 0.5 | BX37: R2, 1 - 0 | CW37: R1, 0 - 1 | CY37: R5, 0.5 - 0.5 | DA37: R6, 20 - 5 | DB37: R1, 1 - 0 | DE37: R1, 23 - 3 | DF37: R1, 1 - 0 | DG37: R6, 1 - 0 | DJ37: R4, 1 - 0 | DK37: R2, 22 - 3 | DL37: R1, 0 - 1 | DN37: R3, 1 - 0 | DO37: R5, 0 - 1 | DP37: R4, 20 - 4 | DQ37: R2, 0.5 - 0.5 | DS37: R1, 1 - 0 | DU37: R4, 0.5 - 0.5 | DV37: R4, 0.5 - 0.5 | DW37: R2, 19 - 5 | DY37: R6, 0 - 1
A38: Harti | P38: R1, 1 - 0 | AU38: R3, 0 - 1 | BK38: R4, 0.5 - 0.5 | CC38: R2, 1 - 0 | CZ38: R5, 0 - 1 | DA38: R1, 1 - 0 | DB38: R5, 0 - 1 | DD38: R6, 0 - 1 | DE38: R6, 0 - 1 | DG38: R1, 0 - 1 | DJ38: R1, 1 - 0 | DK38: R2, 0 - 1 | DL38: R3, 0.5 - 0.5 | DP38: R5, 1 - 0 | DQ38: R4, 0.5 - 0.5 | DT38: R4, 0 - 1 | DU38: R2, 12 - 11 | DV38: R1, 0 - 1 | DX38: R6, 0.5 - 0.5
A39: Justicium | L39: R1, 1 - 0 | AP39: R3, 0 - 1 | BL39: R4, 0 - 1 | BZ39: R2, 1 - 0 | CY39: R5, 18 - 2 | CZ39: R1, 0 - 1 | DD39: R4, 19 - 2 | DE39: R1, 0 - 1 | DF39: R6, 0 - 1 | DH39: R1, 1 - 0 | DJ39: R3, 1 - 0 | DL39: R5, 0 - 1 | DM39: R3, 0 - 1 | DN39: R4, 1 - 0 | DO39: R2, 1 - 0 | DR39: R4, 0 - 1 | DS39: R2, 23 - 5 | DV39: R6, 1 - 0 | DW39: R1, 0 - 1
A40: Matt le fou | Q40: R1, 0.5 - 0.5 | AV40: R3, 0.5 - 0.5 | BI40: R4, 0 - 1 | BY40: R2, 0 - 1 | CW40: R5, 0.5 - 0.5 | DC40: R1, 0 - 1 | DD40: R6, 1 - 0 | DF40: R1, 9 - 10 | DH40: R4, 0 - 1 | DI40: R6, 0.5 - 0.5 | DK40: R1, 0 - 1 | DL40: R4, 0 - 1 | DM40: R5, 0.5 - 0.5 | DP40: R3, 1 - 0 | DR40: R1, 0 - 1 | DS40: R6, 0 - 1 | DT40: R3, 0 - 1 | DX40: R2, 22 - 6
A41: Simon_ACP | J41: R1, 1 - 0 | AR41: R3, 1 - 0 | BM41: R4, 0.5 - 0.5 | CB41: R2, 1 - 0 | CY41: R4, 0 - 1 | DC41: R6, 0.5 - 0.5 | DD41: R1, 1 - 0 | DH41: R6, 0 - 1 | DI41: R1, 0 - 1 | DK41: R5, 1 - 0 | DM41: R2, 0 - 1 | DO41: R3, 1 - 0 | DP41: R4, 0.5 - 0.5 | DR41: R1, 0 - 1 | DT41: R6, 1 - 0 | DU41: R1, 0 - 1 | DV41: R2, 20 - 4
A42: Arioso | AM42: R3, 1 - 0 | AZ42: R6, 0 - 1 | BL42: R5, 0 - 1 | BP42: R1, 1 - 0 | CW42: R4, 0.5 - 0.5 | CZ42: R2, 0.5 - 0.5 | DB42: R2, 20 - 3 | DG42: R1, 0 - 1 | DI42: R1, 0.5 - 0.5 | DL42: R2, 0 - 1 | DN42: R4, 0.5 - 0.5 | DU42: R6, 0 - 1 | DV42: R2, 1 - 0 | DW42: R1, 0.5 - 0.5
A43: RoterSternHochdah | AH43: R3, 0 - 1 | BB43: R6, 1 - 0 | BK43: R5, 0 - 1 | BR43: R1, 0.5 - 0.5 | CW43: R4, 0 - 1 | CX43: R3, 0.5 - 0.5 | CZ43: R5, 1 - 0 | DC43: R1, 1 - 0 | DD43: R1, 0 - 1 | DN43: R2, 0.5 - 0.5 | DO43: R4, 1 - 0 | DQ43: R2, 0.5 - 0.5 | DR43: R2, 1 - 0 | DS43: R1, 1 - 0 | DV43: R6, 0.5 - 0.5 | DW43: R5, 1 - 0 | DY43: R5, 0 - 1
A44: Muadib | AO44: R3, 0 - 1 | AY44: R6, 0 - 1 | BG44: R5, 0.5 - 0.5 | BS44: R1, 1 - 0 | CW44: R5, 1 - 0 | CX44: R2, 1 - 0 | CZ44: R2, 0 - 1 | DA44: R4, 0 - 1 | DF44: R1, 0 - 1 | DJ44: R6, 0 - 1 | DM44: R2, 1 - 0 | DP44: R4, 0 - 1 | DQ44: R2, 1 - 0 | DU44: R2, 1 - 0 | DX44: R6, 0.5 - 0.5 | DY44: R1, 0 - 1
A45: Candlejack | AJ45: R3, 0.5 - 0.5 | BE45: R6, 0 - 1 | BI45: R5, 1 - 0 | BU45: R1, 0 - 1 | CY45: R4, 0.5 - 0.5 | DA45: R5, 0.5 - 0.5 | DB45: R3, 0.5 - 0.5 | DD45: R1, 0.5 - 0.5 | DG45: R1, 1 - 0 | DK45: R3, 0 - 1 | DL45: R4, 0.5 - 0.5 | DO45: R2, 1 - 0 | DR45: R6, 1 - 0 | DS45: R2, 0.5 - 0.5 | DT45: R5, 0.5 - 0.5 | DU45: R4, 3 - 20 | DV45: R1, 0.5 - 0.5 | DW45: R5, 17 - 2
A46: Gaunab | AI46: R3, 0 - 1 | BC46: R6, 1 - 0 | BH46: R5, 0 - 1 | BT46: R1, 0 - 1 | CZ46: R4, 1 - 0 | DA46: R2, 0.5 - 0.5 | DB46: R1, 0.5 - 0.5 | DC46: R1, 0 - 1 | DE46: R4, 0 - 1 | DK46: R2, 1 - 0 | DP46: R3, 0.5 - 0.5 | DQ46: R4, 0.5 - 0.5 | DR46: R1, 0 - 1 | DT46: R6, 1 - 0 | DW46: R2, 1 - 0
A47: Prince | AL47: R3, 1 - 0 | BA47: R6, 1 - 0 | BF47: R5, 1 - 0 | BO47: R1, 1 - 0 | CW47: R2, 0.5 - 0.5 | CY47: R5, 0.5 - 0.5 | DE47: R1, 0.5 - 0.5 | DG47: R2, 0.5 - 0.5 | DH47: R1, 0 - 1 | DJ47: R2, 0.5 - 0.5 | DK47: R4, 0 - 1 | DP47: R2, 1 - 0 | DR47: R6, 0 - 1 | DT47: R2, 1 - 0 | DU47: R2, 0.5 - 0.5 | DX47: R1, 0.5 - 0.5 | DY47: R6, 1 - 0
A48: DocMaxx | AN48: R3, 0.5 - 0.5 | AX48: R6, 1 - 0 | BM48: R5, 0 - 1 | BN48: R1, 0.5 - 0.5 | CW48: R3, 0 - 1 | DB48: R1, 0.5 - 0.5 | DE48: R5, 1 - 0 | DG48: R2, 0 - 1 | DI48: R1, 0 - 1 | DJ48: R2, 1 - 0 | DM48: R4, 1 - 0 | DO48: R4, 0 - 1 | DP48: R2, 0 - 1 | DS48: R6, 0.5 - 0.5 | DT48: R1, 1 - 0 | DY48: R2, 0.5 - 0.5
A49: Jonny_Kanone | AK49: R3, 1 - 0 | BD49: R6, 0.5 - 0.5 | BJ49: R5, 0 - 1 | BQ49: R1, 0.5 - 0.5 | CX49: R4, 1 - 0 | CY49: R6, 5 - 19 | DE49: R1, 1 - 0 | DH49: R1, 0.5 - 0.5 | DJ49: R4, 0 - 1 | DL49: R2, 1 - 0 | DM49: R2, 0 - 1 | DO49: R3, 1 - 0 | DT49: R2, 1 - 0 | DU49: R1, 0 - 1 | DV49: R5, 0.5 - 0.5 | DW49: R6, 0 - 1 | DX49: R2, 0.5 - 0.5
A50: BlackOrc | D50: R5, 0 - 1 | AV50: R6, 0 - 1 | BT50: R4, 0 - 1 | CO50: R2, 0.5 - 0.5 | CU50: R3, 1 - 0 | CZ50: R2, 1 - 0 | DC50: R2, 0.5 - 0.5 | DF50: R1, 0.5 - 0.5 | DG50: R1, 0.5 - 0.5 | DJ50: R3, 0 - 1 | DK50: R1, 1 - 0 | DN50: R6, 10 - 11 | DO50: R2, 0.5 - 0.5 | DT50: R6, 0 - 1 | DX50: R1, 17 - 2 | DY50: R4, 0 - 1
A51: Itzla | F51: R5, 0 - 1 | AR51: R6, 1 - 0 | BR51: R4, 1 - 0 | CN51: R2, 1 - 0 | CX51: R3, 0.5 - 0.5 | DB51: R1, 0.5 - 0.5 | DE51: R6, 1 - 0 | DH51: R1, 0 - 1 | DJ51: R1, 0 - 1 | DM51: R6, 0 - 1 | DQ51: R5, 2 - 20 | DU51: R1, 6 - 21 | DV51: R6, 1 - 0 | DW51: R6, 1 - 0 | DX51: R4, 1 - 0
A52: Wolio | E52: R5, 0.5 - 0.5 | AP52: R6, 1 - 0 | BP52: R4, 1 - 0 | CP52: R2, 1 - 0 | CV52: R3, 0 - 1 | CW52: R1, 0 - 1 | CY52: R2, 0 - 1 | DE52: R1, 1 - 0 | DI52: R1, 1 - 0 | DJ52: R2, 22 - 3 | DL52: R1, 0 - 1 | DT52: R6, 0.5 - 0.5 | DU52: R4, 1 - 0 | DW52: R6, 0.5 - 0.5
A53: noraal | G53: R5, 0.5 - 0.5 | AU53: R6, 0 - 1 | BN53: R4, 1 - 0 | CS53: R2, 1 - 0 | CW53: R3, 1 - 0 | CX53: R1, 1 - 0 | DC53: R4, 13 - 13 | DF53: R1, 0.5 - 0.5 | DG53: R5, 1 - 0 | DH53: R1, 1 - 0 | DJ53: R4, 0.5 - 0.5 | DK53: R6, 0.5 - 0.5 | DN53: R2, 1 - 0 | DO53: R1, 0.5 - 0.5 | DR53: R4, 0 - 1 | DU53: R6, 1 - 0 | DW53: R1, 9 - 10 | DY53: R6, 0.5 - 0.5
A54: Favi | H54: R5, 1 - 0 | AQ54: R6, 0 - 1 | BS54: R4, 1 - 0 | CR54: R2, 0 - 1 | CX54: R2, 1 - 0 | CZ54: R3, 0 - 1 | DD54: R1, 0 - 1 | DN54: R2, 0 - 1 | DQ54: R1, 0.5 - 0.5 | DS54: R1, 3 - 18 | DU54: R6, 1 - 0 | DV54: R4, 0.5 - 0.5
A55: cz | C55: R5, 0 - 1 | AT55: R6, 0 - 1 | BU55: R4, 0.5 - 0.5 | CQ55: R2, 0.5 - 0.5 | CT55: R3, 0 - 1 | CW55: R3, 3 - 20 | CY55: R1, 0.5 - 0.5 | DE55: R1, 1 - 0 | DF55: R4, 1 - 0 | DI55: R1, 0 - 1 | DM55: R2, 0.5 - 0.5 | DP55: R1, 0 - 1 | DR55: R1, 21 - 6 | DS55: R6, 0 - 1 | DW55: R4, 1 - 0
A56: swifty | I56: R5, 0 - 1 | AW56: R6, 0.5 - 0.5 | BQ56: R4, 1 - 0 | CL56: R2, 0.5 - 0.5 | CW56: R2, 1 - 0 | CY56: R3, 0 - 1 | CZ56: R3, 1 - 0 | DB56: R1, 0 - 1 | DG56: R1, 0.5 - 0.5 | DI56: R4, 13 - 12 | DK56: R4, 0 - 1 | DN56: R1, 0 - 1 | DR56: R6, 1 - 0 | DT56: R4, 1 - 0 | DW56: R6, 1 - 0 | DX56: R6, 5 - 18 | DY56: R1, 20 - 2
A57: Alex05 | B57: R5, 0 - 1 | AS57: R6, 1 - 0 | BO57: R4, 1 - 0 | CM57: R2, 1 - 0 | DA57: R3, 1 - 0 | DC57: R1, 0 - 1 | DL57: R2, 1 - 0 | DM57: R1, 0 - 1 | DR57: R6, 0 - 1 | DS57: R4, 1 - 0 | DT57: R3, 0 - 1 | DV57: R1, 11 - 11 | DX57: R6, 0 - 1 | DY57: R4, 19 - 3
A58: Beppe | AI58: R4, 1 - 0 | AU58: R5, 0 - 1 | BX58: R6, 0.5 - 0.5 | CL58: R1, 1 - 0 | CW58: R5, 0.5 - 0.5 | CX58: R6, 1 - 0 | CY58: R4, 0.5 - 0.5 | DA58: R2, 0 - 1 | DB58: R2, 5 - 18 | DC58: R5, 0 - 1 | DD58: R6, 0 - 1 | DE58: R2, 1 - 0 | DH58: R2, 0 - 1 | DM58: R3, 0 - 1 | DQ58: R3, 1 - 0 | DU58: R2, 0 - 1 | DV58: R1, 0 - 1
A59: Dirold | AK59: R4, 0.5 - 0.5 | AR59: R5, 0.5 - 0.5 | BY59: R6, 1 - 0 | CQ59: R1, 1 - 0 | CW59: R1, 0 - 1 | CX59: R2, 1 - 0 | CZ59: R1, 0.5 - 0.5 | DB59: R2, 0.5 - 0.5 | DC59: R5, 0.5 - 0.5 | DD59: R2, 18 - 4 | DF59: R5, 1 - 0 | DK59: R3, 0 - 1 | DQ59: R3, 0 - 1 | DR59: R3, 0 - 1 | DU59: R1, 0.5 - 0.5 | DY59: R5, 7 - 20
A60: Farina | AJ60: R4, 1 - 0 | AT60: R5, 1 - 0 | BZ60: R6, 0.5 - 0.5 | CS60: R1, 0 - 1 | CX60: R2, 0 - 1 | CZ60: R5, 0.5 - 0.5 | DA60: R1, 0 - 1 | DC60: R2, 0 - 1 | DE60: R2, 0.5 - 0.5 | DF60: R2, 21 - 4 | DO60: R3, 0.5 - 0.5 | DR60: R5, 1 - 0 | DS60: R1, 0.5 - 0.5 | DY60: R1, 0.5 - 0.5
A61: Kaltenland | AN61: R4, 1 - 0 | AS61: R5, 0 - 1 | CC61: R6, 1 - 0 | CN61: R1, 1 - 0 | CW61: R4, 1 - 0 | CX61: R5, 0.5 - 0.5 | CY61: R1, 1 - 0 | CZ61: R2, 0.5 - 0.5 | DA61: R6, 1 - 0 | DD61: R2, 0 - 1 | DF61: R3, 0 - 1 | DG61: R2, 12 - 11 | DH61: R5, 1 - 0 | DJ61: R3, 0 - 1 | DP61: R3, 0 - 1 | DR61: R5, 0.5 - 0.5 | DT61: R1, 0 - 1 | DW61: R1, 1 - 0 | DX61: R6, 0.5 - 0.5
A62: Liam | AH62: R4, 0 - 1 | AW62: R5, 1 - 0 | CB62: R6, 1 - 0 | CR62: R1, 1 - 0 | CW62: R2, 1 - 0 | CX62: R1, 1 - 0 | CY62: R5, 0.5 - 0.5 | CZ62: R6, 0 - 1 | DA62: R1, 1 - 0 | DC62: R2, 0.5 - 0.5 | DD62: R5, 0 - 1 | DI62: R5, 0.5 - 0.5 | DJ62: R3, 0 - 1 | DM62: R3, 1 - 0 | DN62: R6, 1 - 0 | DQ62: R5, 0.5 - 0.5 | DX62: R1, 1 - 0 | DY62: R1, 0 - 1
A63: Matte8 | AL63: R4, 0.5 - 0.5 | AQ63: R5, 1 - 0 | BW63: R6, 0.5 - 0.5 | CO63: R1, 1 - 0 | CX63: R1, 0.5 - 0.5 | CY63: R2, 0.5 - 0.5 | CZ63: R1, 1 - 0 | DA63: R5, 1 - 0 | DB63: R5, 0 - 1 | DE63: R2, 9 - 8 | DH63: R3, 1 - 0 | DI63: R2, 1 - 0 | DK63: R2, 0 - 1 | DN63: R3, 0 - 1 | DO63: R3, 1 - 0 | DR63: R1, 0 - 1
A64: Spartako | AM64: R4, 1 - 0 | AP64: R5, 1 - 0 | CA64: R6, 0 - 1 | CP64: R1, 0 - 1 | CW64: R6, 0 - 1 | CY64: R1, 0 - 1 | DC64: R2, 6 - 7 | DD64: R5, 0 - 1 | DF64: R2, 1 - 0 | DK64: R3, 1 - 0 | DL64: R3, 1 - 0 | DT64: R1, 0 - 1 | DW64: R1, 0.5 - 0.5 | DX64: R5, 6 - 22 | DY64: R3, 0 - 1
A65: Verrinho | AO65: R4, 0.5 - 0.5 | AV65: R5, 1 - 0 | BV65: R6, 0 - 1 | CM65: R1, 1 - 0 | CW65: R1, 0 - 1 | CY65: R6, 1 - 0 | CZ65: R4, 0.5 - 0.5 | DC65: R3, 1 - 0 | DG65: R2, 1 - 0 | DH65: R2, 4 - 21 | DI65: R4, 0.5 - 0.5 | DL65: R3, 0 - 1 | DN65: R6, 1 - 0 | DP65: R3, 0.5 - 0.5 | DS65: R1, 0.5 - 0.5 | DX65: R1, 0 - 1 | DY65: R3, 20 - 6
A66: zulu | O66: R3, 1 - 0 | W66: R2, 1 - 0 | Z66: R5, 1 - 0 | AV66: R1, 0.5 - 0.5 | BA66: R4, 0 - 1 | CW66: R1, 0 - 1 | CX66: R1, 0 - 1 | CZ66: R6, 0 - 1 | DD66: R2, 0.5 - 0.5 | DE66: R4, 0 - 1 | DG66: R5, 0.5 - 0.5 | DH66: R5, 0.5 - 0.5 | DK66: R1, 6 - 22 | DN66: R2, 0.5 - 0.5 | DO66: R5, 0.5 - 0.5 | DP66: R4, 0.5 - 0.5 | DQ66: R4, 0.5 - 0.5 | DR66: R3, 0.5 - 0.5 | DS66: R3, 0.5 - 0.5 | DT66: R3, 1 - 0 | DU66: R1, 1 - 0 | DV66: R6, 0 - 1 | DW66: R5, 0.5 - 0.5 | DY66: R2, 1 - 0
A67: Endalos | N67: R3, 0.5 - 0.5 | S67: R2, 0.5 - 0.5 | AB67: R5, 1 - 0 | AU67: R1, 0 - 1 | BE67: R4, 0 - 1 | CY67: R6, 0.5 - 0.5 | DB67: R4, 1 - 0 | DC67: R2, 1 - 0 | DI67: R5, 0 - 1 | DJ67: R5, 1 - 0 | DK67: R4, 0 - 1 | DL67: R2, 0.5 - 0.5 | DN67: R4, 0 - 1 | DR67: R1, 0 - 1 | DW67: R3, 0 - 1 | DY67: R5, 0.5 - 0.5
A68: The_Ref | P68: R3, 1 - 0 | V68: R2, 0.5 - 0.5 | AC68: R5, 0 - 1 | AP68: R1, 0 - 1 | AZ68: R4, 0 - 1 | CW68: R6, 0.5 - 0.5 | CZ68: R1, 1 - 0 | DB68: R5, 0.5 - 0.5 | DC68: R4, 0 - 1 | DI68: R2, 0.5 - 0.5 | DK68: R5, 0 - 1 | DL68: R4, 0.5 - 0.5 | DN68: R5, 1 - 0 | DO68: R4, 0.5 - 0.5 | DS68: R1, 0 - 1 | DU68: R5, 0 - 1 | DV68: R3, 1 - 0 | DW68: R2, 1 - 0 | DX68: R3, 0.5 - 0.5
A69: straume | L69: R3, 0.5 - 0.5 | X69: R2, 0 - 1 | AA69: R5, 0.5 - 0.5 | AW69: R1, 0.5 - 0.5 | BD69: R4, 0 - 1 | CT69: R6, 0.5 - 0.5 | CX69: R1, 0.5 - 0.5 | DB69: R2, 0.5 - 0.5 | DC69: R5, 0.5 - 0.5 | DD69: R2, 4 - 21 | DI69: R4, 1 - 0 | DJ69: R4, 0.5 - 0.5 | DK69: R5, 0 - 1 | DM69: R1, 9 - 10 | DN69: R5, 1 - 0 | DP69: R3, 0.5 - 0.5 | DS69: R5, 1 - 0 | DT69: R1, 0.5 - 0.5 | DV69: R3, 0 - 1 | DW69: R5, 1 - 0
A70: bothun | Q70: R3, 0 - 1 | R70: R2, 0.5 - 0.5 | AD70: R5, 0.5 - 0.5 | AQ70: R1, 0.5 - 0.5 | AY70: R4, 0 - 1 | CV70: R6, 1 - 0 | CY70: R4, 0 - 1 | CZ70: R2, 1 - 0 | DA70: R1, 1 - 0 | DD70: R4, 1 - 0 | DF70: R2, 0.5 - 0.5 | DJ70: R4, 1 - 0 | DN70: R5, 23 - 4 | DO70: R1, 5 - 23 | DP70: R4, 1 - 0 | DQ70: R5, 1 - 0 | DU70: R3, 0.5 - 0.5 | DV70: R5, 0 - 1 | DW70: R2, 0 - 1 | DX70: R3, 1 - 0 | DY70: R1, 0 - 1
A71: FrankPedersen | M71: R3, 0 - 1 | T71: R2, 0.5 - 0.5 | AF71: R5, 0 - 1 | AR71: R1, 0 - 1 | BB71: R4, 0 - 1 | CU71: R6, 0.5 - 0.5 | CW71: R1, 1 - 0 | CX71: R4, 1 - 0 | DA71: R2, 1 - 0 | DG71: R4, 1 - 0 | DH71: R2, 1 - 0 | DL71: R5, 1 - 0 | DM71: R4, 1 - 0 | DN71: R4, 1 - 0 | DP71: R5, 0.5 - 0.5 | DS71: R3, 0 - 1 | DT71: R5, 1 - 0 | DW71: R1, 0.5 - 0.5 | DY71: R3, 0 - 1
A72: mynock | K72: R3, 1 - 0 | Y72: R2, 0.5 - 0.5 | AG72: R5, 0 - 1 | AT72: R1, 1 - 0 | AX72: R4, 1 - 0 | CY72: R2, 0 - 1 | DA72: R6, 0.5 - 0.5 | DC72: R5, 0 - 1 | DE72: R5, 1 - 0 | DG72: R2, 0 - 1 | DH72: R4, 1 - 0 | DJ72: R1, 9 - 9 | DL72: R5, 0.5 - 0.5 | DM72: R4, 0 - 1 | DP72: R6, 1 - 0 | DQ72: R4, 1 - 0 | DV72: R1, 0.5 - 0.5 | DX72: R5, 0 - 1 | DY72: R3, 1 - 0
A73: GreatWhiteHope | J73: R3, 0 - 1 | U73: R2, 0 - 1 | AE73: R5, 1 - 0 | AS73: R1, 1 - 0 | BC73: R4, 0.5 - 0.5 | CX73: R6, 0.5 - 0.5 | CZ73: R1, 1 - 0 | DE73: R2, 1 - 0 | DF73: R4, 1 - 0 | DL73: R4, 0 - 1 | DM73: R5, 0 - 1 | DO73: R4, 0.5 - 0.5 | DP73: R4, 0 - 1 | DQ73: R1, 9 - 11 | DR73: R5, 0.5 - 0.5 | DS73: R3, 0 - 1 | DX73: R1, 1 - 0
A74: Mewash | G74: R4, 0.5 - 0.5 | X74: R5, 1 - 0 | AA74: R1, 0.5 - 0.5 | AJ74: R2, 1 - 0 | BM74: R6, 1 - 0 | CX74: R3, 0 - 1 | CY74: R6, 0 - 1 | DA74: R5, 0 - 1 | DC74: R3, 1 - 0 | DL74: R1, 0.5 - 0.5 | DM74: R6, 1 - 0 | DN74: R4, 20 - 4 | DP74: R1, 0 - 1 | DS74: R5, 1 - 0 | DY74: R1, 20 - 5
A75: Reszka | I75: R4, 1 - 0 | U75: R5, 0.5 - 0.5 | AB75: R1, 1 - 0 | AH75: R2, 0.5 - 0.5 | BK75: R6, 0.5 - 0.5 | CX75: R3, 0.5 - 0.5 | CY75: R3, 0 - 1 | DA75: R6, 0 - 1 | DB75: R3, 0.5 - 0.5 | DJ75: R3, 0 - 1 | DK75: R6, 1 - 0 | DM75: R1, 0 - 1 | DT75: R5, 0.5 - 0.5 | DU75: R1, 4 - 20 | DV75: R4, 0 - 1
A76: Leonek | H76: R4, 1 - 0 | V76: R5, 1 - 0 | AC76: R1, 0.5 - 0.5 | AK76: R2, 0 - 1 | BF76: R6, 0.5 - 0.5 | CW76: R3, 1 - 0 | CX76: R3, 20 - 6 | CY76: R2, 0 - 1 | DA76: R3, 0 - 1 | DF76: R3, 0 - 1 | DN76: R1, 1 - 0 | DP76: R6, 0 - 1 | DV76: R5, 1 - 0 | DY76: R2, 0 - 1
A77: Domingo | B77: R4, 0 - 1 | Y77: R5, 0 - 1 | AG77: R1, 0.5 - 0.5 | AN77: R2, 1 - 0 | BG77: R6, 0 - 1 | CW77: R3, 1 - 0 | CZ77: R6, 1 - 0 | DB77: R4, 23 - 4 | DH77: R3, 0.5 - 0.5 | DK77: R1, 1 - 0 | DM77: R3, 1 - 0 | DO77: R6, 0.5 - 0.5 | DP77: R1, 1 - 0 | DR77: R5, 0 - 1 | DU77: R5, 1 - 0 | DX77: R5, 0 - 1
A78: Slimaq | C78: R4, 0.5 - 0.5 | W78: R5, 1 - 0 | Z78: R1, 1 - 0 | AM78: R2, 0 - 1 | BH78: R6, 0.5 - 0.5 | CW78: R2, 1 - 0 | CX78: R6, 1 - 0 | CZ78: R2, 21 - 3 | DA78: R4, 1 - 0 | DC78: R2, 0 - 1 | DG78: R3, 0 - 1 | DJ78: R2, 1 - 0 | DQ78: R1, 0 - 1 | DX78: R5, 0.5 - 0.5
A79: Warrior1980 | E79: R4, 0.5 - 0.5 | T79: R5, 1 - 0 | AE79: R1, 1 - 0 | AI79: R2, 0.5 - 0.5 | BL79: R6, 1 - 0 | CW79: R6, 1 - 0 | CZ79: R3, 1 - 0 | DD79: R3, 0.5 - 0.5 | DK79: R1, 0 - 1 | DL79: R1, 1 - 0 | DN79: R6, 1 - 0 | DS79: R4, 0 - 1 | DU79: R5, 1 - 0 | DW79: R1, 20 - 4 | DX79: R6, 0.5 - 0.5
A80: Juniooor7 | D80: R4, 1 - 0 | R80: R5, 0 - 1 | AF80: R1, 1 - 0 | AO80: R2, 0 - 1 | BJ80: R6, 0 - 1 | CY80: R3, 1 - 0 | DA80: R3, 0 - 1 | DE80: R2, 0 - 1 | DI80: R3, 1 - 0 | DL80: R6, 0 - 1 | DO80: R1, 0.5 - 0.5 | DQ80: R2, 1 - 0 | DT80: R1, 2 - 17 | DY80: R5, 0.5 - 0.5
A81: Shawass | F81: R4, 0 - 1 | S81: R5, 0 - 1 | AD81: R1, 1 - 0 | AL81: R2, 0 - 1 | BI81: R6, 0 - 1 | CZ81: R2, 1 - 0 | DC81: R3, 17 - 3 | DE81: R3, 0.5 - 0.5 | DJ81: R1, 0.5 - 0.5 | DL81: R2, 6 - 19 | DR81: R5, 0 - 1 | DS81: R1, 20 - 4 | DU81: R6, 0 - 1 | DW81: R5, 1 - 0
A82: DonShula | O82: R6, 1 - 0 | AB82: R4, 1 - 0 | CQ82: R5, 0 - 1 | CT82: R2, 0.5 - 0.5 | CW82: R2, 20 - 8 | DE82: R1, 0.5 - 0.5 | DK82: R6, 0 - 1 | DL82: R4, 1 - 0 | DN82: R1, 0 - 1 | DP82: R1, 1 - 0 | DQ82: R6, 1 - 0 | DR82: R2, 0.5 - 0.5 | DS82: R3, 1 - 0 | DV82: R2, 1 - 0
A83: Garrick | P83: R6, 1 - 0 | AG83: R4, 0 - 1 | CS83: R5, 0 - 1 | CW83: R1, 5 - 21 | CX83: R2, 0 - 1 | DB83: R3, 0 - 1 | DE83: R4, 6 - 21 | DF83: R1, 0.5 - 0.5 | DK83: R1, 0 - 1 | DL83: R6, 0 - 1 | DO83: R5, 0 - 1 | DP83: R5, 0.5 - 0.5 | DQ83: R1, 0.5 - 0.5 | DR83: R2, 0 - 1 | DU83: R2, 1 - 0 | DV83: R2, 0.5 - 0.5 | DW83: R3, 1 - 0 | DY83: R2, 0.5 - 0.5
A84: Purdindas | L84: R6, 0 - 1 | AF84: R4, 1 - 0 | CP84: R5, 1 - 0 | CW84: R5, 0.5 - 0.5 | CX84: R6, 1 - 0 | CY84: R2, 0.5 - 0.5 | DG84: R1, 0.5 - 0.5 | DL84: R1, 0 - 1 | DM84: R6, 0.5 - 0.5 | DO84: R6, 0 - 1 | DP84: R6, 0.5 - 0.5 | DR84: R3, 0 - 1 | DS84: R2, 0 - 1 | DT84: R1, 1 - 0 | DU84: R4, 1 - 0 | DY84: R2, 0 - 1
A85: JamesEs | N85: R6, 1 - 0 | AD85: R4, 0 - 1 | CM85: R5, 0 - 1 | CW85: R2, 0 - 1 | CX85: R5, 1 - 0 | DH85: R1, 1 - 0 | DJ85: R1, 0.5 - 0.5 | DN85: R6, 1 - 0 | DQ85: R1, 0 - 1 | DR85: R1, 0 - 1 | DU85: R3, 0 - 1 | DW85: R2, 0 - 1 | DX85: R2, 0.5 - 0.5 | DY85: R1, 0 - 1
A86: sann0638 | J86: R6, 0 - 1 | AA86: R4, 1 - 0 | CL86: R5, 0.5 - 0.5 | CU86: R2, 1 - 0 | CX86: R2, 9 - 8 | CY86: R1, 10 - 10 | DC86: R1, 0.5 - 0.5 | DH86: R4, 1 - 0 | DM86: R1, 1 - 0 | DO86: R6, 0 - 1 | DP86: R1, 0.5 - 0.5 | DQ86: R2, 0.5 - 0.5 | DS86: R2, 1 - 0 | DT86: R3, 0 - 1 | DU86: R2, 1 - 0
A87: Valen | Q87: R6, 1 - 0 | Z87: R4, 0.5 - 0.5 | CR87: R5, 0.5 - 0.5 | CV87: R2, 0 - 1 | CX87: R6, 0.5 - 0.5 | CY87: R5, 0.5 - 0.5 | CZ87: R1, 4 - 18 | DB87: R1, 1 - 0 | DC87: R4, 0 - 1 | DH87: R3, 0 - 1 | DJ87: R6, 0 - 1 | DN87: R6, 0 - 1 | DO87: R1, 1 - 0 | DU87: R1, 1 - 0 | DV87: R3, 1 - 0 | DX87: R2, 1 - 0 | DY87: R2, 0.5 - 0.5
A88: Loki | K88: R6, 0 - 1 | AC88: R4, 0 - 1 | CO88: R5, 0.5 - 0.5 | CZ88: R2, 1 - 0 | DA88: R1, 11 - 11 | DF88: R2, 6 - 22 | DI88: R1, 0.5 - 0.5 | DK88: R1, 0 - 1 | DL88: R3, 0.5 - 0.5 | DN88: R1, 0.5 - 0.5 | DO88: R6, 1 - 0 | DQ88: R6, 1 - 0 | DR88: R2, 1 - 0 | DT88: R2, 0 - 1 | DV88: R2, 0.5 - 0.5 | DW88: R1, 1 - 0 | DX88: R1, 0 - 1 | DY88: R3, 0 - 1
A89: HumptyTrump | M89: R6, 0.5 - 0.5 | AE89: R4, 0.5 - 0.5 | CN89: R5, 1 - 0 | CZ89: R4, 0.5 - 0.5 | DA89: R2, 0 - 1 | DD89: R1, 0 - 1 | DE89: R3, 0 - 1 | DG89: R3, 1 - 0 | DH89: R6, 1 - 0 | DL89: R6, 0.5 - 0.5 | DM89: R1, 0.5 - 0.5 | DO89: R1, 1 - 0 | DT89: R2, 1 - 0 | DV89: R1, 0.5 - 0.5 | DW89: R2, 0.5 - 0.5 | DX89: R3, 0.5 - 0.5
A90: Dark Duke | E90: R6, 0.5 - 0.5 | AC90: R3, 1 - 0 | BD90: R2, 0.5 - 0.5 | BF90: R1, 0 - 1 | CH90: R5, 0.5 - 0.5 | CW90: R5, 1 - 0 | CY90: R3, 0 - 1 | CZ90: R1, 0.5 - 0.5 | DF90: R5, 0.5 - 0.5 | DG90: R4, 0.5 - 0.5 | DL90: R1, 0 - 1 | DM90: R1, 0.5 - 0.5 | DO90: R5, 0.5 - 0.5 | DP90: R5, 0 - 1 | DS90: R3, 12 - 15 | DT90: R4, 1 - 0 | DY90: R6, 0.5 - 0.5
A91: Obeliz | C91: R6, 1 - 0 | AB91: R3, 0 - 1 | BE91: R2, 0 - 1 | BM91: R1, 0 - 1 | CG91: R5, 1 - 0 | DC91: R4, 0 - 1 | DD91: R5, 0.5 - 0.5 | DJ91: R5, 0 - 1 | DK91: R1, 0.5 - 0.5 | DL91: R3, 0 - 1 | DQ91: R1, 0 - 1 | DS91: R6, 1 - 0 | DW91: R4, 0 - 1 | DY91: R3, 19 - 4
A92: Joanet | H92: R6, 0 - 1 | AD92: R3, 1 - 0 | AY92: R2, 0 - 1 | BI92: R1, 0 - 1 | CK92: R5, 0 - 1 | CZ92: R3, 1 - 0 | DB92: R5, 0 - 1 | DF92: R6, 0.5 - 0.5 | DH92: R2, 12 - 10 | DJ92: R1, 0 - 1 | DK92: R5, 1 - 0 | DL92: R1, 0.5 - 0.5 | DR92: R6, 0 - 1 | DS92: R4, 0 - 1 | DU92: R3, 19 - 1 | DV92: R3, 22 - 2 | DY92: R6, 0.5 - 0.5
A93: Duke_Luthor_Von_Hawkfire | D93: R6, 0.5 - 0.5 | AE93: R3, 0.5 - 0.5 | AX93: R2, 0.5 - 0.5 | BK93: R1, 0 - 1 | CJ93: R5, 0.5 - 0.5 | CW93: R1, 0.5 - 0.5 | CZ93: R2, 0.5 - 0.5 | DE93: R5, 0.5 - 0.5 | DI93: R6, 0.5 - 0.5 | DN93: R5, 0 - 1 | DO93: R1, 0 - 1 | DS93: R5, 0 - 1 | DT93: R4, 0.5 - 0.5 | DU93: R6, 0.5 - 0.5 | DV93: R4, 0 - 1
A94: Barry | I94: R6, 0.5 - 0.5 | Z94: R3, 0 - 1 | AZ94: R2, 0 - 1 | BL94: R1, 1 - 0 | CF94: R5, 0 - 1 | CX94: R2, 11 - 10 | DD94: R3, 0 - 1 | DI94: R5, 0 - 1 | DK94: R1, 1 - 0 | DL94: R5, 0 - 1 | DM94: R1, 0 - 1 | DQ94: R6, 0.5 - 0.5 | DR94: R4, 0.5 - 0.5 | DT94: R6, 0.5 - 0.5 | DV94: R2, 0 - 1
A95: Idroj | G95: R6, 0.5 - 0.5 | AF95: R3, 1 - 0 | BC95: R2, 0.5 - 0.5 | BG95: R1, 0 - 1 | CD95: R5, 1 - 0 | CW95: R3, 1 - 0 | CX95: R5, 5 - 21 | CY95: R1, 1 - 0 | DA95: R3, 0 - 1 | DC95: R5, 1 - 0 | DJ95: R1, 1 - 0 | DP95: R1, 0 - 1 | DT95: R3, 2 - 17 | DW95: R6, 1 - 0 | DY95: R4, 1 - 0
A96: Malasnoticias | B96: R6, 0.5 - 0.5 | AA96: R3, 1 - 0 | BB96: R2, 1 - 0 | BJ96: R1, 0 - 1 | CI96: R5, 0.5 - 0.5 | CZ96: R6, 0.5 - 0.5 | DA96: R1, 1 - 0 | DB96: R5, 6 - 20 | DG96: R5, 0.5 - 0.5 | DM96: R5, 0 - 1 | DN96: R1, 1 - 0 | DQ96: R1, 0.5 - 0.5 | DS96: R4, 0 - 1 | DU96: R4, 1 - 0 | DW96: R3, 19 - 5 | DX96: R6, 0 - 1
A97: Tactel | F97: R6, 0 - 1 | AG97: R3, 0 - 1 | BA97: R2, 0 - 1 | BH97: R1, 1 - 0 | CE97: R5, 1 - 0 | CW97: R2, 21 - 1 | CX97: R1, 1 - 0 | CY97: R2, 0.5 - 0.5 | DG97: R4, 0.5 - 0.5 | DH97: R5, 0 - 1 | DN97: R1, 0 - 1 | DP97: R1, 0 - 1 | DQ97: R5, 0 - 1 | DS97: R3, 11 - 12 | DU97: R3, 0 - 1 | DV97: R6, 0 - 1 | DX97: R4, 0 - 1
A98: Melisqus | G98: R1, 0 - 1 | K98: R4, 1 - 0 | BC98: R3, 1 - 0 | BQ98: R6, 0.5 - 0.5 | CD98: R2, 0.5 - 0.5 | CW98: R4, 20 - 6 | DD98: R3, 0.5 - 0.5 | DF98: R5, 0 - 1 | DG98: R6, 0 - 1 | DI98: R1, 12 - 12 | DK98: R3, 1 - 0 | DN98: R1, 0.5 - 0.5 | DO98: R2, 21 - 4 | DP98: R5, 20 - 4
A99: Inforthepain | C99: R1, 1 - 0 | M99: R4, 0.5 - 0.5 | AX99: R3, 0 - 1 | BS99: R6, 0.5 - 0.5 | CH99: R2, 0 - 1 | DC99: R5, 1 - 0 | DE99: R5, 0 - 1 | DH99: R6, 0 - 1 | DI99: R6, 0.5 - 0.5 | DK99: R1, 0 - 1 | DX99: R2, 1 - 0
A100: Pidpad | H100: R1, 1 - 0 | Q100: R4, 0.5 - 0.5 | AZ100: R3, 1 - 0 | BR100: R6, 0 - 1 | CI100: R2, 1 - 0 | DB100: R5, 0 - 1 | DD100: R1, 19 - 3 | DE100: R6, 0.5 - 0.5 | DF100: R3, 1 - 0 | DK100: R5, 12 - 10 | DL100: R3, 20 - 3 | DO100: R1, 0.5 - 0.5 | DR100: R4, 0.5 - 0.5
A101: Skuld | D101: R1, 0.5 - 0.5 | L101: R4, 0 - 1 | BA101: R3, 0 - 1 | BP101: R6, 0.5 - 0.5 | CG101: R2, 1 - 0 | CX101: R6, 1 - 0 | DB101: R5, 1 - 0 | DC101: R1, 4 - 19 | DE101: R5, 2 - 18 | DF101: R6, 1 - 0 | DG101: R5, 0 - 1 | DL101: R1, 0.5 - 0.5 | DR101: R6, 0.5 - 0.5 | DS101: R2, 0.5 - 0.5
A102: JohnnyD | I102: R1, 0 - 1 | O102: R4, 0 - 1 | AY102: R3, 0.5 - 0.5 | BU102: R6, 0.5 - 0.5 | CE102: R2, 1 - 0 | CW102: R6, 0 - 1 | DB102: R6, 0 - 1 | DD102: R6, 1 - 0 | DE102: R5, 0.5 - 0.5 | DH102: R2, 1 - 0 | DI102: R5, 0.5 - 0.5 | DJ102: R1, 0 - 1 | DK102: R6, 20 - 3 | DW102: R4, 0.5 - 0.5
A103: Skoberget | B103: R1, 0 - 1 | J103: R4, 0 - 1 | BD103: R3, 1 - 0 | BO103: R6, 0.5 - 0.5 | CF103: R2, 0.5 - 0.5 | DB103: R6, 1 - 0 | DC103: R5, 0.5 - 0.5 | DD103: R6, 1 - 0 | DE103: R6, 0.5 - 0.5 | DF103: R1, 19 - 5 | DM103: R1, 1 - 0 | DT103: R5, 1 - 0
A104: Dragons | E104: R1, 0 - 1 | N104: R4, 1 - 0 | BB104: R3, 1 - 0 | BN104: R6, 1 - 0 | CJ104: R2, 0 - 1 | DB104: R6, 0 - 1 | DC104: R6, 1 - 0 | DD104: R5, 0.5 - 0.5 | DG104: R1, 11 - 12 | DJ104: R2, 0 - 1 | DM104: R6, 1 - 0 | DO104: R6, 5 - 20 | DQ104: R1, 0.5 - 0.5 | DV104: R4, 0 - 1
A105: Pellevin | F105: R1, 0 - 1 | P105: R4, 1 - 0 | BE105: R3, 0 - 1 | BT105: R6, 0.5 - 0.5 | CK105: R2, 1 - 0 | DB105: R5, 0 - 1 | DE105: R2, 0 - 1 | DH105: R5, 1 - 0 | DI105: R6, 0.5 - 0.5 | DJ105: R5, 0.5 - 0.5 | DK105: R3, 10 - 10 | DP105: R1, 0 - 1 | DQ105: R2, 13 - 15 | DR105: R4, 1 - 0 | DU105: R5, 8 - 9
A106: Strider84 | Y106: R4, 1 - 0 | BD106: R1, 1 - 0 | BG106: R2, 0.5 - 0.5 | BW106: R3, 0.5 - 0.5 | CV106: R5, 1 - 0 | CW106: R5, 0 - 1 | CX106: R6, 1 - 0 | CY106: R6, 0 - 1 | CZ106: R6, 1 - 0 | DA106: R5, 1 - 0 | DJ106: R6, 1 - 0 | DK106: R6, 0 - 1 | DL106: R1, 0 - 1 | DM106: R3, 0.5 - 0.5 | DO106: R3, 19 - 1 | DP106: R1, 0.5 - 0.5 | DS106: R2, 1 - 0 | DT106: R6, 1 - 0 | DV106: R2, 0.5 - 0.5 | DX106: R4, 0.5 - 0.5 | DY106: R1, 0.5 - 0.5
A107: Jokaero | R107: R4, 0 - 1 | BE107: R1, 1 - 0 | BJ107: R2, 0.5 - 0.5 | BV107: R3, 0 - 1 | CW107: R1, 19 - 4 | CY107: R5, 0.5 - 0.5 | CZ107: R6, 0 - 1 | DJ107: R3, 17 - 2 | DK107: R2, 0.5 - 0.5 | DL107: R6, 1 - 0 | DN107: R3, 0.5 - 0.5 | DP107: R1, 0 - 1 | DR107: R4, 0.5 - 0.5 | DT107: R1, 1 - 0 | DU107: R2, 1 - 0
A108: Phifoe | U108: R4, 0.5 - 0.5 | BB108: R1, 1 - 0 | BI108: R2, 1 - 0 | CA108: R3, 0.5 - 0.5 | CX108: R6, 0 - 1 | CY108: R6, 0 - 1 | CZ108: R5, 0.5 - 0.5 | DE108: R6, 10 - 11 | DG108: R5, 19 - 4 | DJ108: R1, 1 - 0 | DL108: R3, 0 - 1 | DM108: R1, 0 - 1 | DN108: R6, 1 - 0 | DP108: R2, 1 - 0 | DQ108: R4, 1 - 0 | DS108: R1, 0 - 1 | DU108: R2, 0.5 - 0.5 | DV108: R3, 0 - 1 | DW108: R2, 0.5 - 0.5 | DY108: R4, 0 - 1
A109: Goss | W109: R4, 0 - 1 | AZ109: R1, 0 - 1 | BH109: R2, 0.5 - 0.5 | CC109: R3, 0.5 - 0.5 | CU109: R5, 1 - 0 | CW109: R5, 18 - 2 | CX109: R5, 0.5 - 0.5 | CY109: R6, 0.5 - 0.5 | DA109: R2, 1 - 0 | DD109: R6, 11 - 10 | DG109: R3, 8 - 8 | DK109: R3, 0 - 1 | DM109: R6, 0.5 - 0.5 | DN109: R3, 19 - 6 | DO109: R2, 0 - 1 | DQ109: R1, 1 - 0 | DR109: R2, 0.5 - 0.5 | DS109: R2, 0 - 1 | DU109: R3, 0.5 - 0.5 | DV109: R1, 0 - 1
A110: Madmatt13 | S110: R4, 0.5 - 0.5 | BA110: R1, 0.5 - 0.5 | BL110: R2, 0 - 1 | BX110: R3, 1 - 0 | CT110: R5, 1 - 0 | CW110: R6, 0 - 1 | CY110: R1, 5 - 19 | DH110: R2, 0 - 1 | DI110: R6, 0 - 1 | DJ110: R2, 0 - 1 | DK110: R6, 1 - 0 | DM110: R1, 0 - 1 | DN110: R1, 0 - 1 | DP110: R3, 5 - 21 | DQ110: R3, 0 - 1 | DS110: R6, 22 - 5 | DT110: R2, 1 - 0 | DV110: R4, 0.5 - 0.5 | DW110: R1, 1 - 0 | DY110: R2, 0 - 1
A111: Elrik | T111: R4, 0.5 - 0.5 | AX111: R1, 0.5 - 0.5 | BM111: R2, 0 - 1 | BZ111: R3, 1 - 0 | CW111: R5, 1 - 0 | CZ111: R1, 12 - 11 | DD111: R5, 4 - 19 | DE111: R3, 8 - 8 | DH111: R5, 1 - 0 | DJ111: R3, 0.5 - 0.5 | DK111: R1, 1 - 0 | DM111: R2, 1 - 0 | DP111: R6, 0.5 - 0.5 | DR111: R1, 1 - 0 | DS111: R3, 0 - 1 | DT111: R4, 1 - 0 | DX111: R2, 1 - 0
A112: sigu70 | X112: R4, 0.5 - 0.5 | AY112: R1, 1 - 0 | BF112: R2, 1 - 0 | BY112: R3, 0.5 - 0.5 | CX112: R2, 0 - 1 | DA112: R5, 0 - 1 | DF112: R2, 1 - 0 | DG112: R5, 0 - 1 | DJ112: R5, 0.5 - 0.5 | DM112: R4, 1 - 0 | DN112: R1, 1 - 0 | DO112: R6, 0 - 1 | DP112: R3, 20 - 4 | DQ112: R2, 0.5 - 0.5 | DR112: R3, 22 - 4 | DU112: R4, 0.5 - 0.5 | DW112: R2, 0 - 1 | DX112: R1, 0 - 1
A113: Macabeo | V113: R4, 0.5 - 0.5 | BC113: R1, 1 - 0 | BK113: R2, 0 - 1 | CB113: R3, 0 - 1 | CX113: R5, 0.5 - 0.5 | DA113: R6, 0.5 - 0.5 | DF113: R6, 1 - 0 | DJ113: R1, 0.5 - 0.5 | DM113: R3, 3 - 17 | DN113: R2, 1 - 0 | DO113: R1, 0.5 - 0.5 | DP113: R3, 1 - 0 | DQ113: R6, 0.5 - 0.5 | DU113: R1, 1 - 0 | DV113: R2, 1 - 0 | DW113: R4, 1 - 0 | DY113: R2, 0 - 1
A114: Balder | I114: R2, 0.5 - 0.5 | AI114: R5, 1 - 0 | AW114: R4, 1 - 0 | BI114: R3, 1 - 0 | CG114: R1, 0.5 - 0.5 | CX114: R1, 1 - 0 | CZ114: R2, 1 - 0 | DA114: R5, 0.5 - 0.5 | DB114: R6, 0 - 1 | DC114: R3, 2 - 17 | DD114: R1, 0 - 1 | DF114: R2, 1 - 0 | DG114: R3, 0.5 - 0.5 | DH114: R5, 0.5 - 0.5 | DI114: R1, 0.5 - 0.5 | DL114: R6, 2 - 19 | DN114: R3, 20 - 3 | DU114: R4, 1 - 0
A115: Corwin | E115: R2, 0.5 - 0.5 | AO115: R5, 0 - 1 | AU115: R4, 1 - 0 | BG115: R3, 1 - 0 | CJ115: R1, 1 - 0 | CX115: R6, 3 - 20 | DA115: R3, 10 - 10 | DB115: R6, 1 - 0 | DC115: R2, 0.5 - 0.5 | DE115: R3, 1 - 0 | DF115: R6, 0 - 1 | DG115: R1, 0 - 1 | DU115: R3, 0.5 - 0.5 | DV115: R4, 0 - 1 | DX115: R2, 0 - 1
A116: Faccko | G116: R2, 0 - 1 | AM116: R5, 1 - 0 | AS116: R4, 0.5 - 0.5 | BL116: R3, 0 - 1 | CF116: R1, 1 - 0 | CW116: R1, 0.5 - 0.5 | DB116: R1, 1 - 0 | DC116: R6, 0 - 1 | DD116: R3, 1 - 0 | DJ116: R6, 19 - 2 | DQ116: R5, 0 - 1 | DR116: R4, 1 - 0 | DY116: R4, 0 - 1
A117: Mufflo | D117: R2, 0.5 - 0.5 | AN117: R5, 0.5 - 0.5 | AV117: R4, 0 - 1 | BJ117: R3, 0 - 1 | CK117: R1, 0.5 - 0.5 | CY117: R1, 0 - 1 | CZ117: R6, 0 - 1 | DB117: R3, 0.5 - 0.5 | DD117: R1, 1 - 0 | DE117: R6, 0.5 - 0.5 | DF117: R1, 1 - 0 | DG117: R2, 0 - 1 | DH117: R4, 0 - 1 | DI117: R3, 17 - 3 | DP117: R2, 1 - 0 | DS117: R4, 0.5 - 0.5 | DV117: R5, 22 - 8 | DW117: R4, 0 - 1 | DY117: R4, 0.5 - 0.5
A118: brocCooli | B118: R2, 1 - 0 | AH118: R5, 0.5 - 0.5 | AP118: R4, 0.5 - 0.5 | BK118: R3, 1 - 0 | CD118: R1, 1 - 0 | DC118: R3, 0.5 - 0.5 | DD118: R6, 0 - 1 | DE118: R3, 6 - 19 | DF118: R1, 1 - 0 | DH118: R1, 0 - 1 | DI118: R2, 0 - 1 | DJ118: R3, 3 - 20 | DR118: R2, 6 - 8 | DS118: R3, 0 - 1 | DY118: R4, 1 - 0
A119: Duckwing | H119: R2, 1 - 0 | AK119: R5, 1 - 0 | AQ119: R4, 0 - 1 | BH119: R3, 0.5 - 0.5 | CI119: R1, 0 - 1 | CZ119: R6, 20 - 5 | DB119: R3, 1 - 19 | DE119: R2, 1 - 0 | DH119: R6, 1 - 0 | DI119: R1, 0.5 - 0.5 | DQ119: R4, 19 - 2 | DS119: R4, 0 - 1 | DT119: R2, 0 - 1 | DX119: R4, 0.5 - 0.5
A120: Bernuz | F120: R2, 1 - 0 | AL120: R5, 0 - 1 | AR120: R4, 1 - 0 | BM120: R3, 0.5 - 0.5 | CH120: R1, 0.5 - 0.5 | DA120: R1, 1 - 0 | DB120: R1, 0.5 - 0.5 | DC120: R1, 1 - 0 | DD120: R2, 0 - 1 | DF120: R3, 21 - 5 | DG120: R6, 0.5 - 0.5 | DH120: R3, 4 - 20 | DI120: R3, 0 - 1 | DM120: R2, 0 - 1 | DX120: R4, 0.5 - 0.5
A121: Purrelito | C121: R2, 0.5 - 0.5 | AJ121: R5, 1 - 0 | AT121: R4, 0.5 - 0.5 | BF121: R3, 0 - 1 | CE121: R1, 0.5 - 0.5 | CZ121: R1, 0.5 - 0.5 | DA121: R2, 15 - 13 | DD121: R4, 0 - 1 | DE121: R1, 0 - 1 | DF121: R3, 1 - 0 | DH121: R2, 0.5 - 0.5 | DI121: R6, 0.5 - 0.5 | DL121: R5, 1 - 0 | DO121: R4, 2 - 19 | DS121: R6, 1 - 0 | DT121: R4, 0 - 1 | DV121: R3, 0 - 1
A122: nonumber | P122: R5, 1 - 0 | W122: R1, 0 - 1 | AH122: R6, 1 - 0 | AQ122: R2, 0 - 1 | CF122: R3, 1 - 0 | CP122: R4, 0.5 - 0.5 | CW122: R6, 0.5 - 0.5 | DA122: R4, 0 - 1 | DC122: R4, 0.5 - 0.5 | DE122: R2, 0.5 - 0.5 | DG122: R1, 0 - 1 | DH122: R3, 4 - 22 | DL122: R4, 0 - 1 | DN122: R2, 8 - 6 | DT122: R6, 10 - 10
A123: 20Phoenix | Q123: R5, 0 - 1 | Y123: R1, 0 - 1 | AN123: R6, 1 - 0 | AS123: R2, 0.5 - 0.5 | CD123: R3, 0 - 1 | CN123: R4, 1 - 0 | CW123: R2, 0.5 - 0.5 | DB123: R2, 0 - 1 | DD123: R1, 1 - 0 | DE123: R2, 1 - 0 | DF123: R6, 5 - 22 | DG123: R3, 1 - 0 | DM123: R4, 0.5 - 0.5 | DN123: R3, 1 - 0 | DO123: R4, 1 - 0 | DQ123: R6, 0 - 1 | DT123: R5, 0 - 1 | DY123: R6, 0.5 - 0.5
A124: SFisher91 | K124: R5, 1 - 0 | S124: R1, 1 - 0 | AO124: R6, 0 - 1 | AU124: R2, 0 - 1 | CH124: R3, 1 - 0 | CL124: R4, 0 - 1 | CY124: R5, 0 - 1 | DB124: R6, 0 - 1 | DC124: R1, 0 - 1 | DF124: R2, 0 - 1 | DG124: R4, 0 - 1 | DO124: R2, 1 - 0 | DQ124: R4, 1 - 0 | DR124: R6, 10 - 10 | DS124: R5, 1 - 0
A125: Dionysian | L125: R5, 0 - 1 | V125: R1, 1 - 0 | AI125: R6, 0 - 1 | AR125: R2, 0 - 1 | CG125: R3, 1 - 0 | CR125: R4, 0 - 1 | DA125: R5, 9 - 8 | DC125: R2, 0 - 1 | DD125: R2, 0.5 - 0.5 | DE125: R3, 0.5 - 0.5 | DH125: R4, 0.5 - 0.5 | DI125: R1, 0 - 1 | DJ125: R4, 0 - 1 | DK125: R3, 0.5 - 0.5
A126: Northernknight | O126: R5, 0 - 1 | T126: R1, 1 - 0 | AM126: R6, 0 - 1 | AP126: R2, 0 - 1 | CI126: R3, 0 - 1 | CO126: R4, 1 - 0 | CZ126: R4, 1 - 0 | DB126: R2, 0.5 - 0.5 | DD126: R3, 1 - 0 | DE126: R1, 1 - 0 | DF126: R4, 0.5 - 0.5 | DI126: R2, 0 - 1 | DK126: R4, 1 - 0 | DM126: R5, 8 - 22 | DQ126: R3, 1 - 0 | DW126: R6, 0.5 - 0.5
A127: MadeofWelsh | N127: R5, 1 - 0 | U127: R1, 0 - 1 | AJ127: R6, 0.5 - 0.5 | AT127: R2, 0 - 1 | CE127: R3, 0 - 1 | CM127: R4, 1 - 0 | CX127: R4, 0.5 - 0.5 | DD127: R2, 0.5 - 0.5 | DF127: R1, 0 - 1 | DH127: R2, 1 - 0 | DI127: R4, 0 - 1 | DM127: R4, 1 - 0 | DV127: R6, 0.5 - 0.5 | DX127: R3, 1 - 0
A128: Ploppy_McPloppy | J128: R5, 0.5 - 0.5 | R128: R1, 0.5 - 0.5 | AL128: R6, 0.5 - 0.5 | AW128: R2, 0.5 - 0.5 | CK128: R3, 0.5 - 0.5 | CS128: R4, 1 - 0 | DB128: R4, 0.5 - 0.5 | DG128: R2, 0 - 1 | DH128: R1, 1 - 0 | DK128: R2, 1 - 0 | DO128: R4, 0.5 - 0.5 | DP128: R4, 0.5 - 0.5 | DW128: R3, 0 - 1
A129: andydavo | M129: R5, 0.5 - 0.5 | X129: R1, 0.5 - 0.5 | AK129: R6, 1 - 0 | AV129: R2, 0.5 - 0.5 | CJ129: R3, 1 - 0 | CQ129: R4, 0 - 1 | DB129: R1, 0.5 - 0.5 | DD129: R4, 1 - 0 | DF129: R2, 1 - 0 | DI129: R2, 1 - 0 | DL129: R4, 1 - 0 | DM129: R4, 0.5 - 0.5 | DN129: R4, 0 - 1 | DS129: R6, 0.5 - 0.5

Sheet Players
A1: Num | B1: Display Name | C1: NAF Name | D1: NAF Number (Random) | E1: Race | F1: Group | M1: Groups | O1: Team Size | P1: 8
A2: =IF(C2="","",MAX(A$1:A1)+1) -> 1 | B2: Driesfield | C2: Driesfield | D2: 6183 | E2: Slann | F2: Belgium | M2: Belgium
A3: =IF(C3="","",MAX(A$1:A2)+1) -> 2 | B3: Malodoror | C3: Malodoror | D3: 20793 | E3: Chaos Pact | F3: Belgium | M3: Denmark
A4: =IF(C4="","",MAX(A$1:A3)+1) -> 3 | B4: JJ | C4: JJ | D4: 10488 | E4: Underworld | F4: Belgium | M4: England
A5: =IF(C5="","",MAX(A$1:A4)+1) -> 4 | B5: Araznaroth | C5: Araznaroth | D5: 13199 | E5: Goblins | F5: Belgium | M5: Finland
A6: =IF(C6="","",MAX(A$1:A5)+1) -> 5 | B6: Woete | C6: Woete | D6: 12500 | E6: Chaos Dwarves | F6: Belgium | M6: France
A7: =IF(C7="","",MAX(A$1:A6)+1) -> 6 | B7: gninocker | C7: gninocker | D7: 17832 | E7: Vampires | F7: Belgium | M7: Germany
A8: =IF(C8="","",MAX(A$1:A7)+1) -> 7 | B8: Phoenix11 | C8: Phoenix11 | D8: 8402 | E8: Dark Elves | F8: Belgium | M8: Hungary
A9: =IF(C9="","",MAX(A$1:A8)+1) -> 8 | B9: Dekra1979 | C9: Dekra1979 | D9: 16259 | E9: High Elves | F9: Belgium | M9: Italy
A10: =IF(C10="","",MAX(A$1:A9)+1) -> 9 | B10: Tripleskull | C10: Tripleskull | D10: 9524 | E10: Chaos | F10: Denmark | M10: Norway
A11: =IF(C11="","",MAX(A$1:A10)+1) -> 10 | B11: MissSweden | C11: MissSweden | D11: 11498 | E11: Chaos | F11: Denmark | M11: Poland
A12: =IF(C12="","",MAX(A$1:A11)+1) -> 11 | B12: kfoged | C12: kfoged | D12: 10691 | E12: Slann | F12: Denmark | M12: Scotland
A13: =IF(C13="","",MAX(A$1:A12)+1) -> 12 | B13: Tank | C13: Tank | D13: 11501 | E13: Necromantic | F13: Denmark | M13: Spain
A14: =IF(C14="","",MAX(A$1:A13)+1) -> 13 | B14: Topper | C14: Topper | D14: 6363 | E14: Chaos | F14: Denmark | M14: Sweden
A15: =IF(C15="","",MAX(A$1:A14)+1) -> 14 | B15: SpecialOne | C15: SpecialOne | D15: 16742 | E15: Lizardmen | F15: Denmark | M15: Switzerland
A16: =IF(C16="","",MAX(A$1:A15)+1) -> 15 | B16: Jaqra | C16: Jaqra | D16: 19750 | E16: Skaven | F16: Denmark | M16: Viking
A17: =IF(C17="","",MAX(A$1:A16)+1) -> 16 | B17: Niebling | C17: Niebling | D17: 11499 | E17: Amazons | F17: Denmark | M17: Wales
A18: =IF(C18="","",MAX(A$1:A17)+1) -> 17 | B18: Lycos | C18: Lycos | D18: 2870 | E18: Ogres | F18: England
A19: =IF(C19="","",MAX(A$1:A18)+1) -> 18 | B19: PurpleGoo | C19: PurpleGoo | D19: 11777 | E19: Amazons | F19: England
A20: =IF(C20="","",MAX(A$1:A19)+1) -> 19 | B20: Geggster | C20: Geggster | D20: 70 | E20: Orc | F20: England
A21: =IF(C21="","",MAX(A$1:A20)+1) -> 20 | B21: Podfrey | C21: Podfrey | D21: 149 | E21: Slann | F21: England
A22: =IF(C22="","",MAX(A$1:A21)+1) -> 21 | B22: JimJimany | C22: JimJimany | D22: 12403 | E22: Goblins | F22: England
A23: =IF(C23="","",MAX(A$1:A22)+1) -> 22 | B23: Joemanji | C23: Joemanji | D23: 3312 | E23: Chaos | F23: England
A24: =IF(C24="","",MAX(A$1:A23)+1) -> 23 | B24: Mubo | C24: Mubo | D24: 13409 | E24: Amazons | F24: England
A25: =IF(C25="","",MAX(A$1:A24)+1) -> 24 | B25: Wilzif | C25: Wilzif | D25: 8901 | E25: Underworld | F25: England
A26: =IF(B26="","",MAX(A$1:A25)+1) -> 25 | B26: MacWitt | C26: MacWitt | D26: 19932 | E26: Elves | F26: Finland
A27: =IF(B27="","",MAX(A$1:A26)+1) -> 26 | B27: Harza | C27: Harza | D27: 20060 | E27: Dwarves | F27: Finland
A28: =IF(B28="","",MAX(A$1:A27)+1) -> 27 | B28: jopotzuki | C28: jopotzuki | D28: 20783 | E28: Nurgle's Rotters | F28: Finland
A29: =IF(B29="","",MAX(A$1:A28)+1) -> 28 | B29: edheim | C29: edheim | D29: 20760 | E29: Chaos | F29: Finland
A30: =IF(B30="","",MAX(A$1:A29)+1) -> 29 | B30: BeerBeer | C30: BeerBeer | D30: 18245 | E30: Necromantic | F30: Finland
A31: =IF(B31="","",MAX(A$1:A30)+1) -> 30 | B31: J-Ho | C31: J-Ho | D31: 19106 | E31: Nurgle's Rotters | F31: Finland
A32: =IF(B32="","",MAX(A$1:A31)+1) -> 31 | B32: ratogre | C32: ratogre | D32: 22007 | E32: Necromantic | F32: Finland
A33: =IF(B33="","",MAX(A$1:A32)+1) -> 32 | B33: valkohukka | C33: valkohukka | D33: 18772 | E33: Slann | F33: Finland
A34: =IF(B34="","",MAX(A$1:A33)+1) -> 33 | B34: BiBi | C34: BiBi | D34: 11491 | E34: Undead | F34: France
A35: =IF(B35="","",MAX(A$1:A34)+1) -> 34 | B35: Bouzzy | C35: Bouzzy | D35: 15733 | E35: Chaos Pact | F35: France
A36: =IF(B36="","",MAX(A$1:A35)+1) -> 35 | B36: BudWiser | C36: BudWiser | D36: 12987 | E36: Necromantic | F36: France
A37: =IF(B37="","",MAX(A$1:A36)+1) -> 36 | B37: Gros Nain | C37: Gros Nain | D37: 14524 | E37: Norse | F37: France
A38: =IF(B38="","",MAX(A$1:A37)+1) -> 37 | B38: Harti | C38: Harti | D38: 13583 | E38: Skaven | F38: France
A39: =IF(B39="","",MAX(A$1:A38)+1) -> 38 | B39: Justicium | C39: Justicium | D39: 12319 | E39: Wood Elves | F39: France
A40: =IF(B40="","",MAX(A$1:A39)+1) -> 39 | B40: Matt le fou | C40: Matt le fou | D40: 13561 | E40: Undead | F40: France
A41: =IF(B41="","",MAX(A$1:A40)+1) -> 40 | B41: Simon_ACP | C41: Simon_ACP | D41: 17603 | E41: Humans | F41: France
A42: =IF(B42="","",MAX(A$1:A41)+1) -> 41 | B42: Arioso | C42: Arioso | D42: 18738 | E42: Orc | F42: Germany
A43: =IF(B43="","",MAX(A$1:A42)+1) -> 42 | B43: RoterSternHochdah | C43: RoterSternHochdah | D43: 18704 | E43: Chaos Dwarves | F43: Germany
A44: =IF(B44="","",MAX(A$1:A43)+1) -> 43 | B44: Muadib | C44: Muadib | D44: 2800 | E44: Khemri | F44: Germany
A45: =IF(B45="","",MAX(A$1:A44)+1) -> 44 | B45: Candlejack | C45: Candlejack | D45: 5844 | E45: Undead | F45: Germany
A46: =IF(B46="","",MAX(A$1:A45)+1) -> 45 | B46: Gaunab | C46: Gaunab | D46: 2150 | E46: Orc | F46: Germany
A47: =IF(B47="","",MAX(A$1:A46)+1) -> 46 | B47: Prince | C47: Prince | D47: 341 | E47: Lizardmen | F47: Germany
A48: =IF(B48="","",MAX(A$1:A47)+1) -> 47 | B48: DocMaxx | C48: DocMaxx | D48: 16347 | E48: Chaos Pact | F48: Germany
A49: =IF(B49="","",MAX(A$1:A48)+1) -> 48 | B49: Jonny_Kanone | C49: Jonny_Kanone | D49: 9621 | E49: Chaos Dwarves | F49: Germany
A50: =IF(B50="","",MAX(A$1:A49)+1) -> 49 | B50: BlackOrc | C50: BlackOrc | D50: 6233 | E50: Chaos Pact | F50: Hungary
A51: =IF(B51="","",MAX(A$1:A50)+1) -> 50 | B51: Itzla | C51: Itzla | D51: 9758 | E51: Chaos Dwarves | F51: Hungary
A52: =IF(B52="","",MAX(A$1:A51)+1) -> 51 | B52: Wolio | C52: Wolio | D52: 20061 | E52: Dark Elves | F52: Hungary
A53: =IF(B53="","",MAX(A$1:A52)+1) -> 52 | B53: noraal | C53: noraal | D53: 21798 | E53: Underworld | F53: Hungary
A54: =IF(B54="","",MAX(A$1:A53)+1) -> 53 | B54: Favi | C54: Favi | D54: 20062 | E54: Skaven | F54: Hungary
A55: =IF(B55="","",MAX(A$1:A54)+1) -> 54 | B55: cz | C55: cz | D55: 21604 | E55: Underworld | F55: Hungary
A56: =IF(B56="","",MAX(A$1:A55)+1) -> 55 | B56: swifty | C56: swifty | D56: 20309 | E56: Khemri | F56: Hungary
A57: =IF(B57="","",MAX(A$1:A56)+1) -> 56 | B57: Alex05 | C57: Alex05 | D57: 22352 | E57: Orc | F57: Hungary
A58: =IF(B58="","",MAX(A$1:A57)+1) -> 57 | B58: Beppe | C58: Beppe | D58: 3564 | E58: Orc | F58: Italy
A59: =IF(B59="","",MAX(A$1:A58)+1) -> 58 | B59: Dirold | C59: Dirold | D59: 5900 | E59: Amazons | F59: Italy
A60: =IF(B60="","",MAX(A$1:A59)+1) -> 59 | B60: Farina | C60: Farina | D60: 3533 | E60: Chaos Dwarves | F60: Italy
A61: =IF(B61="","",MAX(A$1:A60)+1) -> 60 | B61: Kaltenland | C61: Kaltenland | D61: 11924 | E61: Chaos Pact | F61: Italy
A62: =IF(B62="","",MAX(A$1:A61)+1) -> 61 | B62: Liam | C62: Liam | D62: 5906 | E62: Wood Elves | F62: Italy
A63: =IF(B63="","",MAX(A$1:A62)+1) -> 62 | B63: Matte8 | C63: Matte8 | D63: 13785 | E63: Khemri | F63: Italy
A64: =IF(B64="","",MAX(A$1:A63)+1) -> 63 | B64: Spartako | C64: Spartako | D64: 13417 | E64: Skaven | F64: Italy
A65: =IF(B65="","",MAX(A$1:A64)+1) -> 64 | B65: Verrinho | C65: Verrinho | D65: 16930 | E65: Nurgle's Rotters | F65: Italy
A66: =IF(B66="","",MAX(A$1:A65)+1) -> 65 | B66: zulu | C66: zulu | D66: 16829 | E66: Goblins | F66: Norway
A67: =IF(B67="","",MAX(A$1:A66)+1) -> 66 | B67: Endalos | C67: Endalos | D67: 17242 | E67: Wood Elves | F67: Norway
A68: =IF(B68="","",MAX(A$1:A67)+1) -> 67 | B68: The_Ref | C68: The_Ref | D68: 9441 | E68: Amazons | F68: Norway
A69: =IF(B69="","",MAX(A$1:A68)+1) -> 68 | B69: straume | C69: straume | D69: 20685 | E69: High Elves | F69: Norway
A70: =IF(B70="","",MAX(A$1:A69)+1) -> 69 | B70: bothun | C70: bothun | D70: 20953 | E70: Wood Elves | F70: Norway
A71: =IF(B71="","",MAX(A$1:A70)+1) -> 70 | B71: FrankPedersen | C71: FrankPedersen | D71: 20899 | E71: Chaos | F71: Norway
A72: =IF(B72="","",MAX(A$1:A71)+1) -> 71 | B72: mynock | C72: mynock | D72: 20775 | E72: Goblins | F72: Norway
A73: =IF(B73="","",MAX(A$1:A72)+1) -> 72 | B73: GreatWhiteHope | C73: GreatWhiteHope | D73: 20881 | E73: Lizardmen | F73: Norway
A74: =IF(B74="","",MAX(A$1:A73)+1) -> 73 | B74: Mewash | C74: Mewash | D74: 21627 | E74: Vampires | F74: Poland
A75: =IF(B75="","",MAX(A$1:A74)+1) -> 74 | B75: Reszka | C75: Reszka | D75: 21573 | E75: Dark Elves | F75: Poland
A76: =IF(B76="","",MAX(A$1:A75)+1) -> 75 | B76: Leonek | C76: Leonek | D76: 22375 | E76: Vampires | F76: Poland
A77: =IF(B77="","",MAX(A$1:A76)+1) -> 76 | B77: Domingo | C77: Domingo | D77: 20280 | E77: Ogres | F77: Poland
A78: =IF(B78="","",MAX(A$1:A77)+1) -> 77 | B78: Slimaq | C78: Slimaq | D78: 21957 | E78: Dark Elves | F78: Poland
A79: =IF(B79="","",MAX(A$1:A78)+1) -> 78 | B79: Warrior1980 | C79: Warrior1980 | D79: 22376 | E79: Norse | F79: Poland
A80: =IF(B80="","",MAX(A$1:A79)+1) -> 79 | B80: Juniooor7 | C80: Juniooor7 | D80: 22455 | E80: Norse | F80: Poland
A81: =IF(B81="","",MAX(A$1:A80)+1) -> 80 | B81: Shawass | C81: Shawass | D81: 18416 | E81: Chaos Pact | F81: Poland
A82: =IF(B82="","",MAX(A$1:A81)+1) -> 81 | B82: DonShula | C82: DonShula | D82: 14445 | E82: Skaven | F82: Scotland
A83: =IF(B83="","",MAX(A$1:A82)+1) -> 82 | B83: Garrick | C83: Garrick | D83: 18506 | E83: Chaos Dwarves | F83: Scotland
A84: =IF(B84="","",MAX(A$1:A83)+1) -> 83 | B84: Purdindas | C84: Purdindas | D84: 10831 | E84: Undead | F84: Scotland
A85: =IF(B85="","",MAX(A$1:A84)+1) -> 84 | B85: JamesEs | C85: JamesEs | D85: 17875 | E85: Vampires | F85: Scotland
A86: =IF(B86="","",MAX(A$1:A85)+1) -> 85 | B86: sann0638 | C86: sann0638 | D86: 8866 | E86: Humans | F86: Scotland
A87: =IF(B87="","",MAX(A$1:A86)+1) -> 86 | B87: Valen | C87: Valen | D87: 1538 | E87: Nurgle's Rotters | F87: Scotland
A88: =IF(B88="","",MAX(A$1:A87)+1) -> 87 | B88: Loki | C88: Loki | D88: 371 | E88: Underworld | F88: Scotland
A89: =IF(B89="","",MAX(A$1:A88)+1) -> 88 | B89: HumptyTrump | C89: HumptyTrump | D89: 20360 | E89: Skaven | F89: Scotland
A90: =IF(B90="","",MAX(A$1:A89)+1) -> 89 | B90: Dark Duke | C90: Dark Duke | D90: 2925 | E90: Chaos Dwarves | F90: Spain
A91: =IF(B91="","",MAX(A$1:A90)+1) -> 90 | B91: Obeliz | C91: Obeliz | D91: 2519 | E91: Chaos | F91: Spain
A92: =IF(B92="","",MAX(A$1:A91)+1) -> 91 | B92: Joanet | C92: Joanet | D92: 7690 | E92: Khemri | F92: Spain
A93: =IF(B93="","",MAX(A$1:A92)+1) -> 92 | B93: Duke_Luthor_Von_Hawkfire | C93: Duke_Luthor_Von_Hawkfire | D93: 11793 | E93: Vampires | F93: Spain
A94: =IF(B94="","",MAX(A$1:A93)+1) -> 93 | B94: Barry | C94: Barry | D94: 3290 | E94: High Elves | F94: Spain
A95: =IF(B95="","",MAX(A$1:A94)+1) -> 94 | B95: Idroj | C95: Idroj | D95: 20930 | E95: Dwarves | F95: Spain
A96: =IF(B96="","",MAX(A$1:A95)+1) -> 95 | B96: Malasnoticias | C96: Malasnoticias | D96: 17068 | E96: Chaos Pact | F96: Spain
A97: =IF(B97="","",MAX(A$1:A96)+1) -> 96 | B97: Tactel | C97: Tactel | D97: 20218 | E97: High Elves | F97: Spain
A98: =IF(B98="","",MAX(A$1:A97)+1) -> 97 | B98: Melisqus | C98: Melisqus | D98: 16238 | E98: Orc | F98: Sweden
A99: =IF(B99="","",MAX(A$1:A98)+1) -> 98 | B99: Inforthepain | C99: Inforthepain | D99: 19483 | E99: Wood Elves | F99: Sweden
A100: =IF(B100="","",MAX(A$1:A99)+1) -> 99 | B100: Pidpad | C100: Pidpad | D100: 20957 | E100: High Elves | F100: Sweden
A101: =IF(B101="","",MAX(A$1:A100)+1) -> 100 | B101: Skuld | C101: Skuld | D101: 20481 | E101: Dark Elves | F101: Sweden
A102: =IF(B102="","",MAX(A$1:A101)+1) -> 101 | B102: JohnnyD | C102: JohnnyD | D102: 18171 | E102: Halflings | F102: Sweden
A103: =IF(B103="","",MAX(A$1:A102)+1) -> 102 | B103: Skoberget | C103: Skoberget | D103: 19448 | E103: Slann | F103: Sweden
A104: =IF(B104="","",MAX(A$1:A103)+1) -> 103 | B104: Dragons | C104: Dragons | D104: 19003 | E104: Orc | F104: Sweden
A105: =IF(B105="","",MAX(A$1:A104)+1) -> 104 | B105: Pellevin | C105: Pellevin | D105: 19271 | E105: Elves | F105: Sweden
A106: =IF(B106="","",MAX(A$1:A105)+1) -> 105 | B106: Strider84 | C106: Strider84 | D106: 14113 | E106: Goblins | F106: Switzerland
A107: =IF(B107="","",MAX(A$1:A106)+1) -> 106 | B107: Jokaero | C107: Jokaero | D107: 2785 | E107: Vampires | F107: Switzerland
A108: =IF(B108="","",MAX(A$1:A107)+1) -> 107 | B108: Phifoe | C108: Phifoe | D108: 16959 | E108: Goblins | F108: Switzerland
A109: =IF(B109="","",MAX(A$1:A108)+1) -> 108 | B109: Goss | C109: Goss | D109: 18266 | E109: Humans | F109: Switzerland
A110: =IF(B110="","",MAX(A$1:A109)+1) -> 109 | B110: Madmatt13 | C110: Madmatt13 | D110: 19790 | E110: Norse | F110: Switzerland
A111: =IF(B111="","",MAX(A$1:A110)+1) -> 110 | B111: Elrik | C111: Elrik | D111: 19344 | E111: High Elves | F111: Switzerland
A112: =IF(B112="","",MAX(A$1:A111)+1) -> 111 | B112: sigu70 | C112: sigu70 | D112: 17003 | E112: Wood Elves | F112: Switzerland
A113: =IF(B113="","",MAX(A$1:A112)+1) -> 112 | B113: Macabeo | C113: Macabeo | D113: 18608 | E113: Chaos Pact | F113: Switzerland
A114: =IF(B114="","",MAX(A$1:A113)+1) -> 113 | B114: Balder | C114: Balder | D114: 17725 | E114: Dark Elves | F114: Viking
A115: =IF(B115="","",MAX(A$1:A114)+1) -> 114 | B115: Corwin | C115: Corwin | D115: 17878 | E115: Chaos Pact | F115: Viking
A116: =IF(B116="","",MAX(A$1:A115)+1) -> 115 | B116: Faccko | C116: Faccko | D116: 17893 | E116: Dwarves | F116: Viking
A117: =IF(B117="","",MAX(A$1:A116)+1) -> 116 | B117: Mufflo | C117: Mufflo | D117: 15048 | E117: Ogres | F117: Viking
A118: =IF(B118="","",MAX(A$1:A117)+1) -> 117 | B118: brocCooli | C118: brocCooli | D118: 12552 | E118: Slann | F118: Viking
A119: =IF(B119="","",MAX(A$1:A118)+1) -> 118 | B119: Duckwing | C119: Duckwing | D119: 16278 | E119: Vampires | F119: Viking
A120: =IF(B120="","",MAX(A$1:A119)+1) -> 119 | B120: Bernuz | C120: Bernuz | D120: 19542 | E120: Lizardmen | F120: Viking
A121: =IF(B121="","",MAX(A$1:A120)+1) -> 120 | B121: Purrelito | C121: Purrelito | D121: 15323 | E121: Skaven | F121: Viking
A122: =IF(B122="","",MAX(A$1:A121)+1) -> 121 | B122: nonumber | C122: nonumber | D122: 8923 | E122: Skaven | F122: Wales
A123: =IF(B123="","",MAX(A$1:A122)+1) -> 122 | B123: 20Phoenix | C123: 20Phoenix | D123: 19395 | E123: Chaos Dwarves | F123: Wales
A124: =IF(B124="","",MAX(A$1:A123)+1) -> 123 | B124: SFisher91 | C124: SFisher91 | D124: 16057 | E124: Chaos Pact | F124: Wales
A125: =IF(B125="","",MAX(A$1:A124)+1) -> 124 | B125: Dionysian | C125: Dionysian | D125: 19480 | E125: Dark Elves | F125: Wales
A126: =IF(B126="","",MAX(A$1:A125)+1) -> 125 | B126: Northernknight | C126: Northernknight | D126: 7569 | E126: Chaos | F126: Wales
A127: =IF(B127="","",MAX(A$1:A126)+1) -> 126 | B127: MadeofWelsh | C127: MadeofWelsh | D127: 12184 | E127: Lizardmen | F127: Wales
A128: =IF(B128="","",MAX(A$1:A127)+1) -> 127 | B128: Ploppy_McPloppy | C128: Ploppy_McPloppy | D128: 16417 | E128: Slann | F128: Wales
A129: =IF(B129="","",MAX(A$1:A128)+1) -> 128 | B129: andydavo | C129: andydavo | D129: 19726 | E129: Ogres | F129: Wales
A130: =IF(B130="","",MAX(A$1:A129)+1) -> 
A131: =IF(B131="","",MAX(A$1:A130)+1) -> 
A132: =IF(B132="","",MAX(A$1:A131)+1) -> 
A133: =IF(B133="","",MAX(A$1:A132)+1) -> 
A134: =IF(B134="","",MAX(A$1:A133)+1) -> 
A135: =IF(B135="","",MAX(A$1:A134)+1) -> 
A136: =IF(B136="","",MAX(A$1:A135)+1) -> 
A137: =IF(B137="","",MAX(A$1:A136)+1) -> 
A138: =IF(B138="","",MAX(A$1:A137)+1) -> 
A139: =IF(B139="","",MAX(A$1:A138)+1) -> 
A140: =IF(B140="","",MAX(A$1:A139)+1) -> 
A141: =IF(B141="","",MAX(A$1:A140)+1) -> 
A142: =IF(B142="","",MAX(A$1:A141)+1) -> 
A143: =IF(B143="","",MAX(A$1:A142)+1) -> 
A144: =IF(B144="","",MAX(A$1:A143)+1) -> 
A145: =IF(B145="","",MAX(A$1:A144)+1) -> 
A146: =IF(B146="","",MAX(A$1:A145)+1) -> 
A147: =IF(B147="","",MAX(A$1:A146)+1) -> 
A148: =IF(B148="","",MAX(A$1:A147)+1) -> 
A149: =IF(B149="","",MAX(A$1:A148)+1) -> 
A150: =IF(B150="","",MAX(A$1:A149)+1) -> 
A151: =IF(B151="","",MAX(A$1:A150)+1) -> 
A152: =IF(B152="","",MAX(A$1:A151)+1) -> 
A153: =IF(B153="","",MAX(A$1:A152)+1) -> 
A154: =IF(B154="","",MAX(A$1:A153)+1) -> 
A155: =IF(B155="","",MAX(A$1:A154)+1) -> 
A156: =IF(B156="","",MAX(A$1:A155)+1) -> 
A157: =IF(B157="","",MAX(A$1:A156)+1) -> 
A158: =IF(B158="","",MAX(A$1:A157)+1) -> 
A159: =IF(B159="","",MAX(A$1:A158)+1) -> 
A160: =IF(B160="","",MAX(A$1:A159)+1) -> 

Sheet GroupFixtures
A1: Round: 6 | C1: Home | D1: Away | M1: Points Before Games
A2: Swaps: 9 | C2: Italy | D2: Poland | M2: Italy | N2: 30
C3: Viking | D3: Switzerland | M3: Viking | N3: 28
C4: Wales | D4: France | M4: Poland | N4: 26
C5: Germany | D5: Hungary | M5: Switzerland | N5: 25
C6: Spain | D6: Belgium | M6: Belgium | N6: 24.5
C7: Finland | D7: England | M7: France | N7: 23.5
C8: Scotland | D8: Denmark | M8: Germany | N8: 23.5
C9: Norway | D9: Sweden | M9: England | N9: 23.5
M10: Hungary | N10: 21.5
M11: Denmark | N11: 21.5
M12: Wales | N12: 21.5
M13: Sweden | N13: 21
M14: Spain | N14: 19
M15: Scotland | N15: 17.5
M16: Norway | N16: 17.5
M17: Finland | N17: 16.5

Sheet GroupMatrix
B1: Belgium | C1: Denmark | D1: England | E1: Finland | F1: France | G1: Germany | H1: Hungary | I1: Italy | J1: Norway | K1: Poland | L1: Scotland | M1: Spain | N1: Sweden | O1: Switzerland | P1: Viking | Q1: Wales
A2: Belgium | D2: Rd 3 - 4.5 | H2: Rd 5 - 7 | K2: Rd 4 - 3.5 | M2: Rd 6 - 5.5 | N2: Rd 1 - 6.5 | P2: Rd 2 - 3
A3: Denmark | E3: Rd 2 - 6.5 | F3: Rd 1 - 1.5 | J3: Rd 3 - 4.5 | L3: Rd 6 - 3.5 | N3: Rd 4 - 4.5 | Q3: Rd 5 - 4.5
A4: England | B4: Rd 3 - 4.5 | E4: Rd 6 - 1.5 | J4: Rd 2 - 5.5 | K4: Rd 5 - 3.5 | O4: Rd 4 - 5.5 | Q4: Rd 1 - 4.5
A5: Finland | C5: Rd 2 - 2.5 | D5: Rd 6 - 7.5 | J5: Rd 5 - 4.5 | K5: Rd 1 - 1.5 | L5: Rd 4 - 4.5 | M5: Rd 3 - 3.5
A6: France | C6: Rd 1 - 7.5 | G6: Rd 3 - 4.5 | I6: Rd 4 - 2.5 | K6: Rd 2 - 6 | P6: Rd 5 - 3 | Q6: Rd 6 - 4.5
A7: Germany | F7: Rd 3 - 4.5 | H7: Rd 6 - 5.5 | I7: Rd 5 - 2.5 | J7: Rd 1 - 5.5 | P7: Rd 4 - 3.5 | Q7: Rd 2 - 7.5
A8: Hungary | B8: Rd 5 - 2 | G8: Rd 6 - 3.5 | J8: Rd 4 - 7.5 | M8: Rd 2 - 6.5 | N8: Rd 3 - 3.5 | O8: Rd 1 - 2
A9: Italy | F9: Rd 4 - 6.5 | G9: Rd 5 - 6.5 | K9: Rd 6 - 5.5 | M9: Rd 1 - 7 | O9: Rd 2 - 5.5 | P9: Rd 3 - 4.5
A10: Norway | C10: Rd 3 - 4.5 | D10: Rd 2 - 3.5 | E10: Rd 5 - 4.5 | G10: Rd 1 - 3.5 | H10: Rd 4 - 1.5 | N10: Rd 6 - 4.5
A11: Poland | B11: Rd 4 - 5.5 | D11: Rd 5 - 5.5 | E11: Rd 1 - 7.5 | F11: Rd 2 - 3 | I11: Rd 6 - 3.5 | O11: Rd 3 - 4.5
A12: Scotland | C12: Rd 6 - 5.5 | E12: Rd 4 - 4.5 | M12: Rd 5 - 3.5 | N12: Rd 2 - 3 | P12: Rd 1 - 3 | Q12: Rd 3 - 3.5
A13: Spain | B13: Rd 6 - 3.5 | E13: Rd 3 - 5.5 | H13: Rd 2 - 2.5 | I13: Rd 1 - 2 | L13: Rd 5 - 5.5 | Q13: Rd 4 - 3.5
A14: Sweden | B14: Rd 1 - 2.5 | C14: Rd 4 - 4.5 | H14: Rd 3 - 5.5 | J14: Rd 6 - 4.5 | L14: Rd 2 - 6 | O14: Rd 5 - 2.5
A15: Switzerland | D15: Rd 4 - 3.5 | H15: Rd 1 - 7 | I15: Rd 2 - 3.5 | K15: Rd 3 - 4.5 | N15: Rd 5 - 6.5 | P15: Rd 6 - 6.5
A16: Viking | B16: Rd 2 - 6 | F16: Rd 5 - 6 | G16: Rd 4 - 5.5 | I16: Rd 3 - 4.5 | L16: Rd 1 - 6 | O16: Rd 6 - 2.5
A17: Wales | C17: Rd 5 - 4.5 | D17: Rd 1 - 4.5 | F17: Rd 6 - 4.5 | G17: Rd 2 - 1.5 | L17: Rd 3 - 5.5 | M17: Rd 4 - 5.5

Sheet GroupTable
A1: Group | B1: Points | C1: TD For | D1: TD Against | E1: Net TDs | F1: Cas For | G1: Cas Against | H1: Net Cas | I1: Group Total Bonus 1 | J1: Group Total Bonus 2 | K1: Group Wins | L1: Groups Draws | M1: Group Losses | N1: Individual Wins | O1: Individual Draws | P1: Individual Losses | Q1: Total Individual Points
A2: Italy | B2: 35.5 | C2: 77 | D2: 60 | E2: 17 | F2: 69 | G2: 76 | H2: -7 | I2: 80 | J2: 82 | K2: 5 | L2: 1 | N2: 24 | O2: 12 | P2: 12 | Q2: 30
A3: Switzerland | B3: 31.5 | C3: 81 | D3: 71 | E3: 10 | F3: 71 | G3: 71 | H3: 0 | I3: 63 | J3: 69 | K3: 3 | L3: 1 | M3: 2 | N3: 18 | O3: 20 | P3: 10 | Q3: 28
A4: Viking | B4: 30.5 | C4: 69 | D4: 60 | E4: 9 | F4: 71 | G4: 72 | H4: -1 | I4: 89 | J4: 80 | K4: 4 | L4: 1 | M4: 1 | N4: 17 | O4: 18 | P4: 13 | Q4: 26
A5: Belgium | B5: 30 | C5: 69 | D5: 61 | E5: 8 | F5: 69 | G5: 71 | H5: -2 | I5: 75 | J5: 73 | K5: 3 | L5: 1 | M5: 2 | N5: 17 | O5: 19 | P5: 12 | Q5: 26.5
A6: Poland | B6: 29.5 | C6: 78 | D6: 71 | E6: 7 | F6: 68 | G6: 72 | H6: -4 | I6: 69 | J6: 74 | K6: 3 | L6: 1 | M6: 2 | N6: 18 | O6: 16 | P6: 14 | Q6: 26
A7: Germany | B7: 29 | C7: 71 | D7: 69 | E7: 2 | F7: 68 | G7: 79 | H7: -11 | I7: 74 | J7: 69 | K7: 3 | L7: 1 | M7: 2 | N7: 19 | O7: 13 | P7: 16 | Q7: 25.5
A8: France | B8: 28 | C8: 78 | D8: 78 | E8: 0 | F8: 83 | G8: 79 | H8: 4 | I8: 61 | J8: 66 | K8: 2 | L8: 2 | M8: 2 | N8: 18 | O8: 14 | P8: 16 | Q8: 25
A9: Wales | B9: 26 | C9: 73 | D9: 74 | E9: -1 | F9: 81 | G9: 71 | H9: 10 | I9: 69 | J9: 69 | K9: 2 | L9: 3 | M9: 1 | N9: 17 | O9: 11 | P9: 20 | Q9: 22.5
A10: Sweden | B10: 25.5 | C10: 81 | D10: 84 | E10: -3 | F10: 73 | G10: 71 | H10: 2 | I10: 73 | J10: 65 | K10: 2 | L10: 2 | M10: 2 | N10: 15 | O10: 15 | P10: 18 | Q10: 22.5
A11: Hungary | B11: 25 | C11: 69 | D11: 76 | E11: -7 | F11: 74 | G11: 66 | H11: 8 | I11: 81 | J11: 72 | K11: 2 | M11: 4 | N11: 18 | O11: 10 | P11: 20 | Q11: 23
A12: Denmark | B12: 25 | C12: 77 | D12: 75 | E12: 2 | F12: 76 | G12: 83 | H12: -7 | I12: 67 | J12: 69 | K12: 1 | L12: 3 | M12: 2 | N12: 16 | O12: 13 | P12: 19 | Q12: 22.5
A13: England | B13: 25 | C13: 64 | D13: 72 | E13: -8 | F13: 71 | G13: 73 | H13: -2 | I13: 75 | J13: 77 | K13: 2 | L13: 2 | M13: 2 | N13: 12 | O13: 20 | P13: 16 | Q13: 22
A14: Finland | B14: 24 | C14: 76 | D14: 78 | E14: -2 | F14: 80 | G14: 79 | H14: 1 | I14: 61 | J14: 81 | K14: 1 | L14: 2 | M14: 3 | N14: 15 | O14: 14 | P14: 19 | Q14: 22
A15: Scotland | B15: 23 | C15: 72 | D15: 83 | E15: -11 | F15: 84 | G15: 77 | H15: 7 | I15: 74 | J15: 77 | K15: 1 | L15: 1 | M15: 4 | N15: 15 | O15: 13 | P15: 20 | Q15: 21.5
A16: Spain | B16: 22.5 | C16: 69 | D16: 83 | E16: -14 | F16: 63 | G16: 67 | H16: -4 | I16: 67 | J16: 74 | K16: 2 | M16: 4 | N16: 14 | O16: 13 | P16: 21 | Q16: 20.5
A17: Norway | B17: 22 | C17: 71 | D17: 80 | E17: -9 | F17: 78 | G17: 72 | H17: 6 | I17: 70 | J17: 76 | L17: 3 | M17: 3 | N17: 11 | O17: 19 | P17: 18 | Q17: 20.5

Sheet Table
A1: Player | B1: Points | C1: TD For | D1: TD Against | E1: TD Net | F1: Cas For | G1: Cas Against | H1: Cas Net | I1: Bonus 1 | J1: Bonus 2 | K1: Wins | L1: Draws | M1: Losses | N1: Opp Score | P1: Group
A2: Strider84 | B2: 6.5 | C2: 19 | D2: 17 | E2: 2 | F2: 15 | G2: 13 | H2: 2 | I2: 7 | J2: 23 | K2: 5 | L2: 3 | M2: 3 | N2: 36.5 | P2: Switzerland
A3: Phifoe | B3: 6 | C3: 19 | D3: 15 | E3: 4 | F3: 17 | G3: 13 | H3: 4 | I3: 7 | J3: 17 | K3: 4 | L3: 4 | M3: 3 | N3: 35 | P3: Switzerland
A4: Simon_ACP | B4: 5.5 | C4: 13 | D4: 8 | E4: 5 | F4: 7 | G4: 8 | H4: -1 | I4: 4 | J4: 11 | K4: 5 | L4: 1 | N4: 23 | P4: France
A5: Madmatt13 | B5: 5.5 | C5: 18 | D5: 18 | E5: 0 | F5: 17 | G5: 2 | H5: 15 | I5: 3 | J5: 17 | K5: 4 | L5: 3 | M5: 4 | N5: 34.5 | P5: Switzerland
A6: Balder | B6: 5.5 | C6: 17 | D6: 10 | E6: 7 | F6: 19 | G6: 11 | H6: 8 | I6: 11 | J6: 16 | K6: 3 | L6: 5 | M6: 3 | N6: 31.5 | P6: Viking
A7: brocCooli | B7: 5 | C7: 14 | D7: 15 | E7: -1 | F7: 22 | G7: 10 | H7: 12 | I7: 4 | J7: 17 | K7: 4 | L7: 2 | M7: 5 | N7: 35.5 | P7: Viking
A8: Dragons | B8: 5 | C8: 15 | D8: 15 | E8: 0 | F8: 20 | G8: 10 | H8: 10 | I8: 8 | J8: 18 | K8: 3 | L8: 4 | M8: 4 | N8: 31 | P8: Sweden
A9: Pellevin | B9: 5 | C9: 21 | D9: 16 | E9: 5 | F9: 20 | G9: 9 | H9: 11 | I9: 3 | J9: 16 | K9: 4 | L9: 2 | M9: 5 | N9: 37 | P9: Sweden
A10: Mewash | B10: 5 | C10: 13 | D10: 7 | E10: 6 | F10: 8 | G10: 8 | H10: 0 | I10: 5 | J10: 9 | K10: 4 | L10: 2 | N10: 19.5 | P10: Poland
A11: Elrik | B11: 5 | C11: 16 | D11: 14 | E11: 2 | F11: 22 | G11: 12 | H11: 10 | I11: 4 | J11: 19 | K11: 3 | L11: 4 | M11: 4 | N11: 27.5 | P11: Switzerland
A12: Prince | B12: 5 | C12: 14 | D12: 6 | E12: 8 | F12: 6 | G12: 12 | H12: -6 | I12: 9 | J12: 8 | K12: 5 | M12: 1 | N12: 23 | P12: Germany
A13: Corwin | B13: 5 | C13: 18 | D13: 18 | E13: 0 | F13: 14 | G13: 8 | H13: 6 | I13: 12 | J13: 21 | K13: 4 | L13: 2 | M13: 5 | N13: 38.5 | P13: Viking
A14: Liam | B14: 4.5 | C14: 9 | D14: 6 | E14: 3 | F14: 8 | G14: 9 | H14: -1 | I14: 12 | J14: 12 | K14: 4 | L14: 1 | M14: 1 | N14: 21.5 | P14: Italy
A15: gninocker | B15: 4.5 | C15: 9 | D15: 5 | E15: 4 | F15: 6 | G15: 9 | H15: -3 | I15: 9 | J15: 10 | K15: 3 | L15: 3 | N15: 23.5 | P15: Belgium
A16: nonumber | B16: 4.5 | C16: 13 | D16: 14 | E16: -1 | F16: 21 | G16: 5 | H16: 16 | I16: -2 | J16: 13 | K16: 4 | L16: 1 | M16: 6 | N16: 29 | P16: Wales
A17: Warrior1980 | B17: 4.5 | C17: 13 | D17: 7 | E17: 6 | F17: 10 | G17: 9 | H17: 1 | I17: 8 | J17: 10 | K17: 3 | L17: 3 | N17: 21.5 | P17: Poland
A18: sigu70 | B18: 4.5 | C18: 16 | D18: 19 | E18: -3 | F18: 19 | G18: 3 | H18: 16 | I18: 0 | J18: 11 | K18: 2 | L18: 5 | M18: 4 | N18: 33 | P18: Switzerland
A19: Jokaero | B19: 4.5 | C19: 18 | D19: 15 | E19: 3 | F19: 24 | G19: 9 | H19: 15 | I19: 7 | J19: 18 | K19: 2 | L19: 5 | M19: 4 | N19: 36.5 | P19: Switzerland
A20: kfoged | B20: 4.5 | C20: 15 | D20: 8 | E20: 7 | F20: 12 | G20: 14 | H20: -2 | I20: 7 | J20: 8 | K20: 4 | L20: 1 | M20: 1 | N20: 16 | P20: Denmark
A21: valkohukka | B21: 4.5 | C21: 9 | D21: 5 | E21: 4 | F21: 9 | G21: 14 | H21: -5 | I21: 8 | J21: 7 | K21: 3 | L21: 3 | N21: 16.5 | P21: Finland
A22: Wolio | B22: 4.5 | C22: 11 | D22: 9 | E22: 2 | F22: 8 | G22: 11 | H22: -3 | I22: 7 | J22: 9 | K22: 4 | L22: 1 | M22: 1 | N22: 18.5 | P22: Hungary
A23: Duckwing | B23: 4.5 | C23: 18 | D23: 18 | E23: 0 | F23: 18 | G23: 10 | H23: 8 | I23: 6 | J23: 20 | K23: 3 | L23: 3 | M23: 5 | N23: 34.5 | P23: Viking
A24: Bernuz | B24: 4.5 | C24: 14 | D24: 14 | E24: 0 | F24: 17 | G24: 9 | H24: 8 | I24: 5 | J24: 22 | K24: 3 | L24: 3 | M24: 5 | N24: 33 | P24: Viking
A25: Tripleskull | B25: 4.5 | C25: 13 | D25: 8 | E25: 5 | F25: 11 | G25: 7 | H25: 4 | I25: 10 | J25: 12 | K25: 4 | L25: 1 | M25: 1 | N25: 22 | P25: Denmark
A26: Skoberget | B26: 4 | C26: 14 | D26: 19 | E26: -5 | F26: 14 | G26: 13 | H26: 1 | I26: 10 | J26: 16 | K26: 1 | L26: 6 | M26: 4 | N26: 35.5 | P26: Sweden
A27: Reszka | B27: 4 | C27: 10 | D27: 8 | E27: 2 | F27: 9 | G27: 5 | H27: 4 | I27: 12 | J27: 10 | K27: 2 | L27: 4 | N27: 23 | P27: Poland
A28: Malasnoticias | B28: 4 | C28: 8 | D28: 5 | E28: 3 | F28: 8 | G28: 12 | H28: -4 | I28: 11 | J28: 8 | K28: 3 | L28: 2 | M28: 1 | N28: 20 | P28: Spain
A29: Lycos | B29: 4 | C29: 11 | D29: 7 | E29: 4 | F29: 13 | G29: 13 | H29: 0 | I29: 5 | J29: 7 | K29: 2 | L29: 4 | N29: 22.5 | P29: England
A30: BiBi | B30: 4 | C30: 11 | D30: 10 | E30: 1 | F30: 10 | G30: 11 | H30: -1 | I30: 9 | J30: 7 | K30: 3 | L30: 2 | M30: 1 | N30: 22.5 | P30: France
A31: JohnnyD | B31: 4 | C31: 15 | D31: 18 | E31: -3 | F31: 17 | G31: 7 | H31: 10 | I31: 4 | J31: 15 | K31: 2 | L31: 4 | M31: 5 | N31: 35 | P31: Sweden
A32: Idroj | B32: 4 | C32: 10 | D32: 9 | E32: 1 | F32: 9 | G32: 8 | H32: 1 | I32: 8 | J32: 9 | K32: 3 | L32: 2 | M32: 1 | N32: 18 | P32: Spain
A33: Ploppy_McPloppy | B33: 4 | C33: 14 | D33: 15 | E33: -1 | F33: 21 | G33: 9 | H33: 12 | I33: 7 | J33: 15 | K33: 1 | L33: 6 | M33: 4 | N33: 29.5 | P33: Wales
A34: Woete | B34: 4 | C34: 9 | D34: 8 | E34: 1 | F34: 14 | G34: 8 | H34: 6 | I34: 7 | J34: 11 | K34: 4 | M34: 2 | N34: 19.5 | P34: Belgium
A35: Valen | B35: 4 | C35: 10 | D35: 9 | E35: 1 | F35: 12 | G35: 8 | H35: 4 | I35: 11 | J35: 10 | K35: 3 | L35: 2 | M35: 1 | N35: 22 | P35: Scotland
A36: noraal | B36: 4 | C36: 9 | D36: 8 | E36: 1 | F36: 9 | G36: 5 | H36: 4 | I36: 9 | J36: 14 | K36: 3 | L36: 2 | M36: 1 | N36: 24.5 | P36: Hungary
A37: mynock | B37: 4 | C37: 11 | D37: 6 | E37: 5 | F37: 9 | G37: 12 | H37: -3 | I37: 6 | J37: 10 | K37: 3 | L37: 2 | M37: 1 | N37: 19 | P37: Norway
A38: Alex05 | B38: 4 | C38: 11 | D38: 6 | E38: 5 | F38: 7 | G38: 8 | H38: -1 | I38: 6 | J38: 8 | K38: 4 | M38: 2 | N38: 20.5 | P38: Hungary
A39: Faccko | B39: 4 | C39: 13 | D39: 17 | E39: -4 | F39: 20 | G39: 7 | H39: 13 | I39: 10 | J39: 15 | K39: 2 | L39: 4 | M39: 5 | N39: 33.5 | P39: Viking
A40: Spartako | B40: 4 | C40: 12 | D40: 8 | E40: 4 | F40: 8 | G40: 10 | H40: -2 | I40: 9 | J40: 11 | K40: 4 | M40: 2 | N40: 22.5 | P40: Italy
A41: Driesfield | B41: 4 | C41: 8 | D41: 4 | E41: 4 | F41: 11 | G41: 9 | H41: 2 | I41: 15 | J41: 8 | K41: 3 | L41: 2 | M41: 1 | N41: 23 | P41: Belgium
A42: Macabeo | B42: 4 | C42: 18 | D42: 20 | E42: -2 | F42: 20 | G42: 9 | H42: 11 | I42: 6 | J42: 15 | K42: 2 | L42: 4 | M42: 5 | N42: 34 | P42: Switzerland
A43: Purrelito | B43: 4 | C43: 17 | D43: 18 | E43: -1 | F43: 19 | G43: 10 | H43: 9 | I43: 6 | J43: 18 | K43: 2 | L43: 4 | M43: 5 | N43: 29 | P43: Viking
A44: Skuld | B44: 4 | C44: 16 | D44: 19 | E44: -3 | F44: 21 | G44: 20 | H44: 1 | I44: 6 | J44: 27 | K44: 3 | L44: 2 | M44: 10 | N44: 36.5 | P44: Sweden
A45: SFisher91 | B45: 4 | C45: 15 | D45: 19 | E45: -4 | F45: 18 | G45: 10 | H45: 8 | I45: 1 | J45: 15 | K45: 3 | L45: 2 | M45: 6 | N45: 38.5 | P45: Wales
A46: Matte8 | B46: 4 | C46: 9 | D46: 7 | E46: 2 | F46: 10 | G46: 10 | H46: 0 | I46: 7 | J46: 8 | K46: 3 | L46: 2 | M46: 1 | N46: 22.5 | P46: Italy
A47: Harti | B47: 4 | C47: 11 | D47: 7 | E47: 4 | F47: 13 | G47: 8 | H47: 5 | I47: 9 | J47: 11 | K47: 3 | L47: 2 | M47: 1 | N47: 20 | P47: France
A48: Goss | B48: 4 | C48: 12 | D48: 19 | E48: -7 | F48: 21 | G48: 11 | H48: 10 | I48: 0 | J48: 16 | K48: 2 | L48: 4 | M48: 5 | N48: 31.5 | P48: Switzerland
A49: Verrinho | B49: 4 | C49: 9 | D49: 6 | E49: 3 | F49: 9 | G49: 11 | H49: -2 | I49: 11 | J49: 11 | K49: 3 | L49: 2 | M49: 1 | N49: 25.5 | P49: Italy
A50: Araznaroth | B50: 3.5 | C50: 11 | D50: 10 | E50: 1 | F50: 5 | G50: 10 | H50: -5 | I50: 8 | J50: 8 | K50: 1 | L50: 5 | N50: 25 | P50: Belgium
A51: Pidpad | B51: 3.5 | C51: 11 | D51: 7 | E51: 4 | F51: 10 | G51: 10 | H51: 0 | I51: 8 | J51: 8 | K51: 3 | L51: 1 | M51: 2 | N51: 22 | P51: Sweden
A52: Beppe | B52: 3.5 | C52: 9 | D52: 7 | E52: 2 | F52: 9 | G52: 10 | H52: -1 | I52: 11 | J52: 12 | K52: 3 | L52: 1 | M52: 2 | N52: 23.5 | P52: Italy
A53: Itzla | B53: 3.5 | C53: 9 | D53: 7 | E53: 2 | F53: 7 | G53: 9 | H53: -2 | I53: 12 | J53: 7 | K53: 3 | L53: 1 | M53: 2 | N53: 18.5 | P53: Hungary
A54: Farina | B54: 3.5 | C54: 11 | D54: 8 | E54: 3 | F54: 9 | G54: 9 | H54: 0 | I54: 12 | J54: 8 | K54: 2 | L54: 3 | M54: 1 | N54: 17.5 | P54: Italy
A55: RoterSternHochdah | B55: 3.5 | C55: 8 | D55: 7 | E55: 1 | F55: 9 | G55: 11 | H55: -2 | I55: 9 | J55: 8 | K55: 3 | L55: 1 | M55: 2 | N55: 21.5 | P55: Germany
A56: zulu | B56: 3.5 | C56: 9 | D56: 9 | E56: 0 | F56: 10 | G56: 7 | H56: 3 | I56: 10 | J56: 10 | K56: 3 | L56: 1 | M56: 2 | N56: 21.5 | P56: Norway
A57: 20Phoenix | B57: 3.5 | C57: 17 | D57: 18 | E57: -1 | F57: 22 | G57: 2 | H57: 20 | I57: 10 | J57: 11 | K57: 3 | L57: 1 | M57: 7 | N57: 26 | P57: Wales
A58: Niebling | B58: 3.5 | C58: 12 | D58: 9 | E58: 3 | F58: 10 | G58: 14 | H58: -4 | I58: 8 | J58: 7 | K58: 2 | L58: 3 | M58: 1 | N58: 17.5 | P58: Denmark
A59: Dirold | B59: 3.5 | C59: 11 | D59: 8 | E59: 3 | F59: 9 | G59: 9 | H59: 0 | I59: 8 | J59: 9 | K59: 2 | L59: 3 | M59: 1 | N59: 22 | P59: Italy
A60: DonShula | B60: 3.5 | C60: 10 | D60: 9 | E60: 1 | F60: 10 | G60: 9 | H60: 1 | I60: 5 | J60: 11 | K60: 3 | L60: 1 | M60: 2 | N60: 20.5 | P60: Scotland
A61: SpecialOne | B61: 3.5 | C61: 9 | D61: 7 | E61: 2 | F61: 9 | G61: 9 | H61: 0 | I61: 6 | J61: 10 | K61: 3 | L61: 1 | M61: 2 | N61: 18.5 | P61: Denmark
A62: andydavo | B62: 3.5 | C62: 11 | D62: 14 | E62: -3 | F62: 20 | G62: 9 | H62: 11 | I62: 0 | J62: 21 | K62: 2 | L62: 3 | M62: 6 | N62: 29.5 | P62: Wales
A63: MacWitt | B63: 3.5 | C63: 12 | D63: 7 | E63: 5 | F63: 13 | G63: 8 | H63: 5 | I63: 6 | J63: 9 | K63: 3 | L63: 1 | M63: 2 | N63: 18 | P63: Finland
A64: Mufflo | B64: 3.5 | C64: 14 | D64: 15 | E64: -1 | F64: 21 | G64: 12 | H64: 9 | I64: 12 | J64: 21 | L64: 7 | M64: 4 | N64: 31 | P64: Viking
A65: Dekra1979 | B65: 3.5 | C65: 7 | D65: 6 | E65: 1 | F65: 6 | G65: 8 | H65: -2 | I65: 10 | J65: 8 | K65: 2 | L65: 3 | M65: 1 | N65: 20.5 | P65: Belgium
A66: Arioso | B66: 3.5 | C66: 11 | D66: 8 | E66: 3 | F66: 13 | G66: 8 | H66: 5 | I66: 5 | J66: 12 | K66: 3 | L66: 1 | M66: 2 | N66: 21.5 | P66: Germany
A67: Bouzzy | B67: 3.5 | C67: 10 | D67: 8 | E67: 2 | F67: 10 | G67: 6 | H67: 4 | I67: 3 | J67: 10 | K67: 3 | L67: 1 | M67: 2 | N67: 21.5 | P67: France
A68: DocMaxx | B68: 3.5 | C68: 11 | D68: 8 | E68: 3 | F68: 12 | G68: 10 | H68: 2 | I68: 10 | J68: 10 | K68: 2 | L68: 3 | M68: 1 | N68: 18 | P68: Germany
A69: JJ | B69: 3.5 | C69: 8 | D69: 5 | E69: 3 | F69: 6 | G69: 9 | H69: -3 | I69: 9 | J69: 11 | K69: 2 | L69: 3 | M69: 1 | N69: 16.5 | P69: Belgium
A70: Dark Duke | B70: 3.5 | C70: 9 | D70: 10 | E70: -1 | F70: 9 | G70: 3 | H70: 6 | I70: 7 | J70: 13 | K70: 2 | L70: 3 | M70: 1 | N70: 19 | P70: Spain
A71: Podfrey | B71: 3.5 | C71: 6 | D71: 5 | E71: 1 | F71: 13 | G71: 9 | H71: 4 | I71: 11 | J71: 5 | K71: 2 | L71: 3 | M71: 1 | N71: 23.5 | P71: England
A72: PurpleGoo | B72: 3 | C72: 6 | D72: 8 | E72: -2 | F72: 5 | G72: 8 | H72: -3 | I72: 14 | J72: 11 | K72: 2 | L72: 2 | M72: 2 | N72: 21 | P72: England
A73: edheim | B73: 3 | C73: 10 | D73: 8 | E73: 2 | F73: 7 | G73: 10 | H73: -3 | I73: 7 | J73: 13 | K73: 2 | L73: 2 | M73: 2 | N73: 17 | P73: Finland
A74: Leonek | B74: 3 | C74: 9 | D74: 10 | E74: -1 | F74: 6 | G74: 12 | H74: -6 | I74: 8 | J74: 7 | K74: 2 | L74: 2 | M74: 2 | N74: 17 | P74: Poland
A75: Northernknight | B75: 3 | C75: 12 | D75: 23 | E75: -11 | F75: 17 | G75: 5 | H75: 12 | I75: 6 | J75: 15 | K75: 2 | L75: 2 | M75: 7 | N75: 31.5 | P75: Wales
A76: sann0638 | B76: 3 | C76: 11 | D76: 12 | E76: -1 | F76: 7 | G76: 8 | H76: -1 | I76: 10 | J76: 10 | K76: 2 | L76: 2 | M76: 2 | N76: 21 | P76: Scotland
A77: HumptyTrump | B77: 3 | C77: 9 | D77: 10 | E77: -1 | F77: 10 | G77: 10 | H77: 0 | I77: 12 | J77: 10 | K77: 1 | L77: 4 | M77: 1 | N77: 18.5 | P77: Scotland
A78: Justicium | B78: 3 | C78: 12 | D78: 11 | E78: 1 | F78: 7 | G78: 12 | H78: -5 | I78: 8 | J78: 6 | K78: 3 | M78: 3 | N78: 22 | P78: France
A79: Slimaq | B79: 3 | C79: 10 | D79: 10 | E79: 0 | F79: 10 | G79: 13 | H79: -3 | I79: 9 | J79: 11 | K79: 2 | L79: 2 | M79: 2 | N79: 19.5 | P79: Poland
A80: Kaltenland | B80: 3 | C80: 7 | D80: 10 | E80: -3 | F80: 7 | G80: 8 | H80: -1 | I80: 10 | J80: 11 | K80: 3 | M80: 3 | N80: 18 | P80: Italy
A81: Juniooor7 | B81: 3 | C81: 7 | D81: 8 | E81: -1 | F81: 9 | G81: 8 | H81: 1 | I81: 9 | J81: 7 | K81: 3 | M81: 3 | N81: 23.5 | P81: Poland
A82: Melisqus | B82: 3 | C82: 14 | D82: 14 | E82: 0 | F82: 11 | G82: 7 | H82: 4 | I82: 10 | J82: 8 | K82: 2 | L82: 2 | M82: 2 | N82: 18.5 | P82: Sweden
A83: Wilzif | B83: 3 | C83: 10 | D83: 10 | E83: 0 | F83: 11 | G83: 8 | H83: 3 | I83: 11 | J83: 9 | K83: 2 | L83: 2 | M83: 2 | N83: 22 | P83: England
A84: GreatWhiteHope | B84: 3 | C84: 10 | D84: 9 | E84: 1 | F84: 11 | G84: 12 | H84: -1 | I84: 11 | J84: 14 | K84: 2 | L84: 2 | M84: 2 | N84: 18 | P84: Norway
A85: MadeofWelsh | B85: 3 | C85: 13 | D85: 18 | E85: -5 | F85: 22 | G85: 12 | H85: 10 | I85: 0 | J85: 16 | K85: 2 | L85: 2 | M85: 7 | N85: 26 | P85: Wales
A86: Dionysian | B86: 3 | C86: 16 | D86: 19 | E86: -3 | F86: 21 | G86: 7 | H86: 14 | I86: 4 | J86: 17 | K86: 2 | L86: 2 | M86: 7 | N86: 32 | P86: Wales
A87: Malodoror | B87: 2.5 | C87: 11 | D87: 12 | E87: -1 | F87: 11 | G87: 10 | H87: 1 | I87: 10 | J87: 11 | K87: 1 | L87: 3 | M87: 2 | N87: 14 | P87: Belgium
A88: Jonny_Kanone | B88: 2.5 | C88: 9 | D88: 11 | E88: -2 | F88: 9 | G88: 12 | H88: -3 | I88: 10 | J88: 12 | K88: 1 | L88: 3 | M88: 2 | N88: 20 | P88: Germany
A89: Tank | B89: 2.5 | C89: 9 | D89: 9 | E89: 0 | F89: 9 | G89: 8 | H89: 1 | I89: 7 | J89: 5 | K89: 1 | L89: 3 | M89: 2 | N89: 16.5 | P89: Denmark
A90: Garrick | B90: 2.5 | C90: 8 | D90: 8 | E90: 0 | F90: 14 | G90: 9 | H90: 5 | I90: 10 | J90: 8 | K90: 2 | L90: 1 | M90: 3 | N90: 18.5 | P90: Scotland
A91: Gaunab | B91: 2.5 | C91: 6 | D91: 11 | E91: -5 | F91: 8 | G91: 13 | H91: -5 | I91: 8 | J91: 5 | K91: 2 | L91: 1 | M91: 3 | N91: 19 | P91: Germany
A92: BeerBeer | B92: 2.5 | C92: 12 | D92: 15 | E92: -3 | F92: 12 | G92: 10 | H92: 2 | I92: 8 | J92: 10 | K92: 2 | L92: 1 | M92: 3 | N92: 13 | P92: Finland
A93: Candlejack | B93: 2.5 | C93: 5 | D93: 8 | E93: -3 | F93: 5 | G93: 8 | H93: -3 | I93: 13 | J93: 7 | K93: 1 | L93: 3 | M93: 2 | N93: 19 | P93: Germany
A94: Purdindas | B94: 2.5 | C94: 11 | D94: 12 | E94: -1 | F94: 11 | G94: 13 | H94: -2 | I94: 7 | J94: 9 | K94: 2 | L94: 1 | M94: 3 | N94: 21 | P94: Scotland
A95: bothun | B95: 2.5 | C95: 8 | D95: 9 | E95: -1 | F95: 12 | G95: 8 | H95: 4 | I95: 13 | J95: 8 | K95: 1 | L95: 3 | M95: 2 | N95: 20.5 | P95: Norway
A96: J-Ho | B96: 2.5 | C96: 11 | D96: 13 | E96: -2 | F96: 9 | G96: 8 | H96: 1 | I96: 7 | J96: 11 | K96: 1 | L96: 3 | M96: 2 | N96: 16 | P96: Finland
A97: Harza | B97: 2.5 | C97: 8 | D97: 9 | E97: -1 | F97: 10 | G97: 9 | H97: 1 | I97: 7 | J97: 8 | K97: 1 | L97: 3 | M97: 2 | N97: 20.5 | P97: Finland
A98: Mubo | B98: 2.5 | C98: 10 | D98: 12 | E98: -2 | F98: 6 | G98: 7 | H98: -1 | I98: 9 | J98: 11 | K98: 1 | L98: 3 | M98: 2 | N98: 21 | P98: England
A99: Endalos | B99: 2.5 | C99: 7 | D99: 11 | E99: -4 | F99: 7 | G99: 9 | H99: -2 | I99: 7 | J99: 9 | K99: 1 | L99: 3 | M99: 2 | N99: 18.5 | P99: Norway
A100: Muadib | B100: 2.5 | C100: 7 | D100: 10 | E100: -3 | F100: 6 | G100: 5 | H100: 1 | I100: 10 | J100: 7 | K100: 2 | L100: 1 | M100: 3 | N100: 21 | P100: Germany
A101: ratogre | B101: 2 | C101: 6 | D101: 10 | E101: -4 | F101: 10 | G101: 11 | H101: -1 | I101: 11 | J101: 12 | K101: 2 | M101: 4 | N101: 13.5 | P101: Finland
A102: straume | B102: 2 | C102: 12 | D102: 14 | E102: -2 | F102: 9 | G102: 9 | H102: 0 | I102: 8 | J102: 12 | L102: 4 | M102: 2 | N102: 17 | P102: Norway
A103: JimJimany | B103: 2 | C103: 7 | D103: 11 | E103: -4 | F103: 4 | G103: 9 | H103: -5 | I103: 6 | J103: 11 | L103: 4 | M103: 2 | N103: 16 | P103: England
A104: The_Ref | B104: 2 | C104: 9 | D104: 11 | E104: -2 | F104: 12 | G104: 7 | H104: 5 | I104: 9 | J104: 9 | K104: 1 | L104: 2 | M104: 3 | N104: 18 | P104: Norway
A105: Joemanji | B105: 2 | C105: 7 | D105: 10 | E105: -3 | F105: 8 | G105: 10 | H105: -2 | I105: 12 | J105: 13 | K105: 2 | M105: 4 | N105: 21 | P105: England
A106: Tactel | B106: 2 | C106: 8 | D106: 11 | E106: -3 | F106: 8 | G106: 8 | H106: 0 | I106: 7 | J106: 14 | K106: 2 | M106: 4 | N106: 22.5 | P106: Spain
A107: Obeliz | B107: 2 | C107: 9 | D107: 13 | E107: -4 | F107: 9 | G107: 11 | H107: -2 | I107: 7 | J107: 9 | K107: 2 | M107: 4 | N107: 16.5 | P107: Spain
A108: Favi | B108: 2 | C108: 6 | D108: 9 | E108: -3 | F108: 10 | G108: 6 | H108: 4 | I108: 16 | J108: 13 | K108: 2 | M108: 4 | N108: 20.5 | P108: Hungary
A109: Barry | B109: 2 | C109: 7 | D109: 11 | E109: -4 | F109: 9 | G109: 9 | H109: 0 | I109: 9 | J109: 4 | K109: 1 | L109: 2 | M109: 3 | N109: 22.5 | P109: Spain
A110: Inforthepain | B110: 2 | C110: 8 | D110: 12 | E110: -4 | F110: 8 | G110: 11 | H110: -3 | I110: 9 | J110: 9 | K110: 1 | L110: 2 | M110: 3 | N110: 15 | P110: Sweden
A111: Gros Nain | B111: 2 | C111: 8 | D111: 11 | E111: -3 | F111: 12 | G111: 14 | H111: -2 | I111: 12 | J111: 10 | K111: 1 | L111: 2 | M111: 3 | N111: 19 | P111: France
A112: BlackOrc | B112: 2 | C112: 6 | D112: 12 | E112: -6 | F112: 13 | G112: 7 | H112: 6 | I112: 13 | J112: 7 | K112: 1 | L112: 2 | M112: 3 | N112: 20 | P112: Hungary
A113: MissSweden | B113: 2 | C113: 9 | D113: 11 | E113: -2 | F113: 13 | G113: 12 | H113: 1 | I113: 10 | J113: 12 | K113: 1 | L113: 2 | M113: 3 | N113: 19 | P113: Denmark
A114: Duke_Luthor_Von_Hawkfire | B114: 2 | C114: 9 | D114: 11 | E114: -2 | F114: 7 | G114: 5 | H114: 2 | I114: 7 | J114: 9 | L114: 4 | M114: 2 | N114: 16.5 | P114: Spain
A115: swifty | B115: 2 | C115: 10 | D115: 13 | E115: -3 | F115: 8 | G115: 9 | H115: -1 | I115: 11 | J115: 11 | K115: 1 | L115: 2 | M115: 3 | N115: 22 | P115: Hungary
A116: Geggster | B116: 2 | C116: 7 | D116: 9 | E116: -2 | F116: 11 | G116: 9 | H116: 2 | I116: 7 | J116: 10 | K116: 1 | L116: 2 | M116: 3 | N116: 16.5 | P116: England
A117: Domingo | B117: 2 | C117: 8 | D117: 11 | E117: -3 | F117: 7 | G117: 8 | H117: -1 | I117: 7 | J117: 8 | K117: 1 | L117: 2 | M117: 3 | N117: 21 | P117: Poland
A118: BudWiser | B118: 1.5 | C118: 5 | D118: 11 | E118: -6 | F118: 12 | G118: 9 | H118: 3 | I118: 8 | J118: 7 | L118: 3 | M118: 3 | N118: 21.5 | P118: France
A119: JamesEs | B119: 1.5 | C119: 7 | D119: 13 | E119: -6 | F119: 11 | G119: 11 | H119: 0 | I119: 10 | J119: 11 | K119: 1 | L119: 1 | M119: 4 | N119: 18 | P119: Scotland
A120: Shawass | B120: 1.5 | C120: 8 | D120: 10 | E120: -2 | F120: 9 | G120: 9 | H120: 0 | I120: 11 | J120: 12 | K120: 1 | L120: 1 | M120: 4 | N120: 20.5 | P120: Poland
A121: jopotzuki | B121: 1.5 | C121: 8 | D121: 11 | E121: -3 | F121: 10 | G121: 9 | H121: 1 | I121: 7 | J121: 11 | K121: 1 | L121: 1 | M121: 4 | N121: 18.5 | P121: Finland
A122: Loki | B122: 1.5 | C122: 6 | D122: 10 | E122: -4 | F122: 9 | G122: 9 | H122: 0 | I122: 9 | J122: 8 | K122: 1 | L122: 1 | M122: 4 | N122: 20.5 | P122: Scotland
A123: Matt le fou | B123: 1.5 | C123: 8 | D123: 12 | E123: -4 | F123: 12 | G123: 11 | H123: 1 | I123: 8 | J123: 4 | L123: 3 | M123: 3 | N123: 19 | P123: France
A124: Phoenix11 | B124: 1 | C124: 6 | D124: 11 | E124: -5 | F124: 10 | G124: 8 | H124: 2 | I124: 7 | J124: 6 | K124: 1 | M124: 5 | N124: 16 | P124: Belgium
A125: FrankPedersen | B125: 1 | C125: 5 | D125: 11 | E125: -6 | F125: 8 | G125: 8 | H125: 0 | I125: 6 | J125: 4 | L125: 2 | M125: 4 | N125: 13 | P125: Norway
A126: Jaqra | B126: 1 | C126: 4 | D126: 12 | E126: -8 | F126: 4 | G126: 8 | H126: -4 | I126: 11 | J126: 8 | K126: 1 | M126: 5 | N126: 20 | P126: Denmark
A127: Joanet | B127: 1 | C127: 9 | D127: 13 | E127: -4 | F127: 4 | G127: 11 | H127: -7 | I127: 11 | J127: 8 | K127: 1 | M127: 5 | N127: 16.5 | P127: Spain
A128: cz | B128: 1 | C128: 7 | D128: 12 | E128: -5 | F128: 12 | G128: 11 | H128: 1 | I128: 7 | J128: 3 | L128: 2 | M128: 4 | N128: 19 | P128: Hungary
A129: Topper | B129: 1 | C129: 6 | D129: 11 | E129: -5 | F129: 8 | G129: 11 | H129: -3 | I129: 8 | J129: 7 | L129: 2 | M129: 4 | N129: 18.5 | P129: Denmark

Sheet Round1
B1: Home Player | C1: Away Player | D1: Home Points | E1: Away Points | F1: Home TD | G1: Away TD | H1: Home Cas | I1: Away Cas | J1: Home Bonus 1 | K1: Away Bonus 1 | L1: Home Bonus 2 | M1: Away Bonus 2 | N1: Home Group | O1: Away Group | S1: Points Before Games | V1: Points After Games | Y1: Group Results | Z1: Group | AA1: Points | AC1: Group Points Before Games | AF1: Group Points Before Games
B2: Barry | C2: Spartako | D2: =fctScore(F2,G2,H2,J2,L2) -> 1 | E2: =fctScore(G2,F2,I2,K2,M2) -> 0 | F2: 2 | G2: 1 | H2: 1 | I2: 1 | J2: 0 | K2: 2 | L2: 2 | M2: 3 | N2: Spain | O2: Italy | S2: JamesEs | T2: 0 | V2: Podfrey | W2: 1 | Z2: Belgium | AA2: 6.5 | AC2: Spain | AD2: 0 | AF2: Poland | AG2: 7.5
B3: Joanet | C3: Kaltenland | D3: =fctScore(F3,G3,H3,J3,L3) -> 0 | E3: =fctScore(G3,F3,I3,K3,M3) -> 1 | F3: 0 | G3: 1 | H3: 2 | I3: 1 | J3: 1 | K3: 3 | L3: 1 | M3: 3 | N3: Spain | O3: Italy | S3: Geggster | T3: 0 | V3: Simon_ACP | W3: 1 | Z3: Denmark | AA3: 1.5 | AC3: Italy | AD3: 0 | AF3: France | AG3: 7.5
B4: Malasnoticias | C4: Liam | D4: 0 | E4: 1 | F4: 1 | G4: 2 | H4: 2 | I4: 2 | J4: 1 | K4: 2 | L4: 2 | M4: 2 | N4: Spain | O4: Italy | S4: Endalos | T4: 0 | V4: Kaltenland | W4: 1 | Z4: England | AA4: 4.5 | AC4: Wales | AD4: 0 | AF4: Switzerland | AG4: 7
B5: Dark Duke | C5: Beppe | D5: 0 | E5: 1 | F5: 0 | G5: 3 | H5: 0 | I5: 0 | J5: 1 | K5: 1 | L5: 1 | M5: 3 | N5: Spain | O5: Italy | S5: Garrick | T5: 0 | V5: Phifoe | W5: 1 | Z5: Finland | AA5: 1.5 | AC5: England | AD5: 0 | AF5: Italy | AG5: 7
B6: Idroj | C6: Dirold | D6: 0 | E6: 1 | F6: 0 | G6: 3 | H6: 1 | I6: 0 | J6: 2 | K6: 0 | L6: 0 | M6: 2 | N6: Spain | O6: Italy | S6: Matt le fou | T6: 0 | V6: Wilzif | W6: 1 | Z6: France | AA6: 7.5 | AC6: Poland | AD6: 0 | AF6: Belgium | AG6: 6.5
B7: Obeliz | C7: Verrinho | D7: 0 | E7: 1 | F7: 1 | G7: 3 | H7: 1 | I7: 1 | J7: 2 | K7: 2 | L7: 2 | M7: 0 | N7: Spain | O7: Italy | S7: mynock | T7: 0 | V7: GreatWhiteHope | W7: 1 | Z7: Germany | AA7: 5.5 | AC7: Finland | AD7: 0 | AF7: Viking | AG7: 6
B8: Tactel | C8: Farina | D8: 1 | E8: 0 | F8: 3 | G8: 1 | H8: 1 | I8: 0 | J8: 3 | K8: 1 | L8: 1 | M8: 3 | N8: Spain | O8: Italy | S8: Balder | T8: 0 | V8: Strider84 | W8: 1 | Z8: Hungary | AA8: 2 | AC8: Hungary | AD8: 0 | AF8: Germany | AG8: 5.5
B9: Duke_Luthor_Von_Hawkfire | C9: Matte8 | D9: 0 | E9: 1 | F9: 1 | G9: 2 | H9: 0 | I9: 2 | J9: 1 | K9: 2 | L9: 1 | M9: 0 | N9: Spain | O9: Italy | S9: Pellevin | T9: 0 | V9: SFisher91 | W9: 1 | Z9: Italy | AA9: 7 | AC9: Switzerland | AD9: 0 | AF9: Wales | AG9: 4.5
B10: Northernknight | C10: Geggster | D10: 1 | E10: 0 | F10: 2 | G10: 1 | H10: 1 | I10: 1 | J10: 1 | K10: 2 | L10: 0 | M10: 1 | N10: Wales | O10: England | S10: Northernknight | T10: 0 | V10: Dirold | W10: 1 | Z10: Norway | AA10: 3.5 | AC10: Germany | AD10: 0 | AF10: England | AG10: 4.5
B11: andydavo | C11: Mubo | D11: 0.5 | E11: 0.5 | F11: 2 | G11: 2 | H11: 2 | I11: 1 | J11: 0 | K11: 2 | L11: 2 | M11: 2 | N11: Wales | O11: England | S11: Jokaero | T11: 0 | V11: Valen | W11: 1 | Z11: Poland | AA11: 7.5 | AC11: Norway | AD11: 0 | AF11: Norway | AG11: 3.5
B12: MadeofWelsh | C12: Podfrey | D12: 0 | E12: 1 | F12: 1 | G12: 2 | H12: 0 | I12: 3 | J12: 1 | K12: 2 | L12: 0 | M12: 1 | N12: Wales | O12: England | S12: Harza | T12: 0 | V12: Juniooor7 | W12: 1 | Z12: Scotland | AA12: 3 | AC12: Belgium | AD12: 0 | AF12: Scotland | AG12: 3
B13: nonumber | C13: Joemanji | D13: 0 | E13: 1 | F13: 0 | G13: 2 | H13: 3 | I13: 1 | J13: 1 | K13: 2 | L13: 0 | M13: 2 | N13: Wales | O13: England | S13: Barry | T13: 0 | V13: sigu70 | W13: 1 | Z13: Spain | AA13: 2 | AC13: Sweden | AD13: 0 | AF13: Sweden | AG13: 2.5
B14: Dionysian | C14: JimJimany | D14: 1 | E14: 0 | F14: 3 | G14: 0 | H14: 2 | I14: 0 | J14: 3 | K14: 3 | L14: 2 | M14: 2 | N14: Wales | O14: England | S14: Purrelito | T14: 0 | V14: gninocker | W14: 1 | Z14: Sweden | AA14: 2.5 | AC14: Denmark | AD14: 0 | AF14: Spain | AG14: 2
B15: Ploppy_McPloppy | C15: Lycos | D15: 0.5 | E15: 0.5 | F15: 1 | G15: 1 | H15: 3 | I15: 2 | J15: 3 | K15: 0 | L15: 0 | M15: 1 | N15: Wales | O15: England | S15: jopotzuki | T15: 0 | V15: Faccko | W15: 1 | Z15: Switzerland | AA15: 7 | AC15: France | AD15: 0 | AF15: Hungary | AG15: 2
B16: 20Phoenix | C16: Wilzif | D16: 0 | E16: 1 | F16: 0 | G16: 1 | H16: 3 | I16: 1 | J16: 2 | K16: 2 | L16: 0 | M16: 2 | N16: Wales | O16: England | S16: Prince | T16: 0 | V16: Prince | W16: 1 | Z16: Viking | AA16: 6 | AC16: Scotland | AD16: 0 | AF16: Denmark | AG16: 1.5
B17: SFisher91 | C17: PurpleGoo | D17: 1 | E17: 0 | F17: 2 | G17: 1 | H17: 0 | I17: 2 | J17: 0 | K17: 2 | L17: 1 | M17: 3 | N17: Wales | O17: England | S17: Niebling | T17: 0 | V17: Driesfield | W17: 1 | Z17: Wales | AA17: 4.5 | AC17: Viking | AD17: 0 | AF17: Finland | AG17: 1.5
B18: Mewash | C18: Harza | D18: 0.5 | E18: 0.5 | F18: 1 | G18: 1 | H18: 2 | I18: 1 | J18: 1 | K18: 0 | L18: 0 | M18: 3 | N18: Poland | O18: Finland | S18: Harti | T18: 0 | V18: brocCooli | W18: 1
B19: Reszka | C19: jopotzuki | D19: 1 | E19: 0 | F19: 2 | G19: 1 | H19: 1 | I19: 1 | J19: 3 | K19: 1 | L19: 2 | M19: 1 | N19: Poland | O19: Finland | S19: andydavo | T19: 0 | V19: Bouzzy | W19: 1
B20: Domingo | C20: valkohukka | D20: 0.5 | E20: 0.5 | F20: 1 | G20: 1 | H20: 1 | I20: 0 | J20: 2 | K20: 2 | L20: 1 | M20: 1 | N20: Poland | O20: Finland | S20: BudWiser | T20: 0 | V20: Araznaroth | W20: 1
B21: Slimaq | C21: MacWitt | D21: 1 | E21: 0 | F21: 3 | G21: 2 | H21: 1 | I21: 3 | J21: 1 | K21: 0 | L21: 3 | M21: 2 | N21: Poland | O21: Finland | S21: BiBi | T21: 0 | V21: Northernknight | W21: 1
B22: Leonek | C22: edheim | D22: 0.5 | E22: 0.5 | F22: 2 | G22: 2 | H22: 1 | I22: 3 | J22: 1 | K22: 1 | L22: 1 | M22: 2 | N22: Poland | O22: Finland | S22: MadeofWelsh | T22: 0 | V22: Dionysian | W22: 1
B23: Shawass | C23: BeerBeer | D23: 1 | E23: 0 | F23: 3 | G23: 0 | H23: 3 | I23: 2 | J23: 3 | K23: 2 | L23: 1 | M23: 2 | N23: Poland | O23: Finland | S23: valkohukka | T23: 0 | V23: Woete | W23: 1
B24: Juniooor7 | C24: ratogre | D24: 1 | E24: 0 | F24: 2 | G24: 0 | H24: 2 | I24: 1 | J24: 2 | K24: 0 | L24: 0 | M24: 3 | N24: Poland | O24: Finland | S24: Joanet | T24: 0 | V24: Warrior1980 | W24: 1
B25: Warrior1980 | C25: J-Ho | D25: 1 | E25: 0 | F25: 3 | G25: 0 | H25: 2 | I25: 3 | J25: 0 | K25: 1 | L25: 1 | M25: 3 | N25: Poland | O25: Finland | S25: zulu | T25: 0 | V25: Arioso | W25: 1
B26: Alex05 | C26: Jokaero | D26: 0 | E26: 1 | F26: 1 | G26: 2 | H26: 2 | I26: 1 | J26: 0 | K26: 3 | L26: 1 | M26: 2 | N26: Hungary | O26: Switzerland | S26: Gros Nain | T26: 0 | V26: Beppe | W26: 1
B27: BlackOrc | C27: Elrik | D27: 0.5 | E27: 0.5 | F27: 0 | G27: 0 | H27: 3 | I27: 1 | J27: 3 | K27: 1 | L27: 1 | M27: 1 | N27: Hungary | O27: Switzerland | S27: Spartako | T27: 0 | V27: Matte8 | W27: 1
B28: Favi | C28: Phifoe | D28: 0 | E28: 1 | F28: 2 | G28: 3 | H28: 1 | I28: 1 | J28: 3 | K28: 3 | L28: 1 | M28: 2 | N28: Hungary | O28: Switzerland | S28: Jaqra | T28: 0 | V28: Liam | W28: 1
B29: swifty | C29: Strider84 | D29: 0 | E29: 1 | F29: 1 | G29: 3 | H29: 1 | I29: 0 | J29: 1 | K29: 2 | L29: 1 | M29: 2 | N29: Hungary | O29: Switzerland | S29: Mewash | T29: 0 | V29: Justicium | W29: 1
B30: noraal | C30: Madmatt13 | D30: 0.5 | E30: 0.5 | F30: 2 | G30: 2 | H30: 1 | I30: 0 | J30: 1 | K30: 1 | L30: 3 | M30: 1 | N30: Hungary | O30: Switzerland | S30: Gaunab | T30: 0 | V30: Muadib | W30: 1
B31: cz | C31: Macabeo | D31: 0 | E31: 1 | F31: 2 | G31: 3 | H31: 1 | I31: 1 | J31: 2 | K31: 2 | L31: 1 | M31: 0 | N31: Hungary | O31: Switzerland | S31: DocMaxx | T31: 0 | V31: Slimaq | W31: 1
B32: Wolio | C32: Goss | D32: 1 | E32: 0 | F32: 2 | G32: 0 | H32: 1 | I32: 3 | J32: 2 | K32: 1 | L32: 2 | M32: 1 | N32: Hungary | O32: Switzerland | S32: nonumber | T32: 0 | V32: Wolio | W32: 1
B33: Itzla | C33: sigu70 | D33: 0 | E33: 1 | F33: 0 | G33: 1 | H33: 3 | I33: 0 | J33: 3 | K33: 0 | L33: 2 | M33: 1 | N33: Hungary | O33: Switzerland | S33: FrankPedersen | T33: 0 | V33: BiBi | W33: 1
B34: Prince | C34: Endalos | D34: 1 | E34: 0 | F34: 3 | G34: 0 | H34: 2 | I34: 1 | J34: 3 | K34: 1 | L34: 2 | M34: 2 | N34: Germany | O34: Norway | S34: Mubo | T34: 0 | V34: mynock | W34: 1
B35: Gaunab | C35: mynock | D35: 0 | E35: 1 | F35: 0 | G35: 2 | H35: 2 | I35: 2 | J35: 1 | K35: 3 | L35: 0 | M35: 2 | N35: Germany | O35: Norway | S35: Melisqus | T35: 0 | V35: Verrinho | W35: 1
B36: DocMaxx | C36: zulu | D36: 0.5 | E36: 0.5 | F36: 2 | G36: 2 | H36: 1 | I36: 3 | J36: 3 | K36: 1 | L36: 2 | M36: 1 | N36: Germany | O36: Norway | S36: Mufflo | T36: 0 | V36: Macabeo | W36: 1
B37: Muadib | C37: FrankPedersen | D37: 1 | E37: 0 | F37: 3 | G37: 2 | H37: 1 | I37: 0 | J37: 2 | K37: 0 | L37: 2 | M37: 1 | N37: Germany | O37: Norway | S37: MacWitt | T37: 0 | V37: Jokaero | W37: 1
B38: Candlejack | C38: GreatWhiteHope | D38: 0 | E38: 1 | F38: 0 | G38: 2 | H38: 2 | I38: 2 | J38: 3 | K38: 3 | L38: 1 | M38: 0 | N38: Germany | O38: Norway | S38: GreatWhiteHope | T38: 0 | V38: Barry | W38: 1
B39: Jonny_Kanone | C39: straume | D39: 0.5 | E39: 0.5 | F39: 2 | G39: 2 | H39: 1 | I39: 3 | J39: 2 | K39: 1 | L39: 2 | M39: 1 | N39: Germany | O39: Norway | S39: Muadib | T39: 0 | V39: Reszka | W39: 1
B40: Arioso | C40: The_Ref | D40: 1 | E40: 0 | F40: 2 | G40: 1 | H40: 2 | I40: 2 | J40: 1 | K40: 1 | L40: 3 | M40: 1 | N40: Germany | O40: Norway | S40: JohnnyD | T40: 0 | V40: Shawass | W40: 1
B41: RoterSternHochdah | C41: bothun | D41: 0.5 | E41: 0.5 | F41: 0 | G41: 0 | H41: 1 | I41: 1 | J41: 2 | K41: 3 | L41: 1 | M41: 1 | N41: Germany | O41: Norway | S41: Kaltenland | T41: 0 | V41: Pidpad | W41: 1
B42: Woete | C42: Pellevin | D42: 1 | E42: 0 | F42: 2 | G42: 1 | H42: 2 | I42: 1 | J42: 0 | K42: 3 | L42: 1 | M42: 2 | N42: Belgium | O42: Sweden | S42: Liam | T42: 0 | V42: Harti | W42: 1
B43: gninocker | C43: Melisqus | D43: 1 | E43: 0 | F43: 3 | G43: 1 | H43: 1 | I43: 1 | J43: 2 | K43: 1 | L43: 3 | M43: 2 | N43: Belgium | O43: Sweden | S43: Malasnoticias | T43: 0 | V43: Inforthepain | W43: 1
B44: Dekra1979 | C44: JohnnyD | D44: 1 | E44: 0 | F44: 1 | G44: 0 | H44: 1 | I44: 1 | J44: 3 | K44: 0 | L44: 1 | M44: 2 | N44: Belgium | O44: Sweden | S44: SpecialOne | T44: 0 | V44: Joemanji | W44: 1
B45: JJ | C45: Skuld | D45: 0.5 | E45: 0.5 | F45: 1 | G45: 1 | H45: 0 | I45: 1 | J45: 1 | K45: 3 | L45: 0 | M45: 2 | N45: Belgium | O45: Sweden | S45: Skuld | T45: 0 | V45: Dekra1979 | W45: 1
B46: Phoenix11 | C46: Pidpad | D46: 0 | E46: 1 | F46: 0 | G46: 2 | H46: 2 | I46: 2 | J46: 1 | K46: 2 | L46: 1 | M46: 3 | N46: Belgium | O46: Sweden | S46: Beppe | T46: 0 | V46: Corwin | W46: 1
B47: Araznaroth | C47: Dragons | D47: 1 | E47: 0 | F47: 1 | G47: 0 | H47: 1 | I47: 2 | J47: 0 | K47: 3 | L47: 0 | M47: 1 | N47: Belgium | O47: Sweden | S47: Elrik | T47: 0 | V47: Tactel | W47: 1
B48: Driesfield | C48: Skoberget | D48: 1 | E48: 0 | F48: 3 | G48: 1 | H48: 3 | I48: 1 | J48: 2 | K48: 2 | L48: 1 | M48: 0 | N48: Belgium | O48: Sweden | S48: Reszka | T48: 0 | V48: BudWiser | W48: 0.5
B49: Malodoror | C49: Inforthepain | D49: 0 | E49: 1 | F49: 2 | G49: 3 | H49: 2 | I49: 2 | J49: 1 | K49: 1 | L49: 2 | M49: 1 | N49: Belgium | O49: Sweden | S49: Woete | T49: 0 | V49: Bernuz | W49: 0.5
B50: Niebling | C50: Matt le fou | D50: 0.5 | E50: 0.5 | F50: 2 | G50: 2 | H50: 1 | I50: 3 | J50: 2 | K50: 2 | L50: 0 | M50: 1 | N50: Denmark | O50: France | S50: Dionysian | T50: 0 | V50: Mewash | W50: 0.5
B51: Jaqra | C51: Harti | D51: 0 | E51: 1 | F51: 0 | G51: 2 | H51: 2 | I51: 1 | J51: 0 | K51: 2 | L51: 2 | M51: 3 | N51: Denmark | O51: France | S51: gninocker | T51: 0 | V51: noraal | W51: 0.5
B52: SpecialOne | C52: BudWiser | D52: 0.5 | E52: 0.5 | F52: 1 | G52: 1 | H52: 2 | I52: 1 | J52: 2 | K52: 2 | L52: 2 | M52: 0 | N52: Denmark | O52: France | S52: Faccko | T52: 0 | V52: Harza | W52: 0.5
B53: Topper | C53: BiBi | D53: 0 | E53: 1 | F53: 2 | G53: 3 | H53: 2 | I53: 3 | J53: 0 | K53: 1 | L53: 2 | M53: 1 | N53: Denmark | O53: France | S53: edheim | T53: 0 | V53: valkohukka | W53: 0.5
B54: MissSweden | C54: Gros Nain | D54: 0.5 | E54: 0.5 | F54: 3 | G54: 3 | H54: 3 | I54: 3 | J54: 1 | K54: 3 | L54: 0 | M54: 2 | N54: Denmark | O54: France | S54: Phifoe | T54: 0 | V54: sann0638 | W54: 0.5
B55: kfoged | C55: Justicium | D55: 0 | E55: 1 | F55: 2 | G55: 3 | H55: 1 | I55: 3 | J55: 1 | K55: 1 | L55: 1 | M55: 2 | N55: Denmark | O55: France | S55: Dirold | T55: 0 | V55: Jonny_Kanone | W55: 0.5
B56: Tripleskull | C56: Simon_ACP | D56: 0 | E56: 1 | F56: 0 | G56: 1 | H56: 2 | I56: 0 | J56: 1 | K56: 0 | L56: 3 | M56: 1 | N56: Denmark | O56: France | S56: Strider84 | T56: 0 | V56: Niebling | W56: 0.5
B57: Tank | C57: Bouzzy | D57: 0 | E57: 1 | F57: 2 | G57: 3 | H57: 2 | I57: 1 | J57: 2 | K57: 1 | L57: 0 | M57: 1 | N57: Denmark | O57: France | S57: Candlejack | T57: 0 | V57: MissSweden | W57: 0.5
B58: JamesEs | C58: Balder | D58: 0.5 | E58: 0.5 | F58: 1 | G58: 1 | H58: 1 | I58: 2 | J58: 1 | K58: 3 | L58: 1 | M58: 1 | N58: Scotland | O58: Viking | S58: Ploppy_McPloppy | T58: 0 | V58: Balder | W58: 0.5
B59: Garrick | C59: Purrelito | D59: 0.5 | E59: 0.5 | F59: 2 | G59: 2 | H59: 3 | I59: 0 | J59: 2 | K59: 0 | L59: 2 | M59: 1 | N59: Scotland | O59: Viking | S59: straume | T59: 0 | V59: Leonek | W59: 0.5
B60: HumptyTrump | C60: Mufflo | D60: 0.5 | E60: 0.5 | F60: 1 | G60: 1 | H60: 3 | I60: 2 | J60: 2 | K60: 1 | L60: 3 | M60: 3 | N60: Scotland | O60: Viking | S60: Podfrey | T60: 0 | V60: Ploppy_McPloppy | W60: 0.5
B61: Purdindas | C61: Faccko | D61: 0 | E61: 1 | F61: 1 | G61: 3 | H61: 2 | I61: 1 | J61: 3 | K61: 1 | L61: 3 | M61: 0 | N61: Scotland | O61: Viking | S61: Domingo | T61: 0 | V61: Lycos | W61: 0.5
B62: sann0638 | C62: Bernuz | D62: 0.5 | E62: 0.5 | F62: 3 | G62: 3 | H62: 1 | I62: 1 | J62: 1 | K62: 2 | L62: 1 | M62: 3 | N62: Scotland | O62: Viking | S62: Slimaq | T62: 0 | V62: Skuld | W62: 0.5
B63: DonShula | C63: brocCooli | D63: 0 | E63: 1 | F63: 1 | G63: 2 | H63: 0 | I63: 3 | J63: 0 | K63: 1 | L63: 1 | M63: 0 | N63: Scotland | O63: Viking | S63: BeerBeer | T63: 0 | V63: zulu | W63: 0.5
B64: Loki | C64: Corwin | D64: 0 | E64: 1 | F64: 0 | G64: 1 | H64: 0 | I64: 3 | J64: 3 | K64: 2 | L64: 0 | M64: 2 | N64: Scotland | O64: Viking | S64: Justicium | T64: 0 | V64: edheim | W64: 0.5
B65: Valen | C65: Duckwing | D65: 1 | E65: 0 | F65: 2 | G65: 1 | H65: 2 | I65: 0 | J65: 2 | K65: 1 | L65: 2 | M65: 3 | N65: Scotland | O65: Viking | S65: ratogre | T65: 0 | V65: Domingo | W65: 0.5
S66: Alex05 | T66: 0 | V66: JamesEs | W66: 0.5
S67: HumptyTrump | T67: 0 | V67: andydavo | W67: 0.5
S68: Verrinho | T68: 0 | V68: HumptyTrump | W68: 0.5
S69: Dekra1979 | T69: 0 | V69: bothun | W69: 0.5
S70: Purdindas | T70: 0 | V70: Elrik | W70: 0.5
S71: Madmatt13 | T71: 0 | V71: Mufflo | W71: 0.5
S72: JJ | T72: 0 | V72: DocMaxx | W72: 0.5
S73: BlackOrc | T73: 0 | V73: Garrick | W73: 0.5
S74: Joemanji | T74: 0 | V74: Purrelito | W74: 0.5
S75: Dark Duke | T75: 0 | V75: straume | W75: 0.5
S76: Idroj | T76: 0 | V76: BlackOrc | W76: 0.5
S77: The_Ref | T77: 0 | V77: RoterSternHochdah | W77: 0.5
S78: Phoenix11 | T78: 0 | V78: Gros Nain | W78: 0.5
S79: Pidpad | T79: 0 | V79: Madmatt13 | W79: 0.5
S80: Bernuz | T80: 0 | V80: Matt le fou | W80: 0.5
S81: Obeliz | T81: 0 | V81: SpecialOne | W81: 0.5
S82: brocCooli | T82: 0 | V82: JJ | W82: 0.5
S83: Corwin | T83: 0 | V83: Mubo | W83: 0.5
S84: Jonny_Kanone | T84: 0 | V84: Itzla | W84: 0
S85: Duckwing | T85: 0 | V85: Duckwing | W85: 0
S86: Favi | T86: 0 | V86: Goss | W86: 0
S87: Leonek | T87: 0 | V87: Tripleskull | W87: 0
S88: Macabeo | T88: 0 | V88: Tank | W88: 0
S89: 20Phoenix | T89: 0 | V89: Duke_Luthor_Von_Hawkfire | W89: 0
S90: sann0638 | T90: 0 | V90: Gaunab | W90: 0
S91: Araznaroth | T91: 0 | V91: Joanet | W91: 0
S92: Goss | T92: 0 | V92: Jaqra | W92: 0
S93: DonShula | T93: 0 | V93: Malodoror | W93: 0
S94: Arioso | T94: 0 | V94: kfoged | W94: 0
S95: Tactel | T95: 0 | V95: Alex05 | W95: 0
S96: Dragons | T96: 0 | V96: Spartako | W96: 0
S97: RoterSternHochdah | T97: 0 | V97: Topper | W97: 0
S98: Topper | T98: 0 | V98: BeerBeer | W98: 0
S99: MissSweden | T99: 0 | V99: Pellevin | W99: 0
S100: JimJimany | T100: 0 | V100: nonumber | W100: 0
S101: swifty | T101: 0 | V101: swifty | W101: 0
S102: Shawass | T102: 0 | V102: JohnnyD | W102: 0
S103: Farina | T103: 0 | V103: The_Ref | W103: 0
S104: kfoged | T104: 0 | V104: Obeliz | W104: 0
S105: Lycos | T105: 0 | V105: JimJimany | W105: 0
S106: Driesfield | T106: 0 | V106: DonShula | W106: 0
S107: Malodoror | T107: 0 | V107: Farina | W107: 0
S108: noraal | T108: 0 | V108: Geggster | W108: 0
S109: Tripleskull | T109: 0 | V109: Loki | W109: 0
S110: sigu70 | T110: 0 | V110: MadeofWelsh | W110: 0
S111: Simon_ACP | T111: 0 | V111: MacWitt | W111: 0
S112: Matte8 | T112: 0 | V112: FrankPedersen | W112: 0
S113: J-Ho | T113: 0 | V113: Dark Duke | W113: 0
S114: Wilzif | T114: 0 | V114: PurpleGoo | W114: 0
S115: Loki | T115: 0 | V115: cz | W115: 0
S116: Duke_Luthor_Von_Hawkfire | T116: 0 | V116: Melisqus | W116: 0
S117: SFisher91 | T117: 0 | V117: Favi | W117: 0
S118: cz | T118: 0 | V118: Candlejack | W118: 0
S119: PurpleGoo | T119: 0 | V119: ratogre | W119: 0
S120: Tank | T120: 0 | V120: Idroj | W120: 0
S121: bothun | T121: 0 | V121: jopotzuki | W121: 0
S122: Skoberget | T122: 0 | V122: Endalos | W122: 0
S123: Wolio | T123: 0 | V123: Phoenix11 | W123: 0
S124: Juniooor7 | T124: 0 | V124: J-Ho | W124: 0
S125: Warrior1980 | T125: 0 | V125: Purdindas | W125: 0
S126: Itzla | T126: 0 | V126: Dragons | W126: 0
S127: Inforthepain | T127: 0 | V127: 20Phoenix | W127: 0
S128: Bouzzy | T128: 0 | V128: Skoberget | W128: 0
S129: Valen | T129: 0 | V129: Malasnoticias | W129: 0

Sheet Round2
B1: Home Player | C1: Away Player | D1: Home Points | E1: Away Points | F1: Home TD | G1: Away TD | H1: Home Cas | I1: Away Cas | J1: Home Bonus 1 | K1: Away Bonus 1 | L1: Home Bonus 2 | M1: Away Bonus 2 | N1: Home Group | O1: Away Group | S1: Points Before Games | V1: Points After Games | Y1: Group Results | Z1: Group | AA1: Points | AC1: Group Points Before Games | AF1: Group Points Before Games
B2: Juniooor7 | C2: Simon_ACP | D2: =fctScore(F2,G2,H2,J2,L2) -> 0 | E2: =fctScore(G2,F2,I2,K2,M2) -> 1 | F2: 2 | G2: 3 | H2: 1 | I2: 2 | J2: 0 | K2: 2 | L2: 2 | M2: 3 | N2: Poland | O2: France | S2: Podfrey | T2: 1 | V2: gninocker | W2: 2 | Z2: Belgium | AA2: 3 | AC2: Poland | AD2: 7.5 | AF2: France | AG2: 13.5
B3: Warrior1980 | C3: Bouzzy | D3: =fctScore(F3,G3,H3,J3,L3) -> 0.5 | E3: =fctScore(G3,F3,I3,K3,M3) -> 0.5 | F3: 2 | G3: 2 | H3: 1 | I3: 1 | J3: 2 | K3: 0 | L3: 0 | M3: 3 | N3: Poland | O3: France | S3: Simon_ACP | T3: 1 | V3: Matte8 | W3: 2 | Z3: Denmark | AA3: 6.5 | AC3: France | AD3: 7.5 | AF3: Germany | AG3: 13
B4: Slimaq | C4: Justicium | D4: 0 | E4: 1 | F4: 1 | G4: 3 | H4: 2 | I4: 1 | J4: 3 | K4: 1 | L4: 1 | M4: 0 | N4: Poland | O4: France | S4: Kaltenland | T4: 1 | V4: Verrinho | W4: 2 | Z4: England | AA4: 5.5 | AC4: Switzerland | AD4: 7 | AF4: Italy | AG4: 12.5
B5: Reszka | C5: BiBi | D5: 0.5 | E5: 0.5 | F5: 1 | G5: 1 | H5: 2 | I5: 1 | J5: 3 | K5: 2 | L5: 0 | M5: 1 | N5: Poland | O5: France | S5: Phifoe | T5: 1 | V5: Muadib | W5: 2 | Z5: Finland | AA5: 2.5 | AC5: Italy | AD5: 7 | AF5: Viking | AG5: 12
B6: Shawass | C6: Harti | D6: 0 | E6: 1 | F6: 1 | G6: 2 | H6: 1 | I6: 3 | J6: 1 | K6: 1 | L6: 3 | M6: 2 | N6: Poland | O6: France | S6: Wilzif | T6: 1 | V6: brocCooli | W6: 2 | Z6: France | AA6: 6 | AC6: Belgium | AD6: 6.5 | AF6: Switzerland | AG6: 10.5
B7: Mewash | C7: BudWiser | D7: 1 | E7: 0 | F7: 3 | G7: 1 | H7: 1 | I7: 2 | J7: 0 | K7: 0 | L7: 2 | M7: 1 | N7: Poland | O7: France | S7: GreatWhiteHope | T7: 1 | V7: Podfrey | W7: 2 | Z7: Germany | AA7: 7.5 | AC7: Viking | AD7: 6 | AF7: Poland | AG7: 10.5
B8: Leonek | C8: Gros Nain | D8: 0 | E8: 1 | F8: 1 | G8: 2 | H8: 1 | I8: 1 | J8: 1 | K8: 1 | L8: 3 | M8: 2 | N8: Poland | O8: France | S8: Strider84 | T8: 1 | V8: Arioso | W8: 2 | Z8: Hungary | AA8: 6.5 | AC8: Germany | AD8: 5.5 | AF8: England | AG8: 10
B9: Domingo | C9: Matt le fou | D9: 1 | E9: 0 | F9: 2 | G9: 1 | H9: 1 | I9: 3 | J9: 2 | K9: 1 | L9: 2 | M9: 0 | N9: Poland | O9: France | S9: SFisher91 | T9: 1 | V9: Prince | W9: 2 | Z9: Italy | AA9: 5.5 | AC9: Wales | AD9: 4.5 | AF9: Belgium | AG9: 9.5
B10: Phifoe | C10: Kaltenland | D10: 1 | E10: 0 | F10: 3 | G10: 1 | H10: 2 | I10: 0 | J10: 1 | K10: 2 | L10: 0 | M10: 3 | N10: Switzerland | O10: Italy | S10: Dirold | T10: 1 | V10: Simon_ACP | W10: 2 | Z10: Norway | AA10: 3.5 | AC10: England | AD10: 4.5 | AF10: Hungary | AG10: 8.5
B11: Strider84 | C11: Dirold | D11: 0.5 | E11: 0.5 | F11: 3 | G11: 3 | H11: 3 | I11: 3 | J11: 1 | K11: 3 | L11: 1 | M11: 1 | N11: Switzerland | O11: Italy | S11: Valen | T11: 1 | V11: Justicium | W11: 2 | Z11: Poland | AA11: 3 | AC11: Norway | AD11: 3.5 | AF11: Sweden | AG11: 8.5
B12: sigu70 | C12: Beppe | D12: 1 | E12: 0 | F12: 3 | G12: 2 | H12: 2 | I12: 1 | J12: 0 | K12: 2 | L12: 0 | M12: 0 | N12: Switzerland | O12: Italy | S12: Juniooor7 | T12: 1 | V12: sigu70 | W12: 2 | Z12: Scotland | AA12: 3 | AC12: Scotland | AD12: 3 | AF12: Denmark | AG12: 8
B13: Macabeo | C13: Matte8 | D13: 0 | E13: 1 | F13: 1 | G13: 2 | H13: 1 | I13: 2 | J13: 2 | K13: 1 | L13: 1 | M13: 1 | N13: Switzerland | O13: Italy | S13: sigu70 | T13: 1 | V13: Pidpad | W13: 2 | Z13: Spain | AA13: 2.5 | AC13: Sweden | AD13: 2.5 | AF13: Norway | AG13: 7
B14: Jokaero | C14: Liam | D14: 0.5 | E14: 0.5 | F14: 1 | G14: 1 | H14: 3 | I14: 1 | J14: 1 | K14: 3 | L14: 1 | M14: 1 | N14: Switzerland | O14: Italy | S14: gninocker | T14: 1 | V14: Phifoe | W14: 2 | Z14: Sweden | AA14: 6 | AC14: Spain | AD14: 2 | AF14: Scotland | AG14: 6
B15: Elrik | C15: Verrinho | D15: 0 | E15: 1 | F15: 1 | G15: 2 | H15: 2 | I15: 3 | J15: 1 | K15: 2 | L15: 1 | M15: 1 | N15: Switzerland | O15: Italy | S15: Faccko | T15: 1 | V15: Harti | W15: 2 | Z15: Switzerland | AA15: 3.5 | AC15: Hungary | AD15: 2 | AF15: Wales | AG15: 6
B16: Madmatt13 | C16: Spartako | D16: 0 | E16: 1 | F16: 0 | G16: 2 | H16: 1 | I16: 1 | J16: 1 | K16: 0 | L16: 3 | M16: 2 | N16: Switzerland | O16: Italy | S16: Prince | T16: 1 | V16: Wolio | W16: 2 | Z16: Viking | AA16: 6 | AC16: Denmark | AD16: 1.5 | AF16: Spain | AG16: 4.5
B17: Goss | C17: Farina | D17: 0.5 | E17: 0.5 | F17: 1 | G17: 1 | H17: 1 | I17: 3 | J17: 2 | K17: 3 | L17: 1 | M17: 0 | N17: Switzerland | O17: Italy | S17: Driesfield | T17: 1 | V17: Domingo | W17: 1.5 | Z17: Wales | AA17: 1.5 | AC17: Finland | AD17: 1.5 | AF17: Finland | AG17: 4
B18: gninocker | C18: Faccko | D18: 1 | E18: 0 | F18: 1 | G18: 0 | H18: 0 | I18: 1 | J18: 3 | K18: 2 | L18: 2 | M18: 0 | N18: Belgium | O18: Viking | S18: brocCooli | T18: 1 | V18: Bernuz | W18: 1.5
B19: Driesfield | C19: brocCooli | D19: 0 | E19: 1 | F19: 1 | G19: 2 | H19: 3 | I19: 2 | J19: 1 | K19: 2 | L19: 2 | M19: 3 | N19: Belgium | O19: Viking | S19: Bouzzy | T19: 1 | V19: Warrior1980 | W19: 1.5
B20: Araznaroth | C20: Corwin | D20: 0.5 | E20: 0.5 | F20: 2 | G20: 2 | H20: 1 | I20: 1 | J20: 2 | K20: 3 | L20: 2 | M20: 3 | N20: Belgium | O20: Viking | S20: Araznaroth | T20: 1 | V20: Reszka | W20: 1.5
B21: Woete | C21: Bernuz | D21: 0 | E21: 1 | F21: 0 | G21: 3 | H21: 3 | I21: 1 | J21: 3 | K21: 1 | L21: 2 | M21: 2 | N21: Belgium | O21: Viking | S21: Northernknight | T21: 1 | V21: RoterSternHochdah | W21: 1.5
B22: Dekra1979 | C22: Balder | D22: 0.5 | E22: 0.5 | F22: 1 | G22: 1 | H22: 2 | I22: 2 | J22: 2 | K22: 0 | L22: 2 | M22: 3 | N22: Belgium | O22: Viking | S22: Dionysian | T22: 1 | V22: BiBi | W22: 1.5
B23: JJ | C23: Mufflo | D23: 0.5 | E23: 0.5 | F23: 1 | G23: 1 | H23: 3 | I23: 2 | J23: 1 | K23: 1 | L23: 2 | M23: 1 | N23: Belgium | O23: Viking | S23: Woete | T23: 1 | V23: Skuld | W23: 1.5
B24: Malodoror | C24: Purrelito | D24: 0.5 | E24: 0.5 | F24: 2 | G24: 2 | H24: 0 | I24: 2 | J24: 1 | K24: 2 | L24: 1 | M24: 2 | N24: Belgium | O24: Viking | S24: Warrior1980 | T24: 1 | V24: noraal | W24: 1.5
B25: Phoenix11 | C25: Duckwing | D25: 0 | E25: 1 | F25: 1 | G25: 2 | H25: 2 | I25: 1 | J25: 1 | K25: 0 | L25: 2 | M25: 1 | N25: Belgium | O25: Viking | S25: Arioso | T25: 1 | V25: SpecialOne | W25: 1.5
B26: Prince | C26: SFisher91 | D26: 1 | E26: 0 | F26: 2 | G26: 1 | H26: 1 | I26: 3 | J26: 1 | K26: 1 | L26: 0 | M26: 1 | N26: Germany | O26: Wales | S26: Beppe | T26: 1 | V26: Strider84 | W26: 1.5
B27: Arioso | C27: Northernknight | D27: 1 | E27: 0 | F27: 3 | G27: 0 | H27: 3 | I27: 1 | J27: 1 | K27: 2 | L27: 1 | M27: 2 | N27: Germany | O27: Wales | S27: Matte8 | T27: 1 | V27: Mubo | W27: 1.5
B28: Muadib | C28: Dionysian | D28: 1 | E28: 0 | F28: 2 | G28: 1 | H28: 0 | I28: 2 | J28: 0 | K28: 0 | L28: 0 | M28: 1 | N28: Germany | O28: Wales | S28: Liam | T28: 1 | V28: sann0638 | W28: 1.5
B29: Jonny_Kanone | C29: Ploppy_McPloppy | D29: 0.5 | E29: 0.5 | F29: 1 | G29: 1 | H29: 2 | I29: 2 | J29: 1 | K29: 1 | L29: 2 | M29: 3 | N29: Germany | O29: Wales | S29: Justicium | T29: 1 | V29: Bouzzy | W29: 1.5
B30: DocMaxx | C30: andydavo | D30: 0.5 | E30: 0.5 | F30: 1 | G30: 1 | H30: 2 | I30: 1 | J30: 0 | K30: 2 | L30: 1 | M30: 2 | N30: Germany | O30: Wales | S30: Muadib | T30: 1 | V30: Jokaero | W30: 1.5
B31: RoterSternHochdah | C31: nonumber | D31: 1 | E31: 0 | F31: 1 | G31: 0 | H31: 2 | I31: 2 | J31: 1 | K31: 1 | L31: 2 | M31: 2 | N31: Germany | O31: Wales | S31: Slimaq | T31: 1 | V31: Araznaroth | W31: 1.5
B32: Gaunab | C32: MadeofWelsh | D32: 1 | E32: 0 | F32: 3 | G32: 2 | H32: 1 | I32: 3 | J32: 2 | K32: 0 | L32: 0 | M32: 0 | N32: Germany | O32: Wales | S32: Wolio | T32: 1 | V32: zulu | W32: 1.5
B33: Candlejack | C33: 20Phoenix | D33: 0.5 | E33: 0.5 | F33: 1 | G33: 1 | H33: 0 | I33: 2 | J33: 1 | K33: 1 | L33: 2 | M33: 0 | N33: Germany | O33: Wales | S33: BiBi | T33: 1 | V33: mynock | W33: 1.5
B34: Podfrey | C34: GreatWhiteHope | D34: 1 | E34: 0 | F34: 1 | G34: 0 | H34: 2 | I34: 2 | J34: 3 | K34: 1 | L34: 1 | M34: 3 | N34: England | O34: Norway | S34: mynock | T34: 1 | V34: Dirold | W34: 1.5
B35: Wilzif | C35: mynock | D35: 0.5 | E35: 0.5 | F35: 1 | G35: 1 | H35: 3 | I35: 1 | J35: 2 | K35: 0 | L35: 1 | M35: 2 | N35: England | O35: Norway | S35: Verrinho | T35: 1 | V35: Liam | W35: 1.5
B36: Joemanji | C36: zulu | D36: 0 | E36: 1 | F36: 0 | G36: 1 | H36: 0 | I36: 1 | J36: 1 | K36: 2 | L36: 2 | M36: 3 | N36: England | O36: Norway | S36: Macabeo | T36: 1 | V36: Corwin | W36: 1.5
B37: Lycos | C37: bothun | D37: 0.5 | E37: 0.5 | F37: 2 | G37: 2 | H37: 2 | I37: 3 | J37: 1 | K37: 1 | L37: 2 | M37: 3 | N37: England | O37: Norway | S37: Jokaero | T37: 1 | V37: Wilzif | W37: 1.5
B38: Mubo | C38: straume | D38: 1 | E38: 0 | F38: 3 | G38: 2 | H38: 1 | I38: 0 | J38: 2 | K38: 0 | L38: 1 | M38: 1 | N38: England | O38: Norway | S38: Barry | T38: 1 | V38: Mewash | W38: 1.5
B39: JimJimany | C39: The_Ref | D39: 0.5 | E39: 0.5 | F39: 3 | G39: 3 | H39: 1 | I39: 0 | J39: 1 | K39: 2 | L39: 3 | M39: 2 | N39: England | O39: Norway | S39: Reszka | T39: 1 | V39: Dekra1979 | W39: 1.5
B40: Geggster | C40: FrankPedersen | D40: 0.5 | E40: 0.5 | F40: 1 | G40: 1 | H40: 1 | I40: 2 | J40: 2 | K40: 0 | L40: 2 | M40: 0 | N40: England | O40: Norway | S40: Shawass | T40: 1 | V40: Gros Nain | W40: 1.5
B41: PurpleGoo | C41: Endalos | D41: 0.5 | E41: 0.5 | F41: 1 | G41: 1 | H41: 1 | I41: 3 | J41: 2 | K41: 2 | L41: 3 | M41: 1 | N41: England | O41: Norway | S41: Pidpad | T41: 1 | V41: JJ | W41: 1
B42: Valen | C42: Pidpad | D42: 0 | E42: 1 | F42: 1 | G42: 3 | H42: 2 | I42: 2 | J42: 3 | K42: 2 | L42: 2 | M42: 1 | N42: Scotland | O42: Sweden | S42: Harti | T42: 1 | V42: Mufflo | W42: 1
B43: sann0638 | C43: Inforthepain | D43: 1 | E43: 0 | F43: 2 | G43: 0 | H43: 1 | I43: 2 | J43: 0 | K43: 1 | L43: 0 | M43: 2 | N43: Scotland | O43: Sweden | S43: Inforthepain | T43: 1 | V43: Faccko | W43: 1
B44: JamesEs | C44: Skuld | D44: 0 | E44: 1 | F44: 1 | G44: 2 | H44: 1 | I44: 1 | J44: 2 | K44: 2 | L44: 2 | M44: 1 | N44: Scotland | O44: Sweden | S44: Joemanji | T44: 1 | V44: valkohukka | W44: 1
B45: HumptyTrump | C45: Pellevin | D45: 0 | E45: 1 | F45: 0 | G45: 2 | H45: 1 | I45: 1 | J45: 2 | K45: 2 | L45: 2 | M45: 2 | N45: Scotland | O45: Sweden | S45: Dekra1979 | T45: 1 | V45: Joemanji | W45: 1
B46: Garrick | C46: JohnnyD | D46: 0 | E46: 1 | F46: 0 | G46: 1 | H46: 2 | I46: 2 | J46: 2 | K46: 2 | L46: 0 | M46: 2 | N46: Scotland | O46: Sweden | S46: Corwin | T46: 1 | V46: JohnnyD | W46: 1
B47: DonShula | C47: Melisqus | D47: 0.5 | E47: 0.5 | F47: 3 | G47: 3 | H47: 2 | I47: 2 | J47: 2 | K47: 1 | L47: 2 | M47: 1 | N47: Scotland | O47: Sweden | S47: Tactel | T47: 1 | V47: SFisher91 | W47: 1
B48: Loki | C48: Dragons | D48: 1 | E48: 0 | F48: 2 | G48: 1 | H48: 1 | I48: 1 | J48: 1 | K48: 3 | L48: 1 | M48: 0 | N48: Scotland | O48: Sweden | S48: BudWiser | T48: 0.5 | V48: Gaunab | W48: 1
B49: Purdindas | C49: Skoberget | D49: 0.5 | E49: 0.5 | F49: 2 | G49: 2 | H49: 2 | I49: 1 | J49: 0 | K49: 1 | L49: 2 | M49: 2 | N49: Scotland | O49: Sweden | S49: Bernuz | T49: 0.5 | V49: Tactel | W49: 1
B50: Barry | C50: Wolio | D50: 0 | E50: 1 | F50: 2 | G50: 3 | H50: 2 | I50: 3 | J50: 1 | K50: 0 | L50: 0 | M50: 2 | N50: Spain | O50: Hungary | S50: Mewash | T50: 0.5 | V50: Juniooor7 | W50: 1
B51: Tactel | C51: noraal | D51: 0 | E51: 1 | F51: 0 | G51: 1 | H51: 0 | I51: 1 | J51: 1 | K51: 2 | L51: 3 | M51: 2 | N51: Spain | O51: Hungary | S51: noraal | T51: 0.5 | V51: Balder | W51: 1
B52: Duke_Luthor_Von_Hawkfire | C52: BlackOrc | D52: 0.5 | E52: 0.5 | F52: 3 | G52: 3 | H52: 2 | I52: 1 | J52: 2 | K52: 2 | L52: 1 | M52: 3 | N52: Spain | O52: Hungary | S52: Harza | T52: 0.5 | V52: Malasnoticias | W52: 1
B53: Joanet | C53: Itzla | D53: 0 | E53: 1 | F53: 1 | G53: 2 | H53: 0 | I53: 0 | J53: 2 | K53: 1 | L53: 2 | M53: 1 | N53: Spain | O53: Hungary | S53: valkohukka | T53: 0.5 | V53: Itzla | W53: 1
B54: Obeliz | C54: Alex05 | D54: 0 | E54: 1 | F54: 0 | G54: 1 | H54: 0 | I54: 1 | J54: 1 | K54: 2 | L54: 2 | M54: 0 | N54: Spain | O54: Hungary | S54: sann0638 | T54: 0.5 | V54: Spartako | W54: 1
B55: Dark Duke | C55: swifty | D55: 0.5 | E55: 0.5 | F55: 2 | G55: 2 | H55: 1 | I55: 1 | J55: 2 | K55: 3 | L55: 3 | M55: 1 | N55: Spain | O55: Hungary | S55: Jonny_Kanone | T55: 0.5 | V55: Loki | W55: 1
B56: Idroj | C56: cz | D56: 0.5 | E56: 0.5 | F56: 1 | G56: 1 | H56: 2 | I56: 3 | J56: 1 | K56: 1 | L56: 1 | M56: 1 | N56: Spain | O56: Hungary | S56: Niebling | T56: 0.5 | V56: MissSweden | W56: 1
B57: Malasnoticias | C57: Favi | D57: 1 | E57: 0 | F57: 2 | G57: 0 | H57: 2 | I57: 2 | J57: 3 | K57: 3 | L57: 2 | M57: 3 | N57: Spain | O57: Hungary | S57: MissSweden | T57: 0.5 | V57: Kaltenland | W57: 1
B58: Niebling | C58: Harza | D58: 0.5 | E58: 0.5 | F58: 1 | G58: 1 | H58: 3 | I58: 3 | J58: 2 | K58: 0 | L58: 1 | M58: 1 | N58: Denmark | O58: Finland | S58: Balder | T58: 0.5 | V58: andydavo | W58: 1
B59: MissSweden | C59: valkohukka | D59: 0.5 | E59: 0.5 | F59: 0 | G59: 0 | H59: 2 | I59: 2 | J59: 3 | K59: 0 | L59: 3 | M59: 2 | N59: Denmark | O59: Finland | S59: Leonek | T59: 0.5 | V59: Macabeo | W59: 1
B60: SpecialOne | C60: edheim | D60: 1 | E60: 0 | F60: 2 | G60: 1 | H60: 2 | I60: 2 | J60: 0 | K60: 1 | L60: 2 | M60: 2 | N60: Denmark | O60: Finland | S60: Ploppy_McPloppy | T60: 0.5 | V60: Beppe | W60: 1
B61: Tripleskull | C61: BeerBeer | D61: 1 | E61: 0 | F61: 3 | G61: 2 | H61: 2 | I61: 2 | J61: 0 | K61: 0 | L61: 2 | M61: 2 | N61: Denmark | O61: Finland | S61: Lycos | T61: 0.5 | V61: Inforthepain | W61: 1
B62: Tank | C62: MacWitt | D62: 0 | E62: 1 | F62: 1 | G62: 2 | H62: 2 | I62: 3 | J62: 1 | K62: 0 | L62: 2 | M62: 2 | N62: Denmark | O62: Finland | S62: Skuld | T62: 0.5 | V62: Northernknight | W62: 1
B63: Jaqra | C63: ratogre | D63: 1 | E63: 0 | F63: 2 | G63: 1 | H63: 1 | I63: 0 | J63: 2 | K63: 2 | L63: 0 | M63: 2 | N63: Denmark | O63: Finland | S63: zulu | T63: 0.5 | V63: Niebling | W63: 1
B64: kfoged | C64: jopotzuki | D64: 1 | E64: 0 | F64: 3 | G64: 1 | H64: 2 | I64: 2 | J64: 1 | K64: 0 | L64: 2 | M64: 2 | N64: Denmark | O64: Finland | S64: edheim | T64: 0.5 | V64: Shawass | W64: 1
B65: Topper | C65: J-Ho | D65: 0.5 | E65: 0.5 | F65: 2 | G65: 2 | H65: 1 | I65: 1 | J65: 1 | K65: 1 | L65: 2 | M65: 2 | N65: Denmark | O65: Finland | S65: Domingo | T65: 0.5 | V65: Tripleskull | W65: 1
S66: JamesEs | T66: 0.5 | V66: Jonny_Kanone | W66: 1
S67: andydavo | T67: 0.5 | V67: Driesfield | W67: 1
S68: HumptyTrump | T68: 0.5 | V68: Harza | W68: 1
S69: bothun | T69: 0.5 | V69: Dionysian | W69: 1
S70: Elrik | T70: 0.5 | V70: Ploppy_McPloppy | W70: 1
S71: Mufflo | T71: 0.5 | V71: bothun | W71: 1
S72: DocMaxx | T72: 0.5 | V72: MacWitt | W72: 1
S73: Garrick | T73: 0.5 | V73: Valen | W73: 1
S74: Purrelito | T74: 0.5 | V74: Woete | W74: 1
S75: straume | T75: 0.5 | V75: Lycos | W75: 1
S76: BlackOrc | T76: 0.5 | V76: Slimaq | W76: 1
S77: RoterSternHochdah | T77: 0.5 | V77: Purrelito | W77: 1
S78: Gros Nain | T78: 0.5 | V78: DocMaxx | W78: 1
S79: Madmatt13 | T79: 0.5 | V79: GreatWhiteHope | W79: 1
S80: Matt le fou | T80: 0.5 | V80: Jaqra | W80: 1
S81: SpecialOne | T81: 0.5 | V81: Barry | W81: 1
S82: JJ | T82: 0.5 | V82: BlackOrc | W82: 1
S83: Mubo | T83: 0.5 | V83: Duckwing | W83: 1
S84: Itzla | T84: 0 | V84: kfoged | W84: 1
S85: Duckwing | T85: 0 | V85: Alex05 | W85: 1
S86: Goss | T86: 0 | V86: Pellevin | W86: 1
S87: Tripleskull | T87: 0 | V87: JamesEs | W87: 0.5
S88: Tank | T88: 0 | V88: Candlejack | W88: 0.5
S89: Duke_Luthor_Von_Hawkfire | T89: 0 | V89: Matt le fou | W89: 0.5
S90: Gaunab | T90: 0 | V90: The_Ref | W90: 0.5
S91: Joanet | T91: 0 | V91: Skoberget | W91: 0.5
S92: Jaqra | T92: 0 | V92: 20Phoenix | W92: 0.5
S93: Malodoror | T93: 0 | V93: straume | W93: 0.5
S94: kfoged | T94: 0 | V94: HumptyTrump | W94: 0.5
S95: Alex05 | T95: 0 | V95: Duke_Luthor_Von_Hawkfire | W95: 0.5
S96: Spartako | T96: 0 | V96: PurpleGoo | W96: 0.5
S97: Topper | T97: 0 | V97: JimJimany | W97: 0.5
S98: BeerBeer | T98: 0 | V98: Dark Duke | W98: 0.5
S99: Pellevin | T99: 0 | V99: DonShula | W99: 0.5
S100: nonumber | T100: 0 | V100: Endalos | W100: 0.5
S101: swifty | T101: 0 | V101: swifty | W101: 0.5
S102: JohnnyD | T102: 0 | V102: cz | W102: 0.5
S103: The_Ref | T103: 0 | V103: Goss | W103: 0.5
S104: Obeliz | T104: 0 | V104: Geggster | W104: 0.5
S105: JimJimany | T105: 0 | V105: Garrick | W105: 0.5
S106: DonShula | T106: 0 | V106: Topper | W106: 0.5
S107: Farina | T107: 0 | V107: Idroj | W107: 0.5
S108: Geggster | T108: 0 | V108: Malodoror | W108: 0.5
S109: Loki | T109: 0 | V109: Elrik | W109: 0.5
S110: MadeofWelsh | T110: 0 | V110: Purdindas | W110: 0.5
S111: MacWitt | T111: 0 | V111: FrankPedersen | W111: 0.5
S112: FrankPedersen | T112: 0 | V112: Leonek | W112: 0.5
S113: Dark Duke | T113: 0 | V113: Melisqus | W113: 0.5
S114: PurpleGoo | T114: 0 | V114: J-Ho | W114: 0.5
S115: cz | T115: 0 | V115: BudWiser | W115: 0.5
S116: Melisqus | T116: 0 | V116: Farina | W116: 0.5
S117: Favi | T117: 0 | V117: edheim | W117: 0.5
S118: Candlejack | T118: 0 | V118: Madmatt13 | W118: 0.5
S119: ratogre | T119: 0 | V119: Favi | W119: 0
S120: Idroj | T120: 0 | V120: ratogre | W120: 0
S121: jopotzuki | T121: 0 | V121: BeerBeer | W121: 0
S122: Endalos | T122: 0 | V122: Tank | W122: 0
S123: Phoenix11 | T123: 0 | V123: Joanet | W123: 0
S124: J-Ho | T124: 0 | V124: jopotzuki | W124: 0
S125: Purdindas | T125: 0 | V125: MadeofWelsh | W125: 0
S126: Dragons | T126: 0 | V126: Obeliz | W126: 0
S127: 20Phoenix | T127: 0 | V127: Phoenix11 | W127: 0
S128: Skoberget | T128: 0 | V128: Dragons | W128: 0
S129: Malasnoticias | T129: 0 | V129: nonumber | W129: 0

Sheet Round3
B1: Home Player | C1: Away Player | D1: Home Points | E1: Away Points | F1: Home TD | G1: Away TD | H1: Home Cas | I1: Away Cas | J1: Home Bonus 1 | K1: Away Bonus 1 | L1: Home Bonus 2 | M1: Away Bonus 2 | N1: Home Group | O1: Away Group | S1: Points Before Games | V1: Points After Games | Y1: Group Results | Z1: Group | AA1: Points | AC1: Group Points Before Games | AF1: Group Points Before Games
B2: Simon_ACP | C2: Muadib | D2: =fctScore(F2,G2,H2,J2,L2) -> 1 | E2: =fctScore(G2,F2,I2,K2,M2) -> 0 | F2: 2 | G2: 1 | H2: 0 | I2: 1 | J2: 1 | K2: 2 | L2: 1 | M2: 1 | N2: France | O2: Germany | S2: gninocker | T2: 2 | V2: brocCooli | W2: 3.5 | Z2: Belgium | AA2: 4.5 | AC2: France | AD2: 13.5 | AF2: France | AG2: 18
B3: Justicium | C3: Arioso | D3: =fctScore(F3,G3,H3,J3,L3) -> 0 | E3: =fctScore(G3,F3,I3,K3,M3) -> 1 | F3: 2 | G3: 3 | H3: 1 | I3: 2 | J3: 3 | K3: 0 | L3: 1 | M3: 1 | N3: France | O3: Germany | S3: Matte8 | T3: 2 | V3: Corwin | W3: 3 | Z3: Denmark | AA3: 4.5 | AC3: Germany | AD3: 13 | AF3: Germany | AG3: 17.5
B4: Harti | C4: Prince | D4: 0 | E4: 1 | F4: 1 | G4: 2 | H4: 3 | I4: 0 | J4: 1 | K4: 2 | L4: 2 | M4: 2 | N4: France | O4: Germany | S4: Verrinho | T4: 2 | V4: Arioso | W4: 3 | Z4: England | AA4: 4.5 | AC4: Italy | AD4: 12.5 | AF4: Italy | AG4: 17
B5: BiBi | C5: RoterSternHochdah | D5: 1 | E5: 0 | F5: 3 | G5: 2 | H5: 2 | I5: 3 | J5: 2 | K5: 3 | L5: 1 | M5: 0 | N5: France | O5: Germany | S5: Muadib | T5: 2 | V5: Prince | W5: 3 | Z5: Finland | AA5: 3.5 | AC5: Viking | AD5: 12 | AF5: Viking | AG5: 16.5
B6: Bouzzy | C6: Gaunab | D6: 1 | E6: 0 | F6: 2 | G6: 0 | H6: 2 | I6: 0 | J6: 0 | K6: 1 | L6: 1 | M6: 0 | N6: France | O6: Germany | S6: brocCooli | T6: 2 | V6: Phifoe | W6: 3 | Z6: France | AA6: 4.5 | AC6: Switzerland | AD6: 10.5 | AF6: Switzerland | AG6: 15
B7: Gros Nain | C7: Jonny_Kanone | D7: 0 | E7: 1 | F7: 2 | G7: 3 | H7: 3 | I7: 2 | J7: 2 | K7: 1 | L7: 1 | M7: 2 | N7: France | O7: Germany | S7: Podfrey | T7: 2 | V7: Pidpad | W7: 3 | Z7: Germany | AA7: 4.5 | AC7: Poland | AD7: 10.5 | AF7: Poland | AG7: 15
B8: Matt le fou | C8: DocMaxx | D8: 0.5 | E8: 0.5 | F8: 3 | G8: 3 | H8: 2 | I8: 3 | J8: 2 | K8: 1 | L8: 0 | M8: 2 | N8: France | O8: Germany | S8: Arioso | T8: 2 | V8: gninocker | W8: 3 | Z8: Hungary | AA8: 3.5 | AC8: England | AD8: 10 | AF8: England | AG8: 14.5
B9: BudWiser | C9: Candlejack | D9: 0.5 | E9: 0.5 | F9: 1 | G9: 1 | H9: 1 | I9: 1 | J9: 2 | K9: 3 | L9: 1 | M9: 1 | N9: France | O9: Germany | S9: Prince | T9: 2 | V9: Simon_ACP | W9: 3 | Z9: Italy | AA9: 4.5 | AC9: Belgium | AD9: 9.5 | AF9: Belgium | AG9: 14
B10: Matte8 | C10: brocCooli | D10: 0 | E10: 1 | F10: 0 | G10: 1 | H10: 1 | I10: 1 | J10: 0 | K10: 1 | L10: 2 | M10: 3 | N10: Italy | O10: Viking | S10: Simon_ACP | T10: 2 | V10: sigu70 | W10: 3 | Z10: Norway | AA10: 4.5 | AC10: Hungary | AD10: 8.5 | AF10: Sweden | AG10: 14
B11: Verrinho | C11: Bernuz | D11: 0.5 | E11: 0.5 | F11: 0 | G11: 0 | H11: 1 | I11: 3 | J11: 2 | K11: 3 | L11: 2 | M11: 2 | N11: Italy | O11: Viking | S11: Justicium | T11: 2 | V11: noraal | W11: 2.5 | Z11: Poland | AA11: 4.5 | AC11: Sweden | AD11: 8.5 | AF11: Denmark | AG11: 12.5
B12: Dirold | C12: Corwin | D12: 0 | E12: 1 | F12: 1 | G12: 2 | H12: 2 | I12: 1 | J12: 3 | K12: 1 | L12: 2 | M12: 2 | N12: Italy | O12: Viking | S12: sigu70 | T12: 2 | V12: Strider84 | W12: 2.5 | Z12: Scotland | AA12: 3.5 | AC12: Denmark | AD12: 8 | AF12: Hungary | AG12: 12
B13: Liam | C13: Mufflo | D13: 1 | E13: 0 | F13: 2 | G13: 1 | H13: 1 | I13: 1 | J13: 2 | K13: 3 | L13: 3 | M13: 2 | N13: Italy | O13: Viking | S13: Pidpad | T13: 2 | V13: Verrinho | W13: 2.5 | Z13: Spain | AA13: 5.5 | AC13: Norway | AD13: 7 | AF13: Norway | AG13: 11.5
B14: Spartako | C14: Faccko | D14: 1 | E14: 0 | F14: 3 | G14: 1 | H14: 2 | I14: 3 | J14: 2 | K14: 2 | L14: 1 | M14: 0 | N14: Italy | O14: Viking | S14: Phifoe | T14: 2 | V14: BiBi | W14: 2.5 | Z14: Sweden | AA14: 5.5 | AC14: Scotland | AD14: 6 | AF14: Wales | AG14: 11.5
B15: Kaltenland | C15: Balder | D15: 0 | E15: 1 | F15: 1 | G15: 3 | H15: 2 | I15: 1 | J15: 0 | K15: 3 | L15: 0 | M15: 1 | N15: Italy | O15: Viking | S15: Harti | T15: 2 | V15: Balder | W15: 2.5 | Z15: Switzerland | AA15: 4.5 | AC15: Wales | AD15: 6 | AF15: Spain | AG15: 10
B16: Beppe | C16: Purrelito | D16: 1 | E16: 0 | F16: 1 | G16: 0 | H16: 2 | I16: 3 | J16: 0 | K16: 0 | L16: 1 | M16: 2 | N16: Italy | O16: Viking | S16: Wolio | T16: 2 | V16: zulu | W16: 2.5 | Z16: Viking | AA16: 4.5 | AC16: Spain | AD16: 4.5 | AF16: Scotland | AG16: 9.5
B17: Farina | C17: Duckwing | D17: 0.5 | E17: 0.5 | F17: 2 | G17: 2 | H17: 0 | I17: 1 | J17: 1 | K17: 3 | L17: 2 | M17: 2 | N17: Italy | O17: Viking | S17: Domingo | T17: 1.5 | V17: Bouzzy | W17: 2.5 | Z17: Wales | AA17: 5.5 | AC17: Finland | AD17: 4 | AF17: Finland | AG17: 7.5
B18: sigu70 | C18: Domingo | D18: 0.5 | E18: 0.5 | F18: 2 | G18: 2 | H18: 1 | I18: 0 | J18: 1 | K18: 0 | L18: 0 | M18: 1 | N18: Switzerland | O18: Poland | S18: Bernuz | T18: 1.5 | V18: mynock | W18: 2.5
B19: Phifoe | C19: Warrior1980 | D19: 0.5 | E19: 0.5 | F19: 2 | G19: 2 | H19: 0 | I19: 1 | J19: 2 | K19: 2 | L19: 1 | M19: 2 | N19: Switzerland | O19: Poland | S19: Warrior1980 | T19: 1.5 | V19: Liam | W19: 2.5
B20: Strider84 | C20: Reszka | D20: 0.5 | E20: 0.5 | F20: 2 | G20: 2 | H20: 0 | I20: 1 | J20: 3 | K20: 2 | L20: 1 | M20: 2 | N20: Switzerland | O20: Poland | S20: Reszka | T20: 1.5 | V20: Mewash | W20: 2.5
B21: Jokaero | C21: Mewash | D21: 0 | E21: 1 | F21: 1 | G21: 3 | H21: 3 | I21: 1 | J21: 2 | K21: 1 | L21: 0 | M21: 3 | N21: Switzerland | O21: Poland | S21: RoterSternHochdah | T21: 1.5 | V21: Reszka | W21: 2
B22: Macabeo | C22: Juniooor7 | D22: 0 | E22: 1 | F22: 0 | G22: 1 | H22: 2 | I22: 2 | J22: 2 | K22: 2 | L22: 2 | M22: 1 | N22: Switzerland | O22: Poland | S22: BiBi | T22: 1.5 | V22: Skoberget | W22: 2
B23: Goss | C23: Shawass | D23: 0.5 | E23: 0.5 | F23: 2 | G23: 2 | H23: 1 | I23: 2 | J23: 0 | K23: 1 | L23: 1 | M23: 1 | N23: Switzerland | O23: Poland | S23: Skuld | T23: 1.5 | V23: BlackOrc | W23: 2
B24: Elrik | C24: Slimaq | D24: 1 | E24: 0 | F24: 1 | G24: 0 | H24: 3 | I24: 3 | J24: 1 | K24: 2 | L24: 0 | M24: 2 | N24: Switzerland | O24: Poland | S24: noraal | T24: 1.5 | V24: Jonny_Kanone | W24: 2
B25: Madmatt13 | C25: Leonek | D25: 1 | E25: 0 | F25: 2 | G25: 0 | H25: 2 | I25: 0 | J25: 1 | K25: 2 | L25: 2 | M25: 0 | N25: Switzerland | O25: Poland | S25: SpecialOne | T25: 1.5 | V25: Beppe | W25: 2
B26: Podfrey | C26: gninocker | D26: 0 | E26: 1 | F26: 0 | G26: 1 | H26: 2 | I26: 3 | J26: 2 | K26: 1 | L26: 1 | M26: 1 | N26: England | O26: Belgium | S26: Strider84 | T26: 1.5 | V26: Malasnoticias | W26: 2
B27: Mubo | C27: Araznaroth | D27: 0.5 | E27: 0.5 | F27: 3 | G27: 3 | H27: 1 | I27: 1 | J27: 2 | K27: 2 | L27: 2 | M27: 1 | N27: England | O27: Belgium | S27: Mubo | T27: 1.5 | V27: Muadib | W27: 2
B28: Wilzif | C28: Dekra1979 | D28: 0.5 | E28: 0.5 | F28: 1 | G28: 1 | H28: 2 | I28: 1 | J28: 1 | K28: 1 | L28: 1 | M28: 0 | N28: England | O28: Belgium | S28: sann0638 | T28: 1.5 | V28: Spartako | W28: 2
B29: Joemanji | C29: JJ | D29: 0 | E29: 1 | F29: 1 | G29: 3 | H29: 2 | I29: 2 | J29: 2 | K29: 3 | L29: 2 | M29: 2 | N29: England | O29: Belgium | S29: Bouzzy | T29: 1.5 | V29: Dekra1979 | W29: 2
B30: Lycos | C30: Driesfield | D30: 0.5 | E30: 0.5 | F30: 1 | G30: 1 | H30: 3 | I30: 2 | J30: 0 | K30: 3 | L30: 0 | M30: 2 | N30: England | O30: Belgium | S30: Jokaero | T30: 1.5 | V30: Skuld | W30: 2
B31: PurpleGoo | C31: Woete | D31: 1 | E31: 0 | F31: 1 | G31: 0 | H31: 2 | I31: 2 | J31: 3 | K31: 1 | L31: 2 | M31: 1 | N31: England | O31: Belgium | S31: Araznaroth | T31: 1.5 | V31: Warrior1980 | W31: 2
B32: JimJimany | C32: Malodoror | D32: 0.5 | E32: 0.5 | F32: 1 | G32: 1 | H32: 2 | I32: 1 | J32: 0 | K32: 2 | L32: 0 | M32: 1 | N32: England | O32: Belgium | S32: zulu | T32: 1.5 | V32: Valen | W32: 2
B33: Geggster | C33: Phoenix11 | D33: 1 | E33: 0 | F33: 2 | G33: 0 | H33: 2 | I33: 1 | J33: 1 | K33: 1 | L33: 0 | M33: 0 | N33: England | O33: Belgium | S33: mynock | T33: 1.5 | V33: Wolio | W33: 2
B34: Wolio | C34: Pidpad | D34: 0 | E34: 1 | F34: 0 | G34: 3 | H34: 0 | I34: 3 | J34: 0 | K34: 1 | L34: 1 | M34: 1 | N34: Hungary | O34: Sweden | S34: Dirold | T34: 1.5 | V34: Matte8 | W34: 2
B35: noraal | C35: Skuld | D35: 1 | E35: 0 | F35: 2 | G35: 0 | H35: 3 | I35: 1 | J35: 0 | K35: 0 | L35: 3 | M35: 1 | N35: Hungary | O35: Sweden | S35: Liam | T35: 1.5 | V35: Araznaroth | W35: 2
B36: Itzla | C36: JohnnyD | D36: 0.5 | E36: 0.5 | F36: 2 | G36: 2 | H36: 0 | I36: 2 | J36: 3 | K36: 0 | L36: 0 | M36: 2 | N36: Hungary | O36: Sweden | S36: Corwin | T36: 1.5 | V36: Justicium | W36: 2
B37: BlackOrc | C37: Inforthepain | D37: 1 | E37: 0 | F37: 2 | G37: 1 | H37: 2 | I37: 0 | J37: 3 | K37: 1 | L37: 0 | M37: 3 | N37: Hungary | O37: Sweden | S37: Wilzif | T37: 1.5 | V37: Niebling | W37: 2
B38: Alex05 | C38: Pellevin | D38: 1 | E38: 0 | F38: 3 | G38: 2 | H38: 2 | I38: 3 | J38: 1 | K38: 0 | L38: 3 | M38: 3 | N38: Hungary | O38: Sweden | S38: Mewash | T38: 1.5 | V38: Podfrey | W38: 2
B39: swifty | C39: Skoberget | D39: 0 | E39: 1 | F39: 1 | G39: 2 | H39: 2 | I39: 2 | J39: 0 | K39: 3 | L39: 3 | M39: 1 | N39: Hungary | O39: Sweden | S39: Dekra1979 | T39: 1.5 | V39: Elrik | W39: 2
B40: cz | C40: Melisqus | D40: 0 | E40: 1 | F40: 1 | G40: 3 | H40: 1 | I40: 3 | J40: 1 | K40: 3 | L40: 0 | M40: 1 | N40: Hungary | O40: Sweden | S40: Gros Nain | T40: 1.5 | V40: Madmatt13 | W40: 2
B41: Favi | C41: Dragons | D41: 0 | E41: 1 | F41: 1 | G41: 2 | H41: 3 | I41: 3 | J41: 3 | K41: 0 | L41: 3 | M41: 2 | N41: Hungary | O41: Sweden | S41: JJ | T41: 1 | V41: JohnnyD | W41: 2
B42: SpecialOne | C42: zulu | D42: 0 | E42: 1 | F42: 0 | G42: 1 | H42: 2 | I42: 2 | J42: 2 | K42: 1 | L42: 1 | M42: 1 | N42: Denmark | O42: Norway | S42: Mufflo | T42: 1 | V42: Dionysian | W42: 2
B43: MissSweden | C43: mynock | D43: 0 | E43: 1 | F43: 1 | G43: 2 | H43: 2 | I43: 1 | J43: 1 | K43: 1 | L43: 2 | M43: 3 | N43: Denmark | O43: Norway | S43: Faccko | T43: 1 | V43: Bernuz | W43: 2
B44: Niebling | C44: bothun | D44: 1 | E44: 0 | F44: 2 | G44: 0 | H44: 1 | I44: 3 | J44: 2 | K44: 1 | L44: 1 | M44: 1 | N44: Denmark | O44: Norway | S44: valkohukka | T44: 1 | V44: Mubo | W44: 2
B45: Tripleskull | C45: GreatWhiteHope | D45: 1 | E45: 0 | F45: 3 | G45: 2 | H45: 1 | I45: 2 | J45: 3 | K45: 0 | L45: 2 | M45: 3 | N45: Denmark | O45: Norway | S45: Joemanji | T45: 1 | V45: Harti | W45: 2
B46: Jaqra | C46: The_Ref | D46: 0 | E46: 1 | F46: 0 | G46: 2 | H46: 1 | I46: 3 | J46: 1 | K46: 1 | L46: 2 | M46: 2 | N46: Denmark | O46: Norway | S46: JohnnyD | T46: 1 | V46: Juniooor7 | W46: 2
B47: kfoged | C47: straume | D47: 0.5 | E47: 0.5 | F47: 2 | G47: 2 | H47: 2 | I47: 2 | J47: 1 | K47: 1 | L47: 2 | M47: 3 | N47: Denmark | O47: Norway | S47: SFisher91 | T47: 1 | V47: JJ | W47: 2
B48: Topper | C48: Endalos | D48: 0.5 | E48: 0.5 | F48: 0 | G48: 0 | H48: 1 | I48: 1 | J48: 1 | K48: 2 | L48: 0 | M48: 1 | N48: Denmark | O48: Norway | S48: Gaunab | T48: 1 | V48: MacWitt | W48: 2
B49: Tank | C49: FrankPedersen | D49: 1 | E49: 0 | F49: 2 | G49: 0 | H49: 1 | I49: 2 | J49: 2 | K49: 1 | L49: 1 | M49: 1 | N49: Denmark | O49: Norway | S49: Tactel | T49: 1 | V49: andydavo | W49: 2
B50: sann0638 | C50: SFisher91 | D50: 0 | E50: 1 | F50: 1 | G50: 3 | H50: 1 | I50: 0 | J50: 3 | K50: 1 | L50: 2 | M50: 1 | N50: Scotland | O50: Wales | S50: Juniooor7 | T50: 1 | V50: Alex05 | W50: 2
B51: Loki | C51: andydavo | D51: 0 | E51: 1 | F51: 1 | G51: 2 | H51: 3 | I51: 2 | J51: 2 | K51: 2 | L51: 2 | M51: 2 | N51: Scotland | O51: Wales | S51: Balder | T51: 1 | V51: Tripleskull | W51: 2
B52: Valen | C52: Northernknight | D52: 1 | E52: 0 | F52: 2 | G52: 1 | H52: 0 | I52: 2 | J52: 2 | K52: 1 | L52: 1 | M52: 3 | N52: Scotland | O52: Wales | S52: Malasnoticias | T52: 1 | V52: Wilzif | W52: 2
B53: JamesEs | C53: Dionysian | D53: 0 | E53: 1 | F53: 0 | G53: 3 | H53: 2 | I53: 2 | J53: 2 | K53: 1 | L53: 1 | M53: 0 | N53: Scotland | O53: Wales | S53: Itzla | T53: 1 | V53: Jokaero | W53: 2
B54: HumptyTrump | C54: Ploppy_McPloppy | D54: 0.5 | E54: 0.5 | F54: 1 | G54: 1 | H54: 2 | I54: 3 | J54: 2 | K54: 3 | L54: 0 | M54: 2 | N54: Scotland | O54: Wales | S54: Spartako | T54: 1 | V54: SFisher91 | W54: 2
B55: DonShula | C55: 20Phoenix | D55: 1 | E55: 0 | F55: 2 | G55: 1 | H55: 2 | I55: 1 | J55: 1 | K55: 3 | L55: 3 | M55: 2 | N55: Scotland | O55: Wales | S55: Loki | T55: 1 | V55: Domingo | W55: 2
B56: Garrick | C56: MadeofWelsh | D56: 1 | E56: 0 | F56: 2 | G56: 0 | H56: 1 | I56: 3 | J56: 1 | K56: 2 | L56: 1 | M56: 1 | N56: Scotland | O56: Wales | S56: MissSweden | T56: 1 | V56: valkohukka | W56: 2
B57: Purdindas | C57: nonumber | D57: 0 | E57: 1 | F57: 2 | G57: 3 | H57: 1 | I57: 3 | J57: 0 | K57: 1 | L57: 3 | M57: 3 | N57: Scotland | O57: Wales | S57: Kaltenland | T57: 1 | V57: Geggster | W57: 1.5
B58: Tactel | C58: valkohukka | D58: 0 | E58: 1 | F58: 1 | G58: 3 | H58: 3 | I58: 2 | J58: 0 | K58: 0 | L58: 2 | M58: 1 | N58: Spain | O58: Finland | S58: andydavo | T58: 1 | V58: PurpleGoo | W58: 1.5
B59: Malasnoticias | C59: Harza | D59: 1 | E59: 0 | F59: 2 | G59: 1 | H59: 0 | I59: 2 | J59: 1 | K59: 0 | L59: 2 | M59: 1 | N59: Spain | O59: Finland | S59: Macabeo | T59: 1 | V59: Gros Nain | W59: 1.5
B60: Barry | C60: MacWitt | D60: 0 | E60: 1 | F60: 0 | G60: 3 | H60: 2 | I60: 3 | J60: 1 | K60: 2 | L60: 1 | M60: 2 | N60: Spain | O60: Finland | S60: Beppe | T60: 1 | V60: The_Ref | W60: 1.5
B61: Duke_Luthor_Von_Hawkfire | C61: J-Ho | D61: 0.5 | E61: 0.5 | F61: 2 | G61: 2 | H61: 1 | I61: 1 | J61: 1 | K61: 2 | L61: 2 | M61: 1 | N61: Spain | O61: Finland | S61: Inforthepain | T61: 1 | V61: Lycos | W61: 1.5
B62: Dark Duke | C62: edheim | D62: 1 | E62: 0 | F62: 2 | G62: 1 | H62: 2 | I62: 0 | J62: 1 | K62: 0 | L62: 3 | M62: 3 | N62: Spain | O62: Finland | S62: Northernknight | T62: 1 | V62: Garrick | W62: 1.5
B63: Idroj | C63: ratogre | D63: 1 | E63: 0 | F63: 3 | G63: 2 | H63: 0 | I63: 2 | J63: 1 | K63: 3 | L63: 1 | M63: 2 | N63: Spain | O63: Finland | S63: Niebling | T63: 1 | V63: Dirold | W63: 1.5
B64: Joanet | C64: BeerBeer | D64: 1 | E64: 0 | F64: 3 | G64: 1 | H64: 0 | I64: 2 | J64: 1 | K64: 2 | L64: 1 | M64: 3 | N64: Spain | O64: Finland | S64: Shawass | T64: 1 | V64: Goss | W64: 1.5
B65: Obeliz | C65: jopotzuki | D65: 0 | E65: 1 | F65: 1 | G65: 3 | H65: 3 | I65: 3 | J65: 0 | K65: 1 | L65: 1 | M65: 3 | N65: Spain | O65: Finland | S65: Tripleskull | T65: 1 | V65: Itzla | W65: 1.5
S66: Jonny_Kanone | T66: 1 | V66: Pellevin | W66: 1.5
S67: Driesfield | T67: 1 | V67: RoterSternHochdah | W67: 1.5
S68: Harza | T68: 1 | V68: sann0638 | W68: 1.5
S69: Dionysian | T69: 1 | V69: DonShula | W69: 1.5
S70: Ploppy_McPloppy | T70: 1 | V70: DocMaxx | W70: 1.5
S71: bothun | T71: 1 | V71: Ploppy_McPloppy | W71: 1.5
S72: MacWitt | T72: 1 | V72: Driesfield | W72: 1.5
S73: Valen | T73: 1 | V73: Duckwing | W73: 1.5
S74: Woete | T74: 1 | V74: kfoged | W74: 1.5
S75: Lycos | T75: 1 | V75: SpecialOne | W75: 1.5
S76: Slimaq | T76: 1 | V76: Dragons | W76: 1.5
S77: Purrelito | T77: 1 | V77: Idroj | W77: 1.5
S78: DocMaxx | T78: 1 | V78: Mufflo | W78: 1.5
S79: GreatWhiteHope | T79: 1 | V79: Dark Duke | W79: 1.5
S80: Jaqra | T80: 1 | V80: Melisqus | W80: 1.5
S81: Barry | T81: 1 | V81: Faccko | W81: 1.5
S82: BlackOrc | T82: 1 | V82: Shawass | W82: 1.5
S83: Duckwing | T83: 1 | V83: Macabeo | W83: 1.5
S84: kfoged | T84: 1 | V84: Endalos | W84: 1
S85: Alex05 | T85: 1 | V85: Slimaq | W85: 1
S86: Pellevin | T86: 1 | V86: Tactel | W86: 1
S87: JamesEs | T87: 0.5 | V87: BudWiser | W87: 1
S88: Candlejack | T88: 0.5 | V88: Duke_Luthor_Von_Hawkfire | W88: 1
S89: Matt le fou | T89: 0.5 | V89: HumptyTrump | W89: 1
S90: The_Ref | T90: 0.5 | V90: Northernknight | W90: 1
S91: Skoberget | T91: 0.5 | V91: Jaqra | W91: 1
S92: 20Phoenix | T92: 0.5 | V92: Barry | W92: 1
S93: straume | T93: 0.5 | V93: Candlejack | W93: 1
S94: HumptyTrump | T94: 0.5 | V94: Topper | W94: 1
S95: Duke_Luthor_Von_Hawkfire | T95: 0.5 | V95: Matt le fou | W95: 1
S96: PurpleGoo | T96: 0.5 | V96: Purrelito | W96: 1
S97: JimJimany | T97: 0.5 | V97: Joanet | W97: 1
S98: Dark Duke | T98: 0.5 | V98: Gaunab | W98: 1
S99: DonShula | T99: 0.5 | V99: Harza | W99: 1
S100: Endalos | T100: 0.5 | V100: bothun | W100: 1
S101: swifty | T101: 0.5 | V101: jopotzuki | W101: 1
S102: cz | T102: 0.5 | V102: Woete | W102: 1
S103: Goss | T103: 0.5 | V103: MissSweden | W103: 1
S104: Geggster | T104: 0.5 | V104: Farina | W104: 1
S105: Garrick | T105: 0.5 | V105: GreatWhiteHope | W105: 1
S106: Topper | T106: 0.5 | V106: straume | W106: 1
S107: Idroj | T107: 0.5 | V107: Joemanji | W107: 1
S108: Malodoror | T108: 0.5 | V108: Malodoror | W108: 1
S109: Elrik | T109: 0.5 | V109: nonumber | W109: 1
S110: Purdindas | T110: 0.5 | V110: Kaltenland | W110: 1
S111: FrankPedersen | T111: 0.5 | V111: J-Ho | W111: 1
S112: Leonek | T112: 0.5 | V112: Tank | W112: 1
S113: Melisqus | T113: 0.5 | V113: Loki | W113: 1
S114: J-Ho | T114: 0.5 | V114: JimJimany | W114: 1
S115: BudWiser | T115: 0.5 | V115: Inforthepain | W115: 1
S116: Farina | T116: 0.5 | V116: Leonek | W116: 0.5
S117: edheim | T117: 0.5 | V117: edheim | W117: 0.5
S118: Madmatt13 | T118: 0.5 | V118: cz | W118: 0.5
S119: Favi | T119: 0 | V119: FrankPedersen | W119: 0.5
S120: ratogre | T120: 0 | V120: swifty | W120: 0.5
S121: BeerBeer | T121: 0 | V121: 20Phoenix | W121: 0.5
S122: Tank | T122: 0 | V122: Purdindas | W122: 0.5
S123: Joanet | T123: 0 | V123: JamesEs | W123: 0.5
S124: jopotzuki | T124: 0 | V124: Favi | W124: 0
S125: MadeofWelsh | T125: 0 | V125: ratogre | W125: 0
S126: Obeliz | T126: 0 | V126: MadeofWelsh | W126: 0
S127: Phoenix11 | T127: 0 | V127: Phoenix11 | W127: 0
S128: Dragons | T128: 0 | V128: Obeliz | W128: 0
S129: nonumber | T129: 0 | V129: BeerBeer | W129: 0

Sheet Round4
B1: Home Player | C1: Away Player | D1: Home Points | E1: Away Points | F1: Home TD | G1: Away TD | H1: Home Cas | I1: Away Cas | J1: Home Bonus 1 | K1: Away Bonus 1 | L1: Home Bonus 2 | M1: Away Bonus 2 | N1: Home Group | O1: Away Group | S1: Points Before Games | V1: Points After Games | Y1: Group Results | Z1: Group | AA1: Points | AC1: Group Points Before Games | AF1: Group Points Before Games
B2: Simon_ACP | C2: Verrinho | D2: =fctScore(F2,G2,H2,J2,L2) -> 0.5 | E2: =fctScore(G2,F2,I2,K2,M2) -> 0.5 | F2: 2 | G2: 2 | H2: 1 | I2: 1 | J2: 1 | K2: 1 | L2: 2 | M2: 3 | N2: France | O2: Italy | S2: brocCooli | T2: 3.5 | V2: Corwin | W2: 4.5 | Z2: Belgium | AA2: 3.5 | AC2: France | AD2: 18 | AF2: Italy | AG2: 23.5
B3: BiBi | C3: Liam | D3: =fctScore(F3,G3,H3,J3,L3) -> 1 | E3: =fctScore(G3,F3,I3,K3,M3) -> 0 | F3: 1 | G3: 0 | H3: 1 | I3: 1 | J3: 1 | K3: 3 | L3: 1 | M3: 3 | N3: France | O3: Italy | S3: Corwin | T3: 3 | V3: brocCooli | W3: 4 | Z3: Denmark | AA3: 4.5 | AC3: Germany | AD3: 17.5 | AF3: Viking | AG3: 22
B4: Bouzzy | C4: Beppe | D4: 0 | E4: 1 | F4: 0 | G4: 1 | H4: 2 | I4: 1 | J4: 0 | K4: 3 | L4: 1 | M4: 3 | N4: France | O4: Italy | S4: Arioso | T4: 3 | V4: Strider84 | W4: 4 | Z4: England | AA4: 5.5 | AC4: Italy | AD4: 17 | AF4: Germany | AG4: 21
B5: Justicium | C5: Spartako | D5: 0 | E5: 1 | F5: 1 | G5: 2 | H5: 1 | I5: 2 | J5: 1 | K5: 2 | L5: 0 | M5: 1 | N5: France | O5: Italy | S5: Prince | T5: 3 | V5: Balder | W5: 4 | Z5: Finland | AA5: 4.5 | AC5: Viking | AD5: 16.5 | AF5: France | AG5: 20.5
B6: Harti | C6: Matte8 | D6: 0.5 | E6: 0.5 | F6: 1 | G6: 1 | H6: 3 | I6: 2 | J6: 3 | K6: 1 | L6: 1 | M6: 2 | N6: France | O6: Italy | S6: Phifoe | T6: 3 | V6: sigu70 | W6: 4 | Z6: France | AA6: 2.5 | AC6: Switzerland | AD6: 15 | AF6: Poland | AG6: 20.5
B7: Gros Nain | C7: Dirold | D7: 0.5 | E7: 0.5 | F7: 1 | G7: 1 | H7: 1 | I7: 3 | J7: 1 | K7: 1 | L7: 2 | M7: 1 | N7: France | O7: Italy | S7: Pidpad | T7: 3 | V7: Phifoe | W7: 4 | Z7: Germany | AA7: 3.5 | AC7: Poland | AD7: 15 | AF7: England | AG7: 20
B8: BudWiser | C8: Farina | D8: 0 | E8: 1 | F8: 1 | G8: 3 | H8: 2 | I8: 3 | J8: 1 | K8: 3 | L8: 2 | M8: 0 | N8: France | O8: Italy | S8: gninocker | T8: 3 | V8: mynock | W8: 3.5 | Z8: Hungary | AA8: 7.5 | AC8: England | AD8: 14.5 | AF8: Hungary | AG8: 19.5
B9: Matt le fou | C9: Kaltenland | D9: 0 | E9: 1 | F9: 1 | G9: 2 | H9: 2 | I9: 3 | J9: 0 | K9: 1 | L9: 2 | M9: 2 | N9: France | O9: Italy | S9: Simon_ACP | T9: 3 | V9: Pidpad | W9: 3.5 | Z9: Italy | AA9: 6.5 | AC9: Belgium | AD9: 14 | AF9: Switzerland | AG9: 18.5
B10: Arioso | C10: brocCooli | D10: 0.5 | E10: 0.5 | F10: 1 | G10: 1 | H10: 3 | I10: 2 | J10: 3 | K10: 2 | L10: 2 | M10: 0 | N10: Germany | O10: Viking | S10: sigu70 | T10: 3 | V10: Simon_ACP | W10: 3.5 | Z10: Norway | AA10: 1.5 | AC10: Sweden | AD10: 14 | AF10: Sweden | AG10: 18.5
B11: Prince | C11: Corwin | D11: 0 | E11: 1 | F11: 1 | G11: 3 | H11: 2 | I11: 1 | J11: 1 | K11: 2 | L11: 2 | M11: 3 | N11: Germany | O11: Viking | S11: noraal | T11: 2.5 | V11: BiBi | W11: 3.5 | Z11: Poland | AA11: 5.5 | AC11: Denmark | AD11: 12.5 | AF11: Belgium | AG11: 17.5
B12: Jonny_Kanone | C12: Balder | D12: 0 | E12: 1 | F12: 0 | G12: 2 | H12: 1 | I12: 1 | J12: 3 | K12: 2 | L12: 2 | M12: 3 | N12: Germany | O12: Viking | S12: Strider84 | T12: 2.5 | V12: noraal | W12: 3.5 | Z12: Scotland | AA12: 4.5 | AC12: Hungary | AD12: 12 | AF12: Denmark | AG12: 17
B13: Muadib | C13: Bernuz | D13: 0 | E13: 1 | F13: 0 | G13: 2 | H13: 0 | I13: 1 | J13: 3 | K13: 1 | L13: 1 | M13: 3 | N13: Germany | O13: Viking | S13: Verrinho | T13: 2.5 | V13: Arioso | W13: 3.5 | Z13: Spain | AA13: 3.5 | AC13: Norway | AD13: 11.5 | AF13: Wales | AG13: 17
B14: RoterSternHochdah | C14: Duckwing | D14: 1 | E14: 0 | F14: 2 | G14: 1 | H14: 0 | I14: 3 | J14: 1 | K14: 1 | L14: 1 | M14: 1 | N14: Germany | O14: Viking | S14: BiBi | T14: 2.5 | V14: gninocker | W14: 3.5 | Z14: Sweden | AA14: 4.5 | AC14: Wales | AD14: 11.5 | AF14: Scotland | AG14: 14
B15: DocMaxx | C15: Mufflo | D15: 1 | E15: 0 | F15: 2 | G15: 0 | H15: 1 | I15: 1 | J15: 2 | K15: 3 | L15: 1 | M15: 3 | N15: Germany | O15: Viking | S15: Balder | T15: 2.5 | V15: Bernuz | W15: 3.5 | Z15: Switzerland | AA15: 3.5 | AC15: Spain | AD15: 10 | AF15: Spain | AG15: 13.5
B16: Candlejack | C16: Faccko | D16: 0.5 | E16: 0.5 | F16: 1 | G16: 1 | H16: 1 | I16: 2 | J16: 2 | K16: 3 | L16: 1 | M16: 0 | N16: Germany | O16: Viking | S16: zulu | T16: 2.5 | V16: Malasnoticias | W16: 3 | Z16: Viking | AA16: 5.5 | AC16: Scotland | AD16: 9.5 | AF16: Norway | AG16: 13
B17: Gaunab | C17: Purrelito | D17: 0.5 | E17: 0.5 | F17: 1 | G17: 1 | H17: 1 | I17: 1 | J17: 0 | K17: 3 | L17: 1 | M17: 1 | N17: Germany | O17: Viking | S17: Bouzzy | T17: 2.5 | V17: Spartako | W17: 3 | Z17: Wales | AA17: 5.5 | AC17: Finland | AD17: 7.5 | AF17: Finland | AG17: 12
B18: Phifoe | C18: Podfrey | D18: 0.5 | E18: 0.5 | F18: 1 | G18: 1 | H18: 3 | I18: 3 | J18: 0 | K18: 1 | L18: 0 | M18: 1 | N18: Switzerland | O18: England | S18: mynock | T18: 2.5 | V18: Pellevin | W18: 3
B19: sigu70 | C19: Mubo | D19: 0.5 | E19: 0.5 | F19: 1 | G19: 1 | H19: 2 | I19: 1 | J19: 0 | K19: 1 | L19: 1 | M19: 3 | N19: Switzerland | O19: England | S19: Liam | T19: 2.5 | V19: Mewash | W19: 3
B20: Strider84 | C20: Wilzif | D20: 1 | E20: 0 | F20: 3 | G20: 2 | H20: 1 | I20: 1 | J20: 0 | K20: 2 | L20: 3 | M20: 3 | N20: Switzerland | O20: England | S20: Mewash | T20: 2.5 | V20: Wolio | W20: 3
B21: Elrik | C21: Geggster | D21: 0.5 | E21: 0.5 | F21: 2 | G21: 2 | H21: 2 | I21: 1 | J21: 1 | K21: 1 | L21: 3 | M21: 2 | N21: Switzerland | O21: England | S21: Reszka | T21: 2 | V21: Elrik | W21: 3
B22: Madmatt13 | C22: PurpleGoo | D22: 0.5 | E22: 0.5 | F22: 2 | G22: 2 | H22: 1 | I22: 0 | J22: 0 | K22: 3 | L22: 1 | M22: 0 | N22: Switzerland | O22: England | S22: Skoberget | T22: 2 | V22: Juniooor7 | W22: 3
B23: Jokaero | C23: Lycos | D23: 0 | E23: 1 | F23: 1 | G23: 2 | H23: 2 | I23: 1 | J23: 2 | K23: 1 | L23: 2 | M23: 2 | N23: Switzerland | O23: England | S23: BlackOrc | T23: 2 | V23: Beppe | W23: 3
B24: Goss | C24: Joemanji | D24: 0 | E24: 1 | F24: 0 | G24: 1 | H24: 1 | I24: 2 | J24: 1 | K24: 3 | L24: 1 | M24: 1 | N24: Switzerland | O24: England | S24: Jonny_Kanone | T24: 2 | V24: Alex05 | W24: 3
B25: Macabeo | C25: JimJimany | D25: 0.5 | E25: 0.5 | F25: 1 | G25: 1 | H25: 3 | I25: 0 | J25: 2 | K25: 0 | L25: 0 | M25: 1 | N25: Switzerland | O25: England | S25: Beppe | T25: 2 | V25: Dragons | W25: 3
B26: Mewash | C26: gninocker | D26: 0.5 | E26: 0.5 | F26: 2 | G26: 2 | H26: 2 | I26: 0 | J26: 0 | K26: 1 | L26: 3 | M26: 2 | N26: Poland | O26: Belgium | S26: Malasnoticias | T26: 2 | V26: Prince | W26: 3
B27: Reszka | C27: Dekra1979 | D27: 1 | E27: 0 | F27: 3 | G27: 2 | H27: 2 | I27: 0 | J27: 0 | K27: 1 | L27: 3 | M27: 1 | N27: Poland | O27: Belgium | S27: Muadib | T27: 2 | V27: Verrinho | W27: 3
B28: Warrior1980 | C28: Araznaroth | D28: 0.5 | E28: 0.5 | F28: 1 | G28: 1 | H28: 2 | I28: 1 | J28: 3 | K28: 1 | L28: 3 | M28: 1 | N28: Poland | O28: Belgium | S28: Spartako | T28: 2 | V28: valkohukka | W28: 3
B29: Juniooor7 | C29: JJ | D29: 1 | E29: 0 | F29: 1 | G29: 0 | H29: 0 | I29: 0 | J29: 3 | K29: 1 | L29: 0 | M29: 2 | N29: Poland | O29: Belgium | S29: Dekra1979 | T29: 2 | V29: Reszka | W29: 3
B30: Domingo | C30: Driesfield | D30: 0 | E30: 1 | F30: 0 | G30: 2 | H30: 2 | I30: 1 | J30: 0 | K30: 3 | L30: 1 | M30: 0 | N30: Poland | O30: Belgium | S30: Skuld | T30: 2 | V30: Tripleskull | W30: 3
B31: Shawass | C31: Woete | D31: 0 | E31: 1 | F31: 1 | G31: 3 | H31: 1 | I31: 3 | J31: 2 | K31: 1 | L31: 3 | M31: 2 | N31: Poland | O31: Belgium | S31: Warrior1980 | T31: 2 | V31: Madmatt13 | W31: 3
B32: Slimaq | C32: Malodoror | D32: 0.5 | E32: 0.5 | F32: 2 | G32: 2 | H32: 2 | I32: 3 | J32: 1 | K32: 3 | L32: 2 | M32: 2 | N32: Poland | O32: Belgium | S32: Valen | T32: 2 | V32: Warrior1980 | W32: 2.5
B33: Leonek | C33: Phoenix11 | D33: 1 | E33: 0 | F33: 3 | G33: 2 | H33: 0 | I33: 2 | J33: 3 | K33: 0 | L33: 0 | M33: 1 | N33: Poland | O33: Belgium | S33: Wolio | T33: 2 | V33: Skuld | W33: 2.5
B34: Pidpad | C34: Niebling | D34: 0.5 | E34: 0.5 | F34: 2 | G34: 2 | H34: 0 | I34: 2 | J34: 1 | K34: 0 | L34: 2 | M34: 1 | N34: Sweden | O34: Denmark | S34: Matte8 | T34: 2 | V34: Valen | W34: 2.5
B35: Skoberget | C35: Tripleskull | D35: 0 | E35: 1 | F35: 0 | G35: 2 | H35: 1 | I35: 2 | J35: 2 | K35: 3 | L35: 0 | M35: 0 | N35: Sweden | O35: Denmark | S35: Araznaroth | T35: 2 | V35: DocMaxx | W35: 2.5
B36: Skuld | C36: kfoged | D36: 0 | E36: 1 | F36: 0 | G36: 2 | H36: 3 | I36: 2 | J36: 2 | K36: 1 | L36: 0 | M36: 0 | N36: Sweden | O36: Denmark | S36: Justicium | T36: 2 | V36: SpecialOne | W36: 2.5
B37: JohnnyD | C37: SpecialOne | D37: 0 | E37: 1 | F37: 2 | G37: 3 | H37: 0 | I37: 2 | J37: 2 | K37: 0 | L37: 0 | M37: 1 | N37: Sweden | O37: Denmark | S37: Niebling | T37: 2 | V37: Mubo | W37: 2.5
B38: Pellevin | C38: Jaqra | D38: 1 | E38: 0 | F38: 3 | G38: 1 | H38: 2 | I38: 0 | J38: 0 | K38: 2 | L38: 0 | M38: 2 | N38: Sweden | O38: Denmark | S38: Podfrey | T38: 2 | V38: Dark Duke | W38: 2.5
B39: Dragons | C39: Topper | D39: 1 | E39: 0 | F39: 2 | G39: 1 | H39: 2 | I39: 1 | J39: 2 | K39: 3 | L39: 1 | M39: 0 | N39: Sweden | O39: Denmark | S39: Elrik | T39: 2 | V39: Macabeo | W39: 2.5
B40: Melisqus | C40: MissSweden | D40: 1 | E40: 0 | F40: 2 | G40: 1 | H40: 1 | I40: 2 | J40: 2 | K40: 1 | L40: 0 | M40: 3 | N40: Sweden | O40: Denmark | S40: Madmatt13 | T40: 2 | V40: Ploppy_McPloppy | W40: 2.5
B41: Inforthepain | C41: Tank | D41: 0.5 | E41: 0.5 | F41: 2 | G41: 2 | H41: 0 | I41: 1 | J41: 1 | K41: 1 | L41: 1 | M41: 1 | N41: Sweden | O41: Denmark | S41: JohnnyD | T41: 2 | V41: RoterSternHochdah | W41: 2.5
B42: noraal | C42: zulu | D42: 1 | E42: 0 | F42: 3 | G42: 2 | H42: 2 | I42: 2 | J42: 2 | K42: 2 | L42: 2 | M42: 2 | N42: Hungary | O42: Norway | S42: Dionysian | T42: 2 | V42: Jokaero | W42: 2.5
B43: BlackOrc | C43: mynock | D43: 0 | E43: 1 | F43: 0 | G43: 3 | H43: 2 | I43: 1 | J43: 3 | K43: 0 | L43: 0 | M43: 1 | N43: Hungary | O43: Norway | S43: Bernuz | T43: 2 | V43: Lycos | W43: 2.5
B44: Wolio | C44: The_Ref | D44: 1 | E44: 0 | F44: 2 | G44: 1 | H44: 2 | I44: 2 | J44: 2 | K44: 2 | L44: 2 | M44: 2 | N44: Hungary | O44: Norway | S44: Mubo | T44: 2 | V44: Melisqus | W44: 2.5
B45: Alex05 | C45: Endalos | D45: 1 | E45: 0 | F45: 3 | G45: 1 | H45: 2 | I45: 1 | J45: 0 | K45: 1 | L45: 1 | M45: 1 | N45: Hungary | O45: Norway | S45: Harti | T45: 2 | V45: Bouzzy | W45: 2.5
B46: Itzla | C46: bothun | D46: 1 | E46: 0 | F46: 1 | G46: 0 | H46: 1 | I46: 2 | J46: 3 | K46: 3 | L46: 2 | M46: 0 | N46: Hungary | O46: Norway | S46: Juniooor7 | T46: 2 | V46: Matte8 | W46: 2.5
B47: cz | C47: GreatWhiteHope | D47: 0.5 | E47: 0.5 | F47: 1 | G47: 1 | H47: 3 | I47: 1 | J47: 0 | K47: 1 | L47: 1 | M47: 2 | N47: Hungary | O47: Norway | S47: JJ | T47: 2 | V47: zulu | W47: 2.5
B48: swifty | C48: straume | D48: 1 | E48: 0 | F48: 3 | G48: 2 | H48: 2 | I48: 3 | J48: 3 | K48: 2 | L48: 1 | M48: 3 | N48: Hungary | O48: Norway | S48: MacWitt | T48: 2 | V48: Niebling | W48: 2.5
B49: Favi | C49: FrankPedersen | D49: 1 | E49: 0 | F49: 2 | G49: 1 | H49: 1 | I49: 0 | J49: 2 | K49: 1 | L49: 2 | M49: 0 | N49: Hungary | O49: Norway | S49: andydavo | T49: 2 | V49: MacWitt | W49: 2.5
B50: Dionysian | C50: Malasnoticias | D50: 0 | E50: 1 | F50: 1 | G50: 2 | H50: 3 | I50: 2 | J50: 2 | K50: 2 | L50: 3 | M50: 0 | N50: Wales | O50: Spain | S50: Alex05 | T50: 2 | V50: Araznaroth | W50: 2.5
B51: andydavo | C51: Idroj | D51: 0 | E51: 1 | F51: 1 | G51: 2 | H51: 1 | I51: 1 | J51: 1 | K51: 1 | L51: 3 | M51: 3 | N51: Wales | O51: Spain | S51: Tripleskull | T51: 2 | V51: Itzla | W51: 2.5
B52: SFisher91 | C52: Dark Duke | D52: 0 | E52: 1 | F52: 1 | G52: 2 | H52: 0 | I52: 2 | J52: 3 | K52: 0 | L52: 0 | M52: 1 | N52: Wales | O52: Spain | S52: Wilzif | T52: 2 | V52: kfoged | W52: 2.5
B53: Ploppy_McPloppy | C53: Tactel | D53: 1 | E53: 0 | F53: 3 | G53: 1 | H53: 0 | I53: 1 | J53: 1 | K53: 1 | L53: 2 | M53: 3 | N53: Wales | O53: Spain | S53: Jokaero | T53: 2 | V53: sann0638 | W53: 2.5
B54: Northernknight | C54: Duke_Luthor_Von_Hawkfire | D54: 1 | E54: 0 | F54: 2 | G54: 1 | H54: 0 | I54: 3 | J54: 3 | K54: 1 | L54: 3 | M54: 2 | N54: Wales | O54: Spain | S54: SFisher91 | T54: 2 | V54: DonShula | W54: 2.5
B55: nonumber | C55: Barry | D55: 0.5 | E55: 0.5 | F55: 2 | G55: 2 | H55: 1 | I55: 2 | J55: 1 | K55: 3 | L55: 2 | M55: 0 | N55: Wales | O55: Spain | S55: Domingo | T55: 2 | V55: Harti | W55: 2.5
B56: 20Phoenix | C56: Joanet | D56: 1 | E56: 0 | F56: 3 | G56: 2 | H56: 2 | I56: 1 | J56: 1 | K56: 2 | L56: 3 | M56: 0 | N56: Wales | O56: Spain | S56: valkohukka | T56: 2 | V56: Driesfield | W56: 2.5
B57: MadeofWelsh | C57: Obeliz | D57: 1 | E57: 0 | F57: 2 | G57: 1 | H57: 1 | I57: 2 | J57: 1 | K57: 2 | L57: 2 | M57: 0 | N57: Wales | O57: Spain | S57: Geggster | T57: 1.5 | V57: JohnnyD | W57: 2.5
B58: Valen | C58: MacWitt | D58: 0.5 | E58: 0.5 | F58: 1 | G58: 1 | H58: 2 | I58: 2 | J58: 2 | K58: 3 | L58: 2 | M58: 2 | N58: Scotland | O58: Finland | S58: PurpleGoo | T58: 1.5 | V58: Skoberget | W58: 2.5
B59: Garrick | C59: valkohukka | D59: 0 | E59: 1 | F59: 0 | G59: 1 | H59: 3 | I59: 3 | J59: 2 | K59: 2 | L59: 1 | M59: 2 | N59: Scotland | O59: Finland | S59: Gros Nain | T59: 1.5 | V59: Idroj | W59: 2.5
B60: sann0638 | C60: Harza | D60: 1 | E60: 0 | F60: 2 | G60: 1 | H60: 2 | I60: 2 | J60: 3 | K60: 1 | L60: 1 | M60: 3 | N60: Scotland | O60: Finland | S60: The_Ref | T60: 1.5 | V60: Podfrey | W60: 2.5
B61: DonShula | C61: jopotzuki | D61: 1 | E61: 0 | F61: 1 | G61: 0 | H61: 2 | I61: 1 | J61: 2 | K61: 2 | L61: 2 | M61: 1 | N61: Scotland | O61: Finland | S61: Lycos | T61: 1.5 | V61: Liam | W61: 2.5
B62: HumptyTrump | C62: J-Ho | D62: 0.5 | E62: 0.5 | F62: 3 | G62: 3 | H62: 0 | I62: 1 | J62: 1 | K62: 0 | L62: 2 | M62: 1 | N62: Scotland | O62: Finland | S62: Garrick | T62: 1.5 | V62: Dirold | W62: 2
B63: Loki | C63: edheim | D63: 0 | E63: 1 | F63: 1 | G63: 3 | H63: 1 | I63: 1 | J63: 0 | K63: 3 | L63: 3 | M63: 3 | N63: Scotland | O63: Finland | S63: Dirold | T63: 1.5 | V63: Domingo | W63: 2
B64: Purdindas | C64: ratogre | D64: 1 | E64: 0 | F64: 3 | G64: 0 | H64: 3 | I64: 3 | J64: 2 | K64: 2 | L64: 0 | M64: 2 | N64: Scotland | O64: Finland | S64: Goss | T64: 1.5 | V64: Faccko | W64: 2
B65: JamesEs | C65: BeerBeer | D65: 0 | E65: 1 | F65: 1 | G65: 3 | H65: 3 | I65: 2 | J65: 3 | K65: 0 | L65: 2 | M65: 1 | N65: Scotland | O65: Finland | S65: Itzla | T65: 1.5 | V65: Goss | W65: 2
S66: Pellevin | T66: 1.5 | V66: Woete | W66: 2
S67: RoterSternHochdah | T67: 1.5 | V67: Geggster | W67: 2
S68: sann0638 | T68: 1.5 | V68: Northernknight | W68: 2
S69: DonShula | T69: 1.5 | V69: 20Phoenix | W69: 2
S70: DocMaxx | T70: 1.5 | V70: Wilzif | W70: 2
S71: Ploppy_McPloppy | T71: 1.5 | V71: Kaltenland | W71: 2
S72: Driesfield | T72: 1.5 | V72: JJ | W72: 2
S73: Duckwing | T73: 1.5 | V73: BlackOrc | W73: 2
S74: kfoged | T74: 1.5 | V74: PurpleGoo | W74: 2
S75: SpecialOne | T75: 1.5 | V75: Justicium | W75: 2
S76: Dragons | T76: 1.5 | V76: Jonny_Kanone | W76: 2
S77: Idroj | T77: 1.5 | V77: Duckwing | W77: 2
S78: Mufflo | T78: 1.5 | V78: Dionysian | W78: 2
S79: Dark Duke | T79: 1.5 | V79: Purrelito | W79: 2
S80: Melisqus | T80: 1.5 | V80: Gros Nain | W80: 2
S81: Faccko | T81: 1.5 | V81: andydavo | W81: 2
S82: Shawass | T82: 1.5 | V82: nonumber | W82: 2
S83: Macabeo | T83: 1.5 | V83: Joemanji | W83: 2
S84: Endalos | T84: 1 | V84: Dekra1979 | W84: 2
S85: Slimaq | T85: 1 | V85: Farina | W85: 2
S86: Tactel | T86: 1 | V86: SFisher91 | W86: 2
S87: BudWiser | T87: 1 | V87: Muadib | W87: 2
S88: Duke_Luthor_Von_Hawkfire | T88: 1 | V88: Purdindas | W88: 1.5
S89: HumptyTrump | T89: 1 | V89: swifty | W89: 1.5
S90: Northernknight | T90: 1 | V90: Malodoror | W90: 1.5
S91: Jaqra | T91: 1 | V91: Garrick | W91: 1.5
S92: Barry | T92: 1 | V92: Candlejack | W92: 1.5
S93: Candlejack | T93: 1 | V93: Gaunab | W93: 1.5
S94: Topper | T94: 1 | V94: HumptyTrump | W94: 1.5
S95: Matt le fou | T95: 1 | V95: The_Ref | W95: 1.5
S96: Purrelito | T96: 1 | V96: edheim | W96: 1.5
S97: Joanet | T97: 1 | V97: Tank | W97: 1.5
S98: Gaunab | T98: 1 | V98: Inforthepain | W98: 1.5
S99: Harza | T99: 1 | V99: J-Ho | W99: 1.5
S100: bothun | T100: 1 | V100: Barry | W100: 1.5
S101: jopotzuki | T101: 1 | V101: Shawass | W101: 1.5
S102: Woete | T102: 1 | V102: Slimaq | W102: 1.5
S103: MissSweden | T103: 1 | V103: GreatWhiteHope | W103: 1.5
S104: Farina | T104: 1 | V104: Leonek | W104: 1.5
S105: GreatWhiteHope | T105: 1 | V105: JimJimany | W105: 1.5
S106: straume | T106: 1 | V106: Mufflo | W106: 1.5
S107: Joemanji | T107: 1 | V107: Jaqra | W107: 1
S108: Malodoror | T108: 1 | V108: straume | W108: 1
S109: nonumber | T109: 1 | V109: Harza | W109: 1
S110: Kaltenland | T110: 1 | V110: BeerBeer | W110: 1
S111: J-Ho | T111: 1 | V111: cz | W111: 1
S112: Tank | T112: 1 | V112: Tactel | W112: 1
S113: Loki | T113: 1 | V113: MadeofWelsh | W113: 1
S114: JimJimany | T114: 1 | V114: Favi | W114: 1
S115: Inforthepain | T115: 1 | V115: BudWiser | W115: 1
S116: Leonek | T116: 0.5 | V116: MissSweden | W116: 1
S117: edheim | T117: 0.5 | V117: Joanet | W117: 1
S118: cz | T118: 0.5 | V118: Matt le fou | W118: 1
S119: FrankPedersen | T119: 0.5 | V119: bothun | W119: 1
S120: swifty | T120: 0.5 | V120: jopotzuki | W120: 1
S121: 20Phoenix | T121: 0.5 | V121: Topper | W121: 1
S122: Purdindas | T122: 0.5 | V122: Endalos | W122: 1
S123: JamesEs | T123: 0.5 | V123: Duke_Luthor_Von_Hawkfire | W123: 1
S124: Favi | T124: 0 | V124: Loki | W124: 1
S125: ratogre | T125: 0 | V125: JamesEs | W125: 0.5
S126: MadeofWelsh | T126: 0 | V126: FrankPedersen | W126: 0.5
S127: Phoenix11 | T127: 0 | V127: ratogre | W127: 0
S128: Obeliz | T128: 0 | V128: Phoenix11 | W128: 0
S129: BeerBeer | T129: 0 | V129: Obeliz | W129: 0

Sheet Round5
B1: Home Player | C1: Away Player | D1: Home Points | E1: Away Points | F1: Home TD | G1: Away TD | H1: Home Cas | I1: Away Cas | J1: Home Bonus 1 | K1: Away Bonus 1 | L1: Home Bonus 2 | M1: Away Bonus 2 | N1: Home Group | O1: Away Group | S1: Points Before Games | V1: Points After Games | Y1: Group Results | Z1: Group | AA1: Points | AC1: Group Points Before Games | AF1: Group Points Before Games
B2: Spartako | C2: Arioso | D2: =fctScore(F2,G2,H2,J2,L2) -> 1 | E2: =fctScore(G2,F2,I2,K2,M2) -> 0 | F2: 3 | G2: 2 | H2: 1 | I2: 2 | J2: 2 | K2: 0 | L2: 1 | M2: 2 | N2: Italy | O2: Germany | S2: Corwin | T2: 4.5 | V2: Strider84 | W2: 5.5 | Z2: Belgium | AA2: 7 | AC2: Italy | AD2: 23.5 | AF2: Italy | AG2: 30
B3: Beppe | C3: Prince | D3: =fctScore(F3,G3,H3,J3,L3) -> 0 | E3: =fctScore(G3,F3,I3,K3,M3) -> 1 | F3: 1 | G3: 3 | H3: 2 | I3: 1 | J3: 3 | K3: 2 | L3: 3 | M3: 2 | N3: Italy | O3: Germany | S3: brocCooli | T3: 4 | V3: Balder | W3: 5 | Z3: Denmark | AA3: 4.5 | AC3: Viking | AD3: 22 | AF3: Viking | AG3: 28
B4: Verrinho | C4: DocMaxx | D4: 1 | E4: 0 | F4: 1 | G4: 0 | H4: 1 | I4: 3 | J4: 2 | K4: 3 | L4: 2 | M4: 1 | N4: Italy | O4: Germany | S4: Strider84 | T4: 4 | V4: brocCooli | W4: 5 | Z4: England | AA4: 3.5 | AC4: Germany | AD4: 21 | AF4: Poland | AG4: 26
B5: Matte8 | C5: RoterSternHochdah | D5: 1 | E5: 0 | F5: 3 | G5: 2 | H5: 2 | I5: 3 | J5: 1 | K5: 1 | L5: 1 | M5: 2 | N5: Italy | O5: Germany | S5: Balder | T5: 4 | V5: Corwin | W5: 4.5 | Z5: Finland | AA5: 4.5 | AC5: France | AD5: 20.5 | AF5: Switzerland | AG5: 25
B6: Liam | C6: Jonny_Kanone | D6: 1 | E6: 0 | F6: 2 | G6: 1 | H6: 2 | I6: 1 | J6: 2 | K6: 3 | L6: 2 | M6: 2 | N6: Italy | O6: Germany | S6: sigu70 | T6: 4 | V6: Pellevin | W6: 4.5 | Z6: France | AA6: 3 | AC6: Poland | AD6: 20.5 | AF6: Belgium | AG6: 24.5
B7: Dirold | C7: Muadib | D7: 0.5 | E7: 0.5 | F7: 1 | G7: 1 | H7: 0 | I7: 1 | J7: 0 | K7: 1 | L7: 1 | M7: 1 | N7: Italy | O7: Germany | S7: Phifoe | T7: 4 | V7: Simon_ACP | W7: 4.5 | Z7: Germany | AA7: 2.5 | AC7: England | AD7: 20 | AF7: France | AG7: 23.5
B8: Kaltenland | C8: Candlejack | D8: 0 | E8: 1 | F8: 0 | G8: 2 | H8: 1 | I8: 0 | J8: 2 | K8: 1 | L8: 0 | M8: 2 | N8: Italy | O8: Germany | S8: mynock | T8: 3.5 | V8: Phifoe | W8: 4.5 | Z8: Hungary | AA8: 2 | AC8: Hungary | AD8: 19.5 | AF8: Germany | AG8: 23.5
B9: Farina | C9: Gaunab | D9: 1 | E9: 0 | F9: 3 | G9: 0 | H9: 2 | I9: 3 | J9: 1 | K9: 2 | L9: 1 | M9: 2 | N9: Italy | O9: Germany | S9: Pidpad | T9: 3.5 | V9: Verrinho | W9: 4 | Z9: Italy | AA9: 6.5 | AC9: Switzerland | AD9: 18.5 | AF9: England | AG9: 23.5
B10: Corwin | C10: Simon_ACP | D10: 0 | E10: 1 | F10: 2 | G10: 3 | H10: 0 | I10: 2 | J10: 3 | K10: 0 | L10: 1 | M10: 2 | N10: Viking | O10: France | S10: Simon_ACP | T10: 3.5 | V10: Mewash | W10: 4 | Z10: Norway | AA10: 4.5 | AC10: Sweden | AD10: 18.5 | AF10: Hungary | AG10: 21.5
B11: brocCooli | C11: BiBi | D11: 0.5 | E11: 0.5 | F11: 2 | G11: 2 | H11: 1 | I11: 2 | J11: 2 | K11: 1 | L11: 1 | M11: 2 | N11: Viking | O11: France | S11: BiBi | T11: 3.5 | V11: valkohukka | W11: 4 | Z11: Poland | AA11: 5.5 | AC11: Belgium | AD11: 17.5 | AF11: Denmark | AG11: 21.5
B12: Balder | C12: Bouzzy | D12: 1 | E12: 0 | F12: 2 | G12: 1 | H12: 1 | I12: 2 | J12: 2 | K12: 0 | L12: 1 | M12: 1 | N12: Viking | O12: France | S12: noraal | T12: 3.5 | V12: Madmatt13 | W12: 4 | Z12: Scotland | AA12: 3.5 | AC12: Denmark | AD12: 17 | AF12: Wales | AG12: 21.5
B13: Bernuz | C13: Harti | D13: 0 | E13: 1 | F13: 1 | G13: 3 | H13: 1 | I13: 2 | J13: 1 | K13: 1 | L13: 1 | M13: 2 | N13: Viking | O13: France | S13: Arioso | T13: 3.5 | V13: Spartako | W13: 4 | Z13: Spain | AA13: 5.5 | AC13: Wales | AD13: 17 | AF13: Sweden | AG13: 21
B14: Faccko | C14: Justicium | D14: 1 | E14: 0 | F14: 1 | G14: 0 | H14: 3 | I14: 0 | J14: 3 | K14: 2 | L14: 2 | M14: 3 | N14: Viking | O14: France | S14: gninocker | T14: 3.5 | V14: gninocker | W14: 4 | Z14: Sweden | AA14: 2.5 | AC14: Scotland | AD14: 14 | AF14: Spain | AG14: 19
B15: Duckwing | C15: Gros Nain | D15: 1 | E15: 0 | F15: 2 | G15: 0 | H15: 2 | I15: 2 | J15: 2 | K15: 2 | L15: 1 | M15: 2 | N15: Viking | O15: France | S15: Bernuz | T15: 3.5 | V15: noraal | W15: 4 | Z15: Switzerland | AA15: 6.5 | AC15: Spain | AD15: 13.5 | AF15: Scotland | AG15: 17.5
B16: Purrelito | C16: BudWiser | D16: 1 | E16: 0 | F16: 2 | G16: 0 | H16: 2 | I16: 3 | J16: 2 | K16: 2 | L16: 3 | M16: 2 | N16: Viking | O16: France | S16: Malasnoticias | T16: 3 | V16: Bernuz | W16: 4 | Z16: Viking | AA16: 6 | AC16: Norway | AD16: 13 | AF16: Norway | AG16: 17.5
B17: Mufflo | C17: Matt le fou | D17: 0.5 | E17: 0.5 | F17: 0 | G17: 0 | H17: 1 | I17: 1 | J17: 3 | K17: 2 | L17: 2 | M17: 1 | N17: Viking | O17: France | S17: Spartako | T17: 3 | V17: Prince | W17: 4 | Z17: Wales | AA17: 4.5 | AC17: Finland | AD17: 12 | AF17: Finland | AG17: 16.5
B18: Mewash | C18: Mubo | D18: 1 | E18: 0 | F18: 2 | G18: 1 | H18: 1 | I18: 0 | J18: 2 | K18: 1 | L18: 1 | M18: 1 | N18: Poland | O18: England | S18: Pellevin | T18: 3 | V18: Dragons | W18: 4
B19: Juniooor7 | C19: Lycos | D19: 0 | E19: 1 | F19: 0 | G19: 3 | H19: 3 | I19: 2 | J19: 2 | K19: 0 | L19: 3 | M19: 1 | N19: Poland | O19: England | S19: Mewash | T19: 3 | V19: Elrik | W19: 4
B20: Reszka | C20: Podfrey | D20: 0.5 | E20: 0.5 | F20: 1 | G20: 1 | H20: 1 | I20: 2 | J20: 1 | K20: 0 | L20: 3 | M20: 1 | N20: Poland | O20: England | S20: Wolio | T20: 3 | V20: SFisher91 | W20: 4
B21: Warrior1980 | C21: Geggster | D21: 1 | E21: 0 | F21: 3 | G21: 1 | H21: 2 | I21: 3 | J21: 1 | K21: 0 | L21: 1 | M21: 2 | N21: Poland | O21: England | S21: Elrik | T21: 3 | V21: BiBi | W21: 4
B22: Domingo | C22: Wilzif | D22: 0 | E22: 1 | F22: 2 | G22: 3 | H22: 1 | I22: 2 | J22: 1 | K22: 3 | L22: 1 | M22: 0 | N22: Poland | O22: England | S22: Juniooor7 | T22: 3 | V22: sigu70 | W22: 4
B23: Shawass | C23: PurpleGoo | D23: 0 | E23: 1 | F23: 0 | G23: 1 | H23: 1 | I23: 0 | J23: 2 | K23: 1 | L23: 2 | M23: 1 | N23: Poland | O23: England | S23: Beppe | T23: 3 | V23: Tripleskull | W23: 3.5
B24: Slimaq | C24: Joemanji | D24: 1 | E24: 0 | F24: 3 | G24: 1 | H24: 1 | I24: 2 | J24: 2 | K24: 2 | L24: 1 | M24: 3 | N24: Poland | O24: England | S24: Alex05 | T24: 3 | V24: Matte8 | W24: 3.5
B25: Leonek | C25: JimJimany | D25: 1 | E25: 0 | F25: 2 | G25: 1 | H25: 2 | I25: 1 | J25: 0 | K25: 1 | L25: 0 | M25: 2 | N25: Poland | O25: England | S25: Dragons | T25: 3 | V25: Duckwing | W25: 3.5
B26: noraal | C26: gninocker | D26: 0.5 | E26: 0.5 | F26: 1 | G26: 1 | H26: 0 | I26: 2 | J26: 2 | K26: 0 | L26: 1 | M26: 0 | N26: Hungary | O26: Belgium | S26: Prince | T26: 3 | V26: Arioso | W26: 3.5
B27: Wolio | C27: Araznaroth | D27: 0.5 | E27: 0.5 | F27: 3 | G27: 3 | H27: 1 | I27: 0 | J27: 2 | K27: 0 | L27: 2 | M27: 2 | N27: Hungary | O27: Belgium | S27: Verrinho | T27: 3 | V27: JohnnyD | W27: 3.5
B28: Alex05 | C28: Driesfield | D28: 0 | E28: 1 | F28: 0 | G28: 1 | H28: 0 | I28: 2 | J28: 1 | K28: 3 | L28: 1 | M28: 2 | N28: Hungary | O28: Belgium | S28: valkohukka | T28: 3 | V28: Driesfield | W28: 3.5
B29: Itzla | C29: Woete | D29: 0 | E29: 1 | F29: 2 | G29: 3 | H29: 1 | I29: 2 | J29: 1 | K29: 1 | L29: 0 | M29: 3 | N29: Hungary | O29: Belgium | S29: Reszka | T29: 3 | V29: Niebling | W29: 3.5
B30: BlackOrc | C30: JJ | D30: 0 | E30: 1 | F30: 0 | G30: 2 | H30: 3 | I30: 1 | J30: 1 | K30: 2 | L30: 1 | M30: 2 | N30: Hungary | O30: Belgium | S30: Tripleskull | T30: 3 | V30: mynock | W30: 3.5
B31: swifty | C31: Dekra1979 | D31: 0 | E31: 1 | F31: 1 | G31: 2 | H31: 1 | I31: 1 | J31: 1 | K31: 1 | L31: 3 | M31: 3 | N31: Hungary | O31: Belgium | S31: Madmatt13 | T31: 3 | V31: Harti | W31: 3.5
B32: cz | C32: Malodoror | D32: 0 | E32: 1 | F32: 1 | G32: 2 | H32: 1 | I32: 3 | J32: 2 | K32: 0 | L32: 0 | M32: 2 | N32: Hungary | O32: Belgium | S32: Warrior1980 | T32: 2.5 | V32: Warrior1980 | W32: 3.5
B33: Favi | C33: Phoenix11 | D33: 1 | E33: 0 | F33: 1 | G33: 0 | H33: 2 | I33: 0 | J33: 2 | K33: 2 | L33: 2 | M33: 0 | N33: Hungary | O33: Belgium | S33: Skuld | T33: 2.5 | V33: nonumber | W33: 3.5
B34: Strider84 | C34: Pidpad | D34: 1 | E34: 0 | F34: 1 | G34: 0 | H34: 2 | I34: 2 | J34: 1 | K34: 1 | L34: 3 | M34: 1 | N34: Switzerland | O34: Sweden | S34: Valen | T34: 2.5 | V34: Lycos | W34: 3.5
B35: sigu70 | C35: Pellevin | D35: 0 | E35: 1 | F35: 1 | G35: 3 | H35: 2 | I35: 1 | J35: 0 | K35: 1 | L35: 3 | M35: 0 | N35: Switzerland | O35: Sweden | S35: DocMaxx | T35: 2.5 | V35: Liam | W35: 3.5
B36: Phifoe | C36: Dragons | D36: 0.5 | E36: 0.5 | F36: 2 | G36: 2 | H36: 0 | I36: 3 | J36: 1 | K36: 1 | L36: 2 | M36: 2 | N36: Switzerland | O36: Sweden | S36: SpecialOne | T36: 2.5 | V36: Skoberget | W36: 3.5
B37: Elrik | C37: Skuld | D37: 1 | E37: 0 | F37: 3 | G37: 1 | H37: 0 | I37: 1 | J37: 2 | K37: 2 | L37: 2 | M37: 2 | N37: Switzerland | O37: Sweden | S37: Mubo | T37: 2.5 | V37: Idroj | W37: 3.5
B38: Madmatt13 | C38: Melisqus | D38: 1 | E38: 0 | F38: 3 | G38: 2 | H38: 0 | I38: 2 | J38: 3 | K38: 1 | L38: 3 | M38: 2 | N38: Switzerland | O38: Sweden | S38: Dark Duke | T38: 2.5 | V38: Faccko | W38: 3.5
B39: Macabeo | C39: JohnnyD | D39: 0.5 | E39: 0.5 | F39: 3 | G39: 3 | H39: 1 | I39: 2 | J39: 2 | K39: 2 | L39: 1 | M39: 1 | N39: Switzerland | O39: Sweden | S39: Macabeo | T39: 2.5 | V39: Purrelito | W39: 3.5
B40: Jokaero | C40: Skoberget | D40: 0.5 | E40: 0.5 | F40: 2 | G40: 2 | H40: 2 | I40: 1 | J40: 1 | K40: 2 | L40: 2 | M40: 2 | N40: Switzerland | O40: Sweden | S40: Ploppy_McPloppy | T40: 2.5 | V40: kfoged | W40: 3.5
B41: Goss | C41: Inforthepain | D41: 1 | E41: 0 | F41: 3 | G41: 1 | H41: 3 | I41: 3 | J41: 2 | K41: 2 | L41: 2 | M41: 1 | N41: Switzerland | O41: Sweden | S41: RoterSternHochdah | T41: 2.5 | V41: Malasnoticias | W41: 3.5
B42: Tripleskull | C42: Ploppy_McPloppy | D42: 0.5 | E42: 0.5 | F42: 2 | G42: 2 | H42: 2 | I42: 1 | J42: 2 | K42: 3 | L42: 2 | M42: 1 | N42: Denmark | O42: Wales | S42: Jokaero | T42: 2.5 | V42: Reszka | W42: 3.5
B43: SpecialOne | C43: Northernknight | D43: 1 | E43: 0 | F43: 3 | G43: 0 | H43: 1 | I43: 2 | J43: 1 | K43: 2 | L43: 3 | M43: 1 | N43: Denmark | O43: Wales | S43: Lycos | T43: 2.5 | V43: Pidpad | W43: 3.5
B44: Niebling | C44: 20Phoenix | D44: 1 | E44: 0 | F44: 3 | G44: 1 | H44: 2 | I44: 2 | J44: 2 | K44: 3 | L44: 2 | M44: 1 | N44: Denmark | O44: Wales | S44: Melisqus | T44: 2.5 | V44: zulu | W44: 3.5
B45: kfoged | C45: Dionysian | D45: 1 | E45: 0 | F45: 3 | G45: 1 | H45: 2 | I45: 1 | J45: 1 | K45: 2 | L45: 1 | M45: 1 | N45: Denmark | O45: Wales | S45: Bouzzy | T45: 2.5 | V45: SpecialOne | W45: 3.5
B46: Tank | C46: andydavo | D46: 0.5 | E46: 0.5 | F46: 1 | G46: 1 | H46: 0 | I46: 1 | J46: 1 | K46: 0 | L46: 0 | M46: 2 | N46: Denmark | O46: Wales | S46: Matte8 | T46: 2.5 | V46: Wolio | W46: 3.5
B47: Jaqra | C47: nonumber | D47: 0 | E47: 1 | F47: 0 | G47: 2 | H47: 0 | I47: 0 | J47: 3 | K47: 1 | L47: 1 | M47: 2 | N47: Denmark | O47: Wales | S47: zulu | T47: 2.5 | V47: Beppe | W47: 3
B48: MissSweden | C48: SFisher91 | D48: 0 | E48: 1 | F48: 2 | G48: 3 | H48: 2 | I48: 2 | J48: 3 | K48: 0 | L48: 1 | M48: 2 | N48: Denmark | O48: Wales | S48: Niebling | T48: 2.5 | V48: Araznaroth | W48: 3
B49: Topper | C49: MadeofWelsh | D49: 0 | E49: 1 | F49: 0 | G49: 2 | H49: 1 | I49: 3 | J49: 1 | K49: 2 | L49: 1 | M49: 1 | N49: Denmark | O49: Wales | S49: MacWitt | T49: 2.5 | V49: PurpleGoo | W49: 3
B50: Valen | C50: Malasnoticias | D50: 0.5 | E50: 0.5 | F50: 1 | G50: 1 | H50: 3 | I50: 1 | J50: 1 | K50: 2 | L50: 2 | M50: 1 | N50: Scotland | O50: Spain | S50: Araznaroth | T50: 2.5 | V50: Woete | W50: 3
B51: sann0638 | C51: Dark Duke | D51: 0.5 | E51: 0.5 | F51: 2 | G51: 2 | H51: 1 | I51: 1 | J51: 2 | K51: 2 | L51: 3 | M51: 2 | N51: Scotland | O51: Spain | S51: Itzla | T51: 2.5 | V51: Farina | W51: 3
B52: DonShula | C52: Idroj | D52: 0 | E52: 1 | F52: 1 | G52: 3 | H52: 2 | I52: 2 | J52: 0 | K52: 1 | L52: 1 | M52: 2 | N52: Scotland | O52: Spain | S52: kfoged | T52: 2.5 | V52: Alex05 | W52: 3
B53: Purdindas | C53: Barry | D53: 1 | E53: 0 | F53: 2 | G53: 1 | H53: 0 | I53: 2 | J53: 1 | K53: 2 | L53: 1 | M53: 0 | N53: Scotland | O53: Spain | S53: sann0638 | T53: 2.5 | V53: Podfrey | W53: 3
B54: Garrick | C54: Tactel | D54: 0 | E54: 1 | F54: 2 | G54: 3 | H54: 3 | I54: 1 | J54: 1 | K54: 1 | L54: 1 | M54: 2 | N54: Scotland | O54: Spain | S54: DonShula | T54: 2.5 | V54: Ploppy_McPloppy | W54: 3
B55: HumptyTrump | C55: Joanet | D55: 1 | E55: 0 | F55: 3 | G55: 2 | H55: 3 | I55: 0 | J55: 3 | K55: 2 | L55: 2 | M55: 3 | N55: Scotland | O55: Spain | S55: Harti | T55: 2.5 | V55: Dark Duke | W55: 3
B56: Loki | C56: Duke_Luthor_Von_Hawkfire | D56: 0.5 | E56: 0.5 | F56: 1 | G56: 1 | H56: 1 | I56: 0 | J56: 1 | K56: 1 | L56: 0 | M56: 3 | N56: Scotland | O56: Spain | S56: Driesfield | T56: 2.5 | V56: Skuld | W56: 3
B57: JamesEs | C57: Obeliz | D57: 0 | E57: 1 | F57: 2 | G57: 3 | H57: 3 | I57: 2 | J57: 2 | K57: 2 | L57: 3 | M57: 2 | N57: Scotland | O57: Spain | S57: JohnnyD | T57: 2.5 | V57: Dekra1979 | W57: 3
B58: mynock | C58: valkohukka | D58: 0 | E58: 1 | F58: 1 | G58: 2 | H58: 2 | I58: 2 | J58: 0 | K58: 2 | L58: 1 | M58: 1 | N58: Norway | O58: Finland | S58: Skoberget | T58: 2.5 | V58: Wilzif | W58: 3
B59: zulu | C59: MacWitt | D59: 1 | E59: 0 | F59: 2 | G59: 1 | H59: 1 | I59: 1 | J59: 1 | K59: 1 | L59: 1 | M59: 0 | N59: Norway | O59: Finland | S59: Idroj | T59: 2.5 | V59: sann0638 | W59: 3
B60: The_Ref | C60: edheim | D60: 0 | E60: 1 | F60: 0 | G60: 2 | H60: 3 | I60: 1 | J60: 1 | K60: 0 | L60: 2 | M60: 2 | N60: Norway | O60: Finland | S60: Podfrey | T60: 2.5 | V60: Valen | W60: 3
B61: GreatWhiteHope | C61: J-Ho | D61: 1 | E61: 0 | F61: 3 | G61: 2 | H61: 2 | I61: 2 | J61: 3 | K61: 3 | L61: 3 | M61: 3 | N61: Norway | O61: Finland | S61: Liam | T61: 2.5 | V61: Jokaero | W61: 3
B62: straume | C62: Harza | D62: 0.5 | E62: 0.5 | F62: 1 | G62: 1 | H62: 0 | I62: 1 | J62: 2 | K62: 3 | L62: 2 | M62: 0 | N62: Norway | O62: Finland | S62: Dirold | T62: 2 | V62: Juniooor7 | W62: 3
B63: bothun | C63: BeerBeer | D63: 0.5 | E63: 0.5 | F63: 3 | G63: 3 | H63: 1 | I63: 2 | J63: 3 | K63: 2 | L63: 1 | M63: 2 | N63: Norway | O63: Finland | S63: Domingo | T63: 2 | V63: Macabeo | W63: 3
B64: Endalos | C64: jopotzuki | D64: 1 | E64: 0 | F64: 3 | G64: 2 | H64: 1 | I64: 2 | J64: 0 | K64: 2 | L64: 2 | M64: 2 | N64: Norway | O64: Finland | S64: Faccko | T64: 2 | V64: JJ | W64: 3
B65: FrankPedersen | C65: ratogre | D65: 0 | E65: 1 | F65: 0 | G65: 2 | H65: 2 | I65: 3 | J65: 2 | K65: 2 | L65: 2 | M65: 1 | N65: Norway | O65: Finland | S65: Goss | T65: 2 | V65: Goss | W65: 3
S66: Woete | T66: 2 | V66: Candlejack | W66: 2.5
S67: Geggster | T67: 2 | V67: Dionysian | W67: 2.5
S68: Northernknight | T68: 2 | V68: MacWitt | W68: 2.5
S69: 20Phoenix | T69: 2 | V69: Itzla | W69: 2.5
S70: Wilzif | T70: 2 | V70: Leonek | W70: 2.5
S71: Kaltenland | T71: 2 | V71: Muadib | W71: 2.5
S72: JJ | T72: 2 | V72: GreatWhiteHope | W72: 2.5
S73: BlackOrc | T73: 2 | V73: DocMaxx | W73: 2.5
S74: PurpleGoo | T74: 2 | V74: Malodoror | W74: 2.5
S75: Justicium | T75: 2 | V75: Purdindas | W75: 2.5
S76: Jonny_Kanone | T76: 2 | V76: andydavo | W76: 2.5
S77: Duckwing | T77: 2 | V77: RoterSternHochdah | W77: 2.5
S78: Dionysian | T78: 2 | V78: Northernknight | W78: 2.5
S79: Purrelito | T79: 2 | V79: Mubo | W79: 2.5
S80: Gros Nain | T80: 2 | V80: DonShula | W80: 2.5
S81: andydavo | T81: 2 | V81: Bouzzy | W81: 2.5
S82: nonumber | T82: 2 | V82: Mufflo | W82: 2.5
S83: Joemanji | T83: 2 | V83: Dirold | W83: 2.5
S84: Dekra1979 | T84: 2 | V84: Melisqus | W84: 2.5
S85: Farina | T85: 2 | V85: edheim | W85: 2.5
S86: SFisher91 | T86: 2 | V86: Slimaq | W86: 2.5
S87: Muadib | T87: 2 | V87: 20Phoenix | W87: 2.5
S88: Purdindas | T88: 1.5 | V88: HumptyTrump | W88: 2.5
S89: swifty | T89: 1.5 | V89: Joemanji | W89: 2
S90: Malodoror | T90: 1.5 | V90: Domingo | W90: 2
S91: Garrick | T91: 1.5 | V91: Endalos | W91: 2
S92: Candlejack | T92: 1.5 | V92: Tank | W92: 2
S93: Gaunab | T93: 1.5 | V93: Gros Nain | W93: 2
S94: HumptyTrump | T94: 1.5 | V94: BlackOrc | W94: 2
S95: The_Ref | T95: 1.5 | V95: Tactel | W95: 2
S96: edheim | T96: 1.5 | V96: Favi | W96: 2
S97: Tank | T97: 1.5 | V97: Justicium | W97: 2
S98: Inforthepain | T98: 1.5 | V98: Jonny_Kanone | W98: 2
S99: J-Ho | T99: 1.5 | V99: Geggster | W99: 2
S100: Barry | T100: 1.5 | V100: Kaltenland | W100: 2
S101: Shawass | T101: 1.5 | V101: MadeofWelsh | W101: 2
S102: Slimaq | T102: 1.5 | V102: Loki | W102: 1.5
S103: GreatWhiteHope | T103: 1.5 | V103: Harza | W103: 1.5
S104: Leonek | T104: 1.5 | V104: bothun | W104: 1.5
S105: JimJimany | T105: 1.5 | V105: swifty | W105: 1.5
S106: Mufflo | T106: 1.5 | V106: Garrick | W106: 1.5
S107: Jaqra | T107: 1 | V107: J-Ho | W107: 1.5
S108: straume | T108: 1 | V108: The_Ref | W108: 1.5
S109: Harza | T109: 1 | V109: Gaunab | W109: 1.5
S110: BeerBeer | T110: 1 | V110: Inforthepain | W110: 1.5
S111: cz | T111: 1 | V111: BeerBeer | W111: 1.5
S112: Tactel | T112: 1 | V112: JimJimany | W112: 1.5
S113: MadeofWelsh | T113: 1 | V113: Barry | W113: 1.5
S114: Favi | T114: 1 | V114: Duke_Luthor_Von_Hawkfire | W114: 1.5
S115: BudWiser | T115: 1 | V115: Shawass | W115: 1.5
S116: MissSweden | T116: 1 | V116: Matt le fou | W116: 1.5
S117: Joanet | T117: 1 | V117: straume | W117: 1.5
S118: Matt le fou | T118: 1 | V118: Obeliz | W118: 1
S119: bothun | T119: 1 | V119: MissSweden | W119: 1
S120: jopotzuki | T120: 1 | V120: ratogre | W120: 1
S121: Topper | T121: 1 | V121: jopotzuki | W121: 1
S122: Endalos | T122: 1 | V122: Jaqra | W122: 1
S123: Duke_Luthor_Von_Hawkfire | T123: 1 | V123: Joanet | W123: 1
S124: Loki | T124: 1 | V124: BudWiser | W124: 1
S125: JamesEs | T125: 0.5 | V125: cz | W125: 1
S126: FrankPedersen | T126: 0.5 | V126: Topper | W126: 1
S127: ratogre | T127: 0 | V127: JamesEs | W127: 0.5
S128: Phoenix11 | T128: 0 | V128: FrankPedersen | W128: 0.5
S129: Obeliz | T129: 0 | V129: Phoenix11 | W129: 0

Sheet Round6
B1: Home Player | C1: Away Player | D1: Home Points | E1: Away Points | F1: Home TD | G1: Away TD | H1: Home Cas | I1: Away Cas | J1: Home Bonus 1 | K1: Away Bonus 1 | L1: Home Bonus 2 | M1: Away Bonus 2 | N1: Home Group | O1: Away Group | S1: Points Before Games | V1: Points After Games | Y1: Group Results | Z1: Group | AA1: Points | AC1: Group Points Before Games | AF1: Group Points Before Games
B2: Verrinho | C2: Mewash | D2: =fctScore(F2,G2,H2,J2,L2) -> 0 | E2: =fctScore(G2,F2,I2,K2,M2) -> 1 | F2: 1 | G2: 2 | H2: 2 | I2: 1 | J2: 2 | K2: 1 | L2: 3 | M2: 0 | N2: Italy | O2: Poland | S2: Strider84 | T2: 5.5 | V2: Strider84 | W2: 6.5 | Z2: Belgium | AA2: 5.5 | AC2: Italy | AD2: 30 | AF2: Italy | AG2: 35.5
B3: Spartako | C3: Warrior1980 | D3: =fctScore(F3,G3,H3,J3,L3) -> 0 | E3: =fctScore(G3,F3,I3,K3,M3) -> 1 | F3: 1 | G3: 2 | H3: 1 | I3: 2 | J3: 1 | K3: 0 | L3: 3 | M3: 3 | N3: Italy | O3: Poland | S3: Balder | T3: 5 | V3: Phifoe | W3: 6 | Z3: Denmark | AA3: 3.5 | AC3: Viking | AD3: 28 | AF3: Switzerland | AG3: 31.5
B4: Matte8 | C4: Reszka | D4: 0.5 | E4: 0.5 | F4: 1 | G4: 1 | H4: 1 | I4: 2 | J4: 2 | K4: 3 | L4: 2 | M4: 0 | N4: Italy | O4: Poland | S4: brocCooli | T4: 5 | V4: Simon_ACP | W4: 5.5 | Z4: England | AA4: 1.5 | AC4: Poland | AD4: 26 | AF4: Viking | AG4: 30.5
B5: Liam | C5: Juniooor7 | D5: 1 | E5: 0 | F5: 2 | G5: 1 | H5: 1 | I5: 1 | J5: 0 | K5: 0 | L5: 1 | M5: 1 | N5: Italy | O5: Poland | S5: Corwin | T5: 4.5 | V5: Madmatt13 | W5: 5.5 | Z5: Finland | AA5: 7.5 | AC5: Switzerland | AD5: 25 | AF5: Belgium | AG5: 30
B6: Beppe | C6: Leonek | D6: 0.5 | E6: 0.5 | F6: 1 | G6: 1 | H6: 3 | I6: 2 | J6: 2 | K6: 1 | L6: 2 | M6: 3 | N6: Italy | O6: Poland | S6: Pellevin | T6: 4.5 | V6: Balder | W6: 5.5 | Z6: France | AA6: 4.5 | AC6: Belgium | AD6: 24.5 | AF6: Poland | AG6: 29.5
B7: Farina | C7: Slimaq | D7: 0.5 | E7: 0.5 | F7: 1 | G7: 1 | H7: 1 | I7: 1 | J7: 3 | K7: 0 | L7: 2 | M7: 2 | N7: Italy | O7: Poland | S7: Simon_ACP | T7: 4.5 | V7: brocCooli | W7: 5 | Z7: Germany | AA7: 5.5 | AC7: France | AD7: 23.5 | AF7: Germany | AG7: 29
B8: Dirold | C8: Domingo | D8: 1 | E8: 0 | F8: 2 | G8: 1 | H8: 1 | I8: 2 | J8: 1 | K8: 2 | L8: 2 | M8: 2 | N8: Italy | O8: Poland | S8: Phifoe | T8: 4.5 | V8: Dragons | W8: 5 | Z8: Hungary | AA8: 3.5 | AC8: Germany | AD8: 23.5 | AF8: France | AG8: 28
B9: Kaltenland | C9: Shawass | D9: 1 | E9: 0 | F9: 2 | G9: 1 | H9: 0 | I9: 1 | J9: 2 | K9: 2 | L9: 3 | M9: 2 | N9: Italy | O9: Poland | S9: Verrinho | T9: 4 | V9: Pellevin | W9: 5 | Z9: Italy | AA9: 5.5 | AC9: England | AD9: 23.5 | AF9: Wales | AG9: 26
B10: Balder | C10: Strider84 | D10: 0 | E10: 1 | F10: 0 | G10: 1 | H10: 2 | I10: 2 | J10: 3 | K10: 1 | L10: 1 | M10: 1 | N10: Viking | O10: Switzerland | S10: Mewash | T10: 4 | V10: Mewash | W10: 5 | Z10: Norway | AA10: 4.5 | AC10: Hungary | AD10: 21.5 | AF10: Sweden | AG10: 25.5
B11: brocCooli | C11: Phifoe | D11: 0 | E11: 1 | F11: 0 | G11: 1 | H11: 2 | I11: 2 | J11: 1 | K11: 2 | L11: 2 | M11: 2 | N11: Viking | O11: Switzerland | S11: valkohukka | T11: 4 | V11: Elrik | W11: 5 | Z11: Poland | AA11: 3.5 | AC11: Denmark | AD11: 21.5 | AF11: Hungary | AG11: 25
B12: Corwin | C12: Madmatt13 | D12: 0 | E12: 1 | F12: 1 | G12: 2 | H12: 0 | I12: 2 | J12: 2 | K12: 1 | L12: 2 | M12: 0 | N12: Viking | O12: Switzerland | S12: Madmatt13 | T12: 4 | V12: Prince | W12: 5 | Z12: Scotland | AA12: 5.5 | AC12: Wales | AD12: 21.5 | AF12: Denmark | AG12: 25
B13: Bernuz | C13: Elrik | D13: 0.5 | E13: 0.5 | F13: 0 | G13: 0 | H13: 0 | I13: 1 | J13: 2 | K13: 2 | L13: 2 | M13: 2 | N13: Viking | O13: Switzerland | S13: Spartako | T13: 4 | V13: Corwin | W13: 5 | Z13: Spain | AA13: 3.5 | AC13: Sweden | AD13: 21 | AF13: England | AG13: 25
B14: Duckwing | C14: sigu70 | D14: 1 | E14: 0 | F14: 3 | G14: 2 | H14: 1 | I14: 2 | J14: 2 | K14: 3 | L14: 1 | M14: 2 | N14: Viking | O14: Switzerland | S14: gninocker | T14: 4 | V14: Liam | W14: 4.5 | Z14: Sweden | AA14: 4.5 | AC14: Spain | AD14: 19 | AF14: Finland | AG14: 24
B15: Faccko | C15: Jokaero | D15: 0 | E15: 1 | F15: 0 | G15: 2 | H15: 1 | I15: 0 | J15: 1 | K15: 2 | L15: 2 | M15: 3 | N15: Viking | O15: Switzerland | S15: noraal | T15: 4 | V15: gninocker | W15: 4.5 | Z15: Switzerland | AA15: 6.5 | AC15: Scotland | AD15: 17.5 | AF15: Scotland | AG15: 23
B16: Purrelito | C16: Macabeo | D16: 0.5 | E16: 0.5 | F16: 3 | G16: 3 | H16: 1 | I16: 1 | J16: 2 | K16: 0 | L16: 0 | M16: 2 | N16: Viking | O16: Switzerland | S16: Bernuz | T16: 4 | V16: nonumber | W16: 4.5 | Z16: Viking | AA16: 2.5 | AC16: Norway | AD16: 17.5 | AF16: Spain | AG16: 22.5
B17: Mufflo | C17: Goss | D17: 0.5 | E17: 0.5 | F17: 2 | G17: 2 | H17: 3 | I17: 2 | J17: 3 | K17: 0 | L17: 2 | M17: 3 | N17: Viking | O17: Switzerland | S17: Prince | T17: 4 | V17: Warrior1980 | W17: 4.5 | Z17: Wales | AA17: 4.5 | AC17: Finland | AD17: 16.5 | AF17: Norway | AG17: 22
B18: SFisher91 | C18: Simon_ACP | D18: 0 | E18: 1 | F18: 1 | G18: 2 | H18: 3 | I18: 2 | J18: 2 | K18: 0 | L18: 1 | M18: 2 | N18: Wales | O18: France | S18: Dragons | T18: 4 | V18: sigu70 | W18: 4.5
B19: nonumber | C19: BiBi | D19: 1 | E19: 0 | F19: 3 | G19: 1 | H19: 2 | I19: 1 | J19: 0 | K19: 2 | L19: 0 | M19: 1 | N19: Wales | O19: France | S19: Elrik | T19: 4 | V19: Jokaero | W19: 4.5
B20: Ploppy_McPloppy | C20: Harti | D20: 0.5 | E20: 0.5 | F20: 2 | G20: 2 | H20: 2 | I20: 1 | J20: 2 | K20: 1 | L20: 1 | M20: 1 | N20: Wales | O20: France | S20: SFisher91 | T20: 4 | V20: kfoged | W20: 4.5
B21: Dionysian | C21: Bouzzy | D21: 0 | E21: 1 | F21: 1 | G21: 2 | H21: 1 | I21: 2 | J21: 0 | K21: 2 | L21: 1 | M21: 3 | N21: Wales | O21: France | S21: BiBi | T21: 4 | V21: valkohukka | W21: 4.5
B22: andydavo | C22: Gros Nain | D22: 1 | E22: 0 | F22: 1 | G22: 0 | H22: 3 | I22: 2 | J22: 2 | K22: 3 | L22: 3 | M22: 1 | N22: Wales | O22: France | S22: sigu70 | T22: 4 | V22: Wolio | W22: 4.5
B23: Northernknight | C23: Justicium | D23: 0 | E23: 1 | F23: 2 | G23: 3 | H23: 2 | I23: 1 | J23: 1 | K23: 0 | L23: 0 | M23: 0 | N23: Wales | O23: France | S23: Tripleskull | T23: 3.5 | V23: Duckwing | W23: 4.5
B24: 20Phoenix | C24: Matt le fou | D24: 1 | E24: 0 | F24: 3 | G24: 1 | H24: 2 | I24: 1 | J24: 2 | K24: 1 | L24: 2 | M24: 0 | N24: Wales | O24: France | S24: Matte8 | T24: 3.5 | V24: Bernuz | W24: 4.5
B25: MadeofWelsh | C25: BudWiser | D25: 0.5 | E25: 0.5 | F25: 1 | G25: 1 | H25: 0 | I25: 3 | J25: 1 | K25: 1 | L25: 2 | M25: 1 | N25: Wales | O25: France | S25: Duckwing | T25: 3.5 | V25: Tripleskull | W25: 4.5
B26: Prince | C26: noraal | D26: 1 | E26: 0 | F26: 3 | G26: 0 | H26: 0 | I26: 2 | J26: 0 | K26: 2 | L26: 0 | M26: 3 | N26: Germany | O26: Hungary | S26: Arioso | T26: 3.5 | V26: Skoberget | W26: 4
B27: Arioso | C27: Wolio | D27: 0 | E27: 1 | F27: 0 | G27: 1 | H27: 1 | I27: 1 | J27: 0 | K27: 1 | L27: 3 | M27: 0 | N27: Germany | O27: Hungary | S27: JohnnyD | T27: 3.5 | V27: Reszka | W27: 4
B28: Candlejack | C28: Alex05 | D28: 0 | E28: 1 | F28: 0 | G28: 3 | H28: 1 | I28: 0 | J28: 3 | K28: 2 | L28: 0 | M28: 2 | N28: Germany | O28: Hungary | S28: Driesfield | T28: 3.5 | V28: Malasnoticias | W28: 4
B29: Muadib | C29: Itzla | D29: 0 | E29: 1 | F29: 0 | G29: 2 | H29: 3 | I29: 2 | J29: 2 | K29: 1 | L29: 2 | M29: 2 | N29: Germany | O29: Hungary | S29: Niebling | T29: 3.5 | V29: Lycos | W29: 4
B30: DocMaxx | C30: BlackOrc | D30: 1 | E30: 0 | F30: 3 | G30: 1 | H30: 2 | I30: 2 | J30: 1 | K30: 1 | L30: 3 | M30: 2 | N30: Germany | O30: Hungary | S30: mynock | T30: 3.5 | V30: BiBi | W30: 4
B31: RoterSternHochdah | C31: Favi | D31: 1 | E31: 0 | F31: 1 | G31: 0 | H31: 0 | I31: 1 | J31: 1 | K31: 3 | L31: 2 | M31: 2 | N31: Germany | O31: Hungary | S31: Harti | T31: 3.5 | V31: JohnnyD | W31: 4
B32: Jonny_Kanone | C32: swifty | D32: 0.5 | E32: 0.5 | F32: 2 | G32: 2 | H32: 2 | I32: 1 | J32: 0 | K32: 3 | L32: 2 | M32: 2 | N32: Germany | O32: Hungary | S32: Warrior1980 | T32: 3.5 | V32: Idroj | W32: 4
B33: Gaunab | C33: cz | D33: 1 | E33: 0 | F33: 2 | G33: 1 | H33: 1 | I33: 3 | J33: 2 | K33: 1 | L33: 2 | M33: 0 | N33: Germany | O33: Hungary | S33: nonumber | T33: 3.5 | V33: Ploppy_McPloppy | W33: 4
B34: Idroj | C34: gninocker | D34: 0.5 | E34: 0.5 | F34: 1 | G34: 1 | H34: 3 | I34: 0 | J34: 2 | K34: 2 | L34: 2 | M34: 2 | N34: Spain | O34: Belgium | S34: Lycos | T34: 3.5 | V34: Woete | W34: 4
B35: Malasnoticias | C35: Driesfield | D35: 0.5 | E35: 0.5 | F35: 0 | G35: 0 | H35: 1 | I35: 0 | J35: 2 | K35: 3 | L35: 1 | M35: 1 | N35: Spain | O35: Belgium | S35: Liam | T35: 3.5 | V35: Valen | W35: 4
B36: Dark Duke | C36: Araznaroth | D36: 0.5 | E36: 0.5 | F36: 1 | G36: 1 | H36: 3 | I36: 1 | J36: 1 | K36: 3 | L36: 3 | M36: 2 | N36: Spain | O36: Belgium | S36: Skoberget | T36: 3.5 | V36: noraal | W36: 4
B37: Tactel | C37: Woete | D37: 0 | E37: 1 | F37: 0 | G37: 1 | H37: 2 | I37: 2 | J37: 1 | K37: 1 | L37: 3 | M37: 2 | N37: Spain | O37: Belgium | S37: Idroj | T37: 3.5 | V37: mynock | W37: 4
B38: Barry | C38: Dekra1979 | D38: 0.5 | E38: 0.5 | F38: 0 | G38: 0 | H38: 0 | I38: 1 | J38: 2 | K38: 2 | L38: 1 | M38: 1 | N38: Spain | O38: Belgium | S38: Faccko | T38: 3.5 | V38: Alex05 | W38: 4
B39: Duke_Luthor_Von_Hawkfire | C39: JJ | D39: 0.5 | E39: 0.5 | F39: 1 | G39: 1 | H39: 1 | I39: 0 | J39: 1 | K39: 1 | L39: 0 | M39: 3 | N39: Spain | O39: Belgium | S39: Purrelito | T39: 3.5 | V39: Faccko | W39: 4
B40: Obeliz | C40: Malodoror | D40: 1 | E40: 0 | F40: 3 | G40: 2 | H40: 1 | I40: 2 | J40: 0 | K40: 3 | L40: 2 | M40: 3 | N40: Spain | O40: Belgium | S40: kfoged | T40: 3.5 | V40: Spartako | W40: 4
B41: Joanet | C41: Phoenix11 | D41: 0 | E41: 1 | F41: 1 | G41: 3 | H41: 1 | I41: 3 | J41: 3 | K41: 2 | L41: 1 | M41: 2 | N41: Spain | O41: Belgium | S41: Malasnoticias | T41: 3.5 | V41: Driesfield | W41: 4
B42: valkohukka | C42: Lycos | D42: 0.5 | E42: 0.5 | F42: 2 | G42: 2 | H42: 0 | I42: 3 | J42: 2 | K42: 3 | L42: 0 | M42: 1 | N42: Finland | O42: England | S42: Reszka | T42: 3.5 | V42: Macabeo | W42: 4
B43: MacWitt | C43: PurpleGoo | D43: 1 | E43: 0 | F43: 3 | G43: 0 | H43: 1 | I43: 0 | J43: 0 | K43: 3 | L43: 1 | M43: 2 | N43: Finland | O43: England | S43: Pidpad | T43: 3.5 | V43: Purrelito | W43: 4
B44: edheim | C44: Podfrey | D44: 0.5 | E44: 0.5 | F44: 1 | G44: 1 | H44: 0 | I44: 1 | J44: 2 | K44: 3 | L44: 1 | M44: 0 | N44: Finland | O44: England | S44: zulu | T44: 3.5 | V44: Skuld | W44: 4
B45: Harza | C45: Wilzif | D45: 1 | E45: 0 | F45: 3 | G45: 2 | H45: 1 | I45: 2 | J45: 3 | K45: 1 | L45: 0 | M45: 2 | N45: Finland | O45: England | S45: SpecialOne | T45: 3.5 | V45: SFisher91 | W45: 4
B46: J-Ho | C46: Mubo | D46: 1 | E46: 0 | F46: 2 | G46: 0 | H46: 1 | I46: 2 | J46: 0 | K46: 1 | L46: 1 | M46: 2 | N46: Finland | O46: England | S46: Wolio | T46: 3.5 | V46: Matte8 | W46: 4
B47: BeerBeer | C47: Joemanji | D47: 1 | E47: 0 | F47: 3 | G47: 2 | H47: 2 | I47: 1 | J47: 2 | K47: 2 | L47: 0 | M47: 3 | N47: Finland | O47: England | S47: Beppe | T47: 3 | V47: Harti | W47: 4
B48: ratogre | C48: Geggster | D48: 1 | E48: 0 | F48: 1 | G48: 0 | H48: 1 | I48: 3 | J48: 2 | K48: 1 | L48: 2 | M48: 3 | N48: Finland | O48: England | S48: Araznaroth | T48: 3 | V48: Goss | W48: 4
B49: jopotzuki | C49: JimJimany | D49: 0.5 | E49: 0.5 | F49: 1 | G49: 1 | H49: 1 | I49: 0 | J49: 1 | K49: 1 | L49: 2 | M49: 3 | N49: Finland | O49: England | S49: PurpleGoo | T49: 3 | V49: Verrinho | W49: 4
B50: sann0638 | C50: Tripleskull | D50: 0 | E50: 1 | F50: 1 | G50: 3 | H50: 1 | I50: 2 | J50: 1 | K50: 1 | L50: 3 | M50: 3 | N50: Scotland | O50: Denmark | S50: Woete | T50: 3 | V50: Araznaroth | W50: 3.5
B51: Valen | C51: Niebling | D51: 1 | E51: 0 | F51: 3 | G51: 2 | H51: 3 | I51: 1 | J51: 1 | K51: 0 | L51: 1 | M51: 2 | N51: Scotland | O51: Denmark | S51: Farina | T51: 3 | V51: Pidpad | W51: 3.5
B52: Purdindas | C52: kfoged | D52: 0 | E52: 1 | F52: 1 | G52: 3 | H52: 3 | I52: 3 | J52: 1 | K52: 2 | L52: 0 | M52: 2 | N52: Scotland | O52: Denmark | S52: Alex05 | T52: 3 | V52: Beppe | W52: 3.5
B53: DonShula | C53: SpecialOne | D53: 1 | E53: 0 | F53: 2 | G53: 0 | H53: 2 | I53: 0 | J53: 0 | K53: 1 | L53: 2 | M53: 1 | N53: Scotland | O53: Denmark | S53: Podfrey | T53: 3 | V53: Itzla | W53: 3.5
B54: HumptyTrump | C54: Tank | D54: 0.5 | E54: 0.5 | F54: 1 | G54: 1 | H54: 1 | I54: 3 | J54: 2 | K54: 0 | L54: 1 | M54: 1 | N54: Scotland | O54: Denmark | S54: Ploppy_McPloppy | T54: 3 | V54: Farina | W54: 3.5
B55: Loki | C55: MissSweden | D55: 0 | E55: 1 | F55: 1 | G55: 2 | H55: 3 | I55: 2 | J55: 2 | K55: 1 | L55: 2 | M55: 3 | N55: Scotland | O55: Denmark | S55: Dark Duke | T55: 3 | V55: RoterSternHochdah | W55: 3.5
B56: Garrick | C56: Jaqra | D56: 1 | E56: 0 | F56: 2 | G56: 1 | H56: 2 | I56: 0 | J56: 2 | K56: 3 | L56: 3 | M56: 1 | N56: Scotland | O56: Denmark | S56: Skuld | T56: 3 | V56: zulu | W56: 3.5
B57: JamesEs | C57: Topper | D57: 1 | E57: 0 | F57: 2 | G57: 1 | H57: 1 | I57: 2 | J57: 0 | K57: 2 | L57: 2 | M57: 2 | N57: Scotland | O57: Denmark | S57: Dekra1979 | T57: 3 | V57: 20Phoenix | W57: 3.5
B58: mynock | C58: Pellevin | D58: 0.5 | E58: 0.5 | F58: 2 | G58: 2 | H58: 2 | I58: 1 | J58: 2 | K58: 0 | L58: 1 | M58: 2 | N58: Norway | O58: Sweden | S58: Wilzif | T58: 3 | V58: Niebling | W58: 3.5
B59: zulu | C59: Dragons | D59: 0 | E59: 1 | F59: 1 | G59: 3 | H59: 1 | I59: 1 | J59: 3 | K59: 2 | L59: 2 | M59: 2 | N59: Norway | O59: Sweden | S59: sann0638 | T59: 3 | V59: Dirold | W59: 3.5
B60: GreatWhiteHope | C60: JohnnyD | D60: 0.5 | E60: 0.5 | F60: 2 | G60: 2 | H60: 2 | I60: 2 | J60: 3 | K60: 1 | L60: 3 | M60: 2 | N60: Norway | O60: Sweden | S60: Valen | T60: 3 | V60: DonShula | W60: 3.5
B61: Endalos | C61: Skoberget | D61: 0.5 | E61: 0.5 | F61: 2 | G61: 2 | H61: 0 | I61: 1 | J61: 1 | K61: 2 | L61: 2 | M61: 2 | N61: Norway | O61: Sweden | S61: Jokaero | T61: 3 | V61: SpecialOne | W61: 3.5
B62: bothun | C62: Pidpad | D62: 1 | E62: 0 | F62: 3 | G62: 1 | H62: 2 | I62: 1 | J62: 2 | K62: 1 | L62: 2 | M62: 0 | N62: Norway | O62: Sweden | S62: Juniooor7 | T62: 3 | V62: andydavo | W62: 3.5
B63: The_Ref | C63: Skuld | D63: 0.5 | E63: 0.5 | F63: 2 | G63: 2 | H63: 2 | I63: 0 | J63: 2 | K63: 1 | L63: 0 | M63: 1 | N63: Norway | O63: Sweden | S63: Macabeo | T63: 3 | V63: MacWitt | W63: 3.5
B64: straume | C64: Melisqus | D64: 0.5 | E64: 0.5 | F64: 3 | G64: 3 | H64: 1 | I64: 2 | J64: 2 | K64: 2 | L64: 2 | M64: 2 | N64: Norway | O64: Sweden | S64: JJ | T64: 3 | V64: Mufflo | W64: 3.5
B65: FrankPedersen | C65: Inforthepain | D65: 0.5 | E65: 0.5 | F65: 1 | G65: 1 | H65: 2 | I65: 1 | J65: 2 | K65: 3 | L65: 0 | M65: 1 | N65: Norway | O65: Sweden | S65: Goss | T65: 3 | V65: Dekra1979 | W65: 3.5
S66: Candlejack | T66: 2.5 | V66: Arioso | W66: 3.5
S67: Dionysian | T67: 2.5 | V67: Bouzzy | W67: 3.5
S68: MacWitt | T68: 2.5 | V68: DocMaxx | W68: 3.5
S69: Itzla | T69: 2.5 | V69: JJ | W69: 3.5
S70: Leonek | T70: 2.5 | V70: Dark Duke | W70: 3.5
S71: Muadib | T71: 2.5 | V71: Podfrey | W71: 3.5
S72: GreatWhiteHope | T72: 2.5 | V72: PurpleGoo | W72: 3
S73: DocMaxx | T73: 2.5 | V73: edheim | W73: 3
S74: Malodoror | T74: 2.5 | V74: Leonek | W74: 3
S75: Purdindas | T75: 2.5 | V75: Northernknight | W75: 3
S76: andydavo | T76: 2.5 | V76: sann0638 | W76: 3
S77: RoterSternHochdah | T77: 2.5 | V77: HumptyTrump | W77: 3
S78: Northernknight | T78: 2.5 | V78: Justicium | W78: 3
S79: Mubo | T79: 2.5 | V79: Slimaq | W79: 3
S80: DonShula | T80: 2.5 | V80: Kaltenland | W80: 3
S81: Bouzzy | T81: 2.5 | V81: Juniooor7 | W81: 3
S82: Mufflo | T82: 2.5 | V82: Melisqus | W82: 3
S83: Dirold | T83: 2.5 | V83: Wilzif | W83: 3
S84: Melisqus | T84: 2.5 | V84: GreatWhiteHope | W84: 3
S85: edheim | T85: 2.5 | V85: MadeofWelsh | W85: 3
S86: Slimaq | T86: 2.5 | V86: Dionysian | W86: 3
S87: 20Phoenix | T87: 2.5 | V87: Malodoror | W87: 2.5
S88: HumptyTrump | T88: 2.5 | V88: Jonny_Kanone | W88: 2.5
S89: Joemanji | T89: 2 | V89: Tank | W89: 2.5
S90: Domingo | T90: 2 | V90: Garrick | W90: 2.5
S91: Endalos | T91: 2 | V91: Gaunab | W91: 2.5
S92: Tank | T92: 2 | V92: BeerBeer | W92: 2.5
S93: Gros Nain | T93: 2 | V93: Candlejack | W93: 2.5
S94: BlackOrc | T94: 2 | V94: Purdindas | W94: 2.5
S95: Tactel | T95: 2 | V95: bothun | W95: 2.5
S96: Favi | T96: 2 | V96: J-Ho | W96: 2.5
S97: Justicium | T97: 2 | V97: Harza | W97: 2.5
S98: Jonny_Kanone | T98: 2 | V98: Mubo | W98: 2.5
S99: Geggster | T99: 2 | V99: Endalos | W99: 2.5
S100: Kaltenland | T100: 2 | V100: Muadib | W100: 2.5
S101: MadeofWelsh | T101: 2 | V101: ratogre | W101: 2
S102: Loki | T102: 1.5 | V102: straume | W102: 2
S103: Harza | T103: 1.5 | V103: JimJimany | W103: 2
S104: bothun | T104: 1.5 | V104: The_Ref | W104: 2
S105: swifty | T105: 1.5 | V105: Joemanji | W105: 2
S106: Garrick | T106: 1.5 | V106: Tactel | W106: 2
S107: J-Ho | T107: 1.5 | V107: Obeliz | W107: 2
S108: The_Ref | T108: 1.5 | V108: Favi | W108: 2
S109: Gaunab | T109: 1.5 | V109: Barry | W109: 2
S110: Inforthepain | T110: 1.5 | V110: Inforthepain | W110: 2
S111: BeerBeer | T111: 1.5 | V111: Gros Nain | W111: 2
S112: JimJimany | T112: 1.5 | V112: BlackOrc | W112: 2
S113: Barry | T113: 1.5 | V113: MissSweden | W113: 2
S114: Duke_Luthor_Von_Hawkfire | T114: 1.5 | V114: Duke_Luthor_Von_Hawkfire | W114: 2
S115: Shawass | T115: 1.5 | V115: swifty | W115: 2
S116: Matt le fou | T116: 1.5 | V116: Geggster | W116: 2
S117: straume | T117: 1.5 | V117: Domingo | W117: 2
S118: Obeliz | T118: 1 | V118: BudWiser | W118: 1.5
S119: MissSweden | T119: 1 | V119: JamesEs | W119: 1.5
S120: ratogre | T120: 1 | V120: Shawass | W120: 1.5
S121: jopotzuki | T121: 1 | V121: jopotzuki | W121: 1.5
S122: Jaqra | T122: 1 | V122: Loki | W122: 1.5
S123: Joanet | T123: 1 | V123: Matt le fou | W123: 1.5
S124: BudWiser | T124: 1 | V124: Phoenix11 | W124: 1
S125: cz | T125: 1 | V125: FrankPedersen | W125: 1
S126: Topper | T126: 1 | V126: Jaqra | W126: 1
S127: JamesEs | T127: 0.5 | V127: Joanet | W127: 1
S128: FrankPedersen | T128: 0.5 | V128: cz | W128: 1
S129: Phoenix11 | T129: 0 | V129: Topper | W129: 1

Sheet Round7

Sheet Round8

Sheet Round9

Sheet NAF
A1: <?xml version="1.0" encoding="UTF-8"?>
A2: <nafReport xmlns:blo="http://www.bloodbowl.net">
A3: <organiser>Mike</organiser>
A4: <coaches>
A5: <coach>
A6: <name>Alex</name>
A7: <number>16761</number>
A8: <team>Skaven</team>
A9: </coach>
A10: <coach>
A11: <name>Mike</name>
A12: <number>10468</number>
A13: <team>Elves</team>
A14: </coach>
A15: <coach>
A16: <name>Linus</name>
A17: <number>15676</number>
A18: <team>Dwarves</team>
A19: </coach>
A20: <coach>
A21: <name>Player4</name>
A22: <number>9106</number>
A23: <team>Wood Elves</team>
A24: </coach>
A25: <coach>
A26: <name>Player5</name>
A27: <number>12789</number>
A28: <team>Dark Elves</team>
A29: </coach>
A30: <coach>
A31: <name>Player6</name>
A32: <number>18136</number>
A33: <team>Wood Elves</team>
A34: </coach>
A35: <coach>
A36: <name>Player7</name>
A37: <number>9672</number>
A38: <team>Wood Elves</team>
A39: </coach>
A40: <coach>
A41: <name>Player8</name>
A42: <number>4118</number>
A43: <team>Chaos Dwarves</team>
A44: </coach>
A45: <coach>
A46: <name>Player9</name>
A47: <number>14129</number>
A48: <team>Nurgle's Rotters</team>
A49: </coach>
A50: <coach>
A51: <name>Player10</name>
A52: <number>1739</number>
A53: <team>Lizardmen</team>
A54: </coach>
A55: <coach>
A56: <name>Player11</name>
A57: <number>19602</number>
A58: <team>Slann</team>
A59: </coach>
A60: <coach>
A61: <name>Player12</name>
A62: <number>15064</number>
A63: <team>Wood Elves</team>
A64: </coach>
A65: <coach>
A66: <name>Player13</name>
A67: <number>6092</number>
A68: <team>Amazons</team>
A69: </coach>
A70: <coach>
A71: <name>Player14</name>
A72: <number>9080</number>
A73: <team>Dwarves</team>
A74: </coach>
A75: <coach>
A76: <name>Player15</name>
A77: <number>7960</number>
A78: <team>Undead</team>
A79: </coach>
A80: <coach>
A81: <name>Player16</name>
A82: <number>15062</number>
A83: <team>Goblins</team>
A84: </coach>
A85: <coach>
A86: <name>Player17</name>
A87: <number>7106</number>
A88: <team>Wood Elves</team>
A89: </coach>
A90: <coach>
A91: <name>Player18</name>
A92: <number>7371</number>
A93: <team>Khemri</team>
A94: </coach>
A95: </coaches>
A96: <game>
A97: <timestamp>2016-09-18 01:00</timestamp>
A98: <playerRecord>
A99: <name>Player7</name>
A100: <number>9672</number>
A101: <teamRating>100</teamRating>
A102: <touchDowns>12</touchDowns>
A103: <badlyHurt>2</badlyHurt>
A104: </playerRecord>
A105: <playerRecord>
A106: <name>Player9</name>
A107: <number>14129</number>
A108: <teamRating>100</teamRating>
A109: <touchDowns>7</touchDowns>
A110: <badlyHurt>1</badlyHurt>
A111: </playerRecord>
A112: </game>
A113: <game>
A114: <timestamp>2016-09-18 01:00</timestamp>
A115: <playerRecord>
A116: <name>Player6</name>
A117: <number>18136</number>
A118: <teamRating>100</teamRating>
A119: <touchDowns>12</touchDowns>
A120: <badlyHurt>2</badlyHurt>
A121: </playerRecord>
A122: <playerRecord>
A123: <name>Player11</name>
A124: <number>19602</number>
A125: <teamRating>100</teamRating>
A126: <touchDowns>12</touchDowns>
A127: <badlyHurt>2</badlyHurt>
A128: </playerRecord>
A129: </game>
A130: <game>
A131: <timestamp>2016-09-18 01:00</timestamp>
A132: <playerRecord>
A133: <name>Player17</name>
A134: <number>7106</number>
A135: <teamRating>100</teamRating>
A136: <touchDowns>10</touchDowns>
A137: <badlyHurt>2</badlyHurt>
A138: </playerRecord>
A139: <playerRecord>
A140: <name>Player13</name>
A141: <number>6092</number>
A142: <teamRating>100</teamRating>
A143: <touchDowns>8</touchDowns>
A144: <badlyHurt>2</badlyHurt>
A145: </playerRecord>
A146: </game>
A147: <game>
A148: <timestamp>2016-09-18 01:00</timestamp>
A149: <playerRecord>
A150: <name>Player8</name>
A151: <number>4118</number>
A152: <teamRating>100</teamRating>
A153: <touchDowns>3</touchDowns>
A154: <badlyHurt>1</badlyHurt>
A155: </playerRecord>
A156: <playerRecord>
A157: <name>Linus</name>
A158: <number>15676</number>
A159: <teamRating>100</teamRating>
A160: <touchDowns>16</touchDowns>
A161: <badlyHurt>3</badlyHurt>
A162: </playerRecord>
A163: </game>
A164: <game>
A165: <timestamp>2016-09-18 01:00</timestamp>
A166: <playerRecord>
A167: <name>Player14</name>
A168: <number>9080</number>
A169: <teamRating>100</teamRating>
A170: <touchDowns>9</touchDowns>
A171: <badlyHurt>1</badlyHurt>
A172: </playerRecord>
A173: <playerRecord>
A174: <name>Player10</name>
A175: <number>1739</number>
A176: <teamRating>100</teamRating>
A177: <touchDowns>11</touchDowns>
A178: <badlyHurt>2</badlyHurt>
A179: </playerRecord>
A180: </game>
A181: <game>
A182: <timestamp>2016-09-18 01:00</timestamp>
A183: <playerRecord>
A184: <name>Mike</name>
A185: <number>10468</number>
A186: <teamRating>100</teamRating>
A187: <touchDowns>4</touchDowns>
A188: <badlyHurt>0</badlyHurt>
A189: </playerRecord>
A190: <playerRecord>
A191: <name>Player5</name>
A192: <number>12789</number>
A193: <teamRating>100</teamRating>
A194: <touchDowns>17</touchDowns>
A195: <badlyHurt>2</badlyHurt>
A196: </playerRecord>
A197: </game>
A198: <game>
A199: <timestamp>2016-09-18 01:00</timestamp>
A200: <playerRecord>
... 661 more rows
